Body Name,Service Area,Expenses Type,Invoice Payment Date,Transaction Number,Supplier Name,Net Amount
Manchester City Council,Manchester Leisure,Compensation Payments,01-Nov-23,1908263751,Redacted personal info,"7,000.00"
Manchester City Council,Regeneration Finance,Subsistence and Conference Expenses,01-Nov-23,1908264804,Redacted personal info,"4,418.13"
Manchester City Council,Hospitality + Trading Services,Equipment,01-Nov-23,1908263547,Redacted personal info,800.00
Manchester City Council,Adult Social Care,Furniture,01-Nov-23,5105898611,The Furnishing Service Ltd,-789.77
Manchester City Council,Manchester Leisure,Grant and subscriptions awarded,01-Nov-23,5105898429,Barlow Moor Community Association,"3,829.00"
Manchester City Council,Childrens & Education Services,Payments for services,01-Nov-23,5105898423,Sense,988.28
Manchester City Council,Adult Social Care,Equipment,01-Nov-23,5105898583,Frontier Therapeutics,"-1,267.20"
Manchester City Council,Corporate Services,Agency staff provision,01-Nov-23,5105898475,Search Consultancy Ltd,"2,904.80"
Manchester City Council,Corporate Services,Grounds Maintenance,01-Nov-23,5105898479,Arboricultural Services Treework,580.00
Manchester City Council,Chief Executives,Advertising,01-Nov-23,5105898473,Reach Publishing Services Ltd,"2,748.90"
Manchester City Council,Hospitality + Trading Services,External repairs and maintenance for buildings,01-Nov-23,5105898558,Amtoll Ltd,"-2,374.30"
Manchester City Council,Hospitality + Trading Services,External repairs and maintenance for buildings,01-Nov-23,5105898559,Amtoll Ltd,"-4,238.64"
Manchester City Council,Hospitality + Trading Services,External repairs and maintenance for buildings,01-Nov-23,5105898560,Amtoll Ltd,"-4,398.10"
Manchester City Council,Hospitality + Trading Services,External repairs and maintenance for buildings,01-Nov-23,5105898571,Amtoll Ltd,"-2,987.20"
Manchester City Council,Chief Executives,Works and associated costs for Land and Buildings,01-Nov-23,5105898524,Manchester International Festival,"558,150.33"
Manchester City Council,Manchester Leisure,Equipment,01-Nov-23,5105898589,T.H. Horn Ltd,-625.00
Manchester City Council,Manchester Leisure,Equipment,01-Nov-23,5105898591,T.H. Horn Ltd,-590.00
Manchester City Council,Chief Executives,Printing,01-Nov-23,5105898427,Browns CTP Ltd,730.00
Manchester City Council,Manchester Leisure,Goods purchased for resale in Council outlets,01-Nov-23,5105898424,Art Angels Publishing Ltd,529.20
Manchester City Council,Adult Social Care,Rents,01-Nov-23,5105898489,MJ Rental Ltd,"93,275.98"
Manchester City Council,Manchester Leisure,Equipment,01-Nov-23,5105898465,One Green World,"2,200.00"
Manchester City Council,Manchester Leisure,Equipment,01-Nov-23,5105898431,Cromwell Polythene Limited,"10,626.00"
Manchester City Council,Chief Executives,Works and associated costs for Land and Buildings,01-Nov-23,5105898595,Manchester Quays Limited,"6,609.81"
Manchester City Council,Chief Executives,Works and associated costs for Land and Buildings,01-Nov-23,5105898597,Manchester Quays Limited,"6,609.81"
Manchester City Council,Adult Social Care,Rents,01-Nov-23,5105898407,Housing Social Ltd,"-4,720.00"
Manchester City Council,Adult Social Care,Rents,01-Nov-23,5105898408,Housing Social Ltd,"4,720.00"
Manchester City Council,Adult Social Care,Rents,01-Nov-23,5105898454,Housing Social Ltd,"4,720.00"
Manchester City Council,Chief Executives,Payments to Sub-Contractors,01-Nov-23,5105898483,Redacted Personal Information,671.90
Manchester City Council,Manchester Leisure,Agency staff provision,01-Nov-23,5105898426,Manchester Art Gallery,"3,009.09"
Manchester City Council,Environment and Operations,Construction Works,01-Nov-23,5105898432,Balfour Beatty Living Places Ltd,"-5,696.45"
Manchester City Council,Environment and Operations,Construction Works,01-Nov-23,5105898433,Balfour Beatty Living Places Ltd,"-3,510.55"
Manchester City Council,Chief Executives,Travel,01-Nov-23,5105898530,Diversity Travel Ltd,"2,125.00"
Manchester City Council,Chief Executives,Travel,01-Nov-23,5105898619,Diversity Travel Ltd,"-2,125.00"
Manchester City Council,Corporate Services,Car Parking Expenses,01-Nov-23,5105898494,NCP Members Parking,"1,333.33"
Manchester City Council,Corporate Services,Training and Development,01-Nov-23,5105898488,LTE Group,890.00
Manchester City Council,Manchester Leisure,Goods purchased for resale in Council outlets,01-Nov-23,5105898421,U Studio Design Ltd,952.02
Manchester City Council,Corporate Services,WPS Awards,01-Nov-23,5105898502,Furniture Resource Centre Ltd,679.18
Manchester City Council,Childrens Services,Works and associated costs for Land and Buildings,01-Nov-23,5105898466,Warden Construction Ltd,"2,496.88"
Manchester City Council,Adult Social Care,Bed & Breakfast Acc,01-Nov-23,5105898451,Medlock House Ltd,"7,742.00"
Manchester City Council,Adult Social Care,Bed & Breakfast Acc,01-Nov-23,5105898452,Medlock House Ltd,"7,154.00"
Manchester City Council,Adult Social Care,Bed & Breakfast Acc,01-Nov-23,5105898453,Medlock House Ltd,"7,693.00"
Manchester City Council,Chief Executives,Vehicle Plant Furniture and Equipment,01-Nov-23,5105898425,euNetworks The Loop Limited,800.00
Manchester City Council,Manchester Leisure,I T Provision,01-Nov-23,5105898462,Eldercare (UK) Ltd,"1,489.42"
Manchester City Council,Adult Social Care,Professional fees,01-Nov-23,5105898434,Pinnacle Building and Surveying,550.00
Manchester City Council,Manchester Leisure,Grant and subscriptions awarded,01-Nov-23,5105898439,Kennys Global Links,560.00
Manchester City Council,Manchester Leisure,Compensation Payments,01-Nov-23,1908264775,Satchell Moran Solicitors,"1,500.00"
Manchester City Council,Adult Social Care,Rents,01-Nov-23,1908264800,A1 PROPERYY SOLUTIONS,"5,113.00"
Manchester City Council,Manchester Leisure,Special Event,01-Nov-23,1908261256,N4 Crew Ltd,620.00
Manchester City Council,Childrens & Education Services,Compensation Payments,02-Nov-23,1908265155,Redacted personal info,575.00
Manchester City Council,Childrens & Education Services,Rechrgs to MCC Schs,02-Nov-23,1908197885,Redacted personal info,550.00
Manchester City Council,Adult Social Care,Housing Rents Debit,02-Nov-23,1908264790,Redacted personal info,599.49
Manchester City Council,Adult Social Care,Equipment,02-Nov-23,5105898572,Lisclare,"1,427.00"
Manchester City Council,Chief Executives,Agency staff provision,02-Nov-23,5105898782,Gatenby Sanderson,"4,221.00"
Manchester City Council,Corporate Services,Rents,02-Nov-23,1908262052,Asda Stores Ltd (Leeds),"16,318.70"
Manchester City Council,Adult Social Care,Equipment,02-Nov-23,5105898864,Prism Medical UK Carefree Division,"1,785.00"
Manchester City Council,Corporate Services,Professional fees,02-Nov-23,5105898606,ECS Consultants Ltd,"5,200.00"
Manchester City Council,Adult Social Care,Equipment,02-Nov-23,5105898899,Mangar International Ltd/Winncare,"5,250.00"
Manchester City Council,Manchester Leisure,Water - Metered,02-Nov-23,1908266197,United Utilities Water Plc,878.60
Manchester City Council,Childrens & Education Services,Transport Coach Hire,02-Nov-23,5105898877,Mantax Radio Taxis Ltd,"51,666.67"
Manchester City Council,Childrens & Education Services,Transport Coach Hire,02-Nov-23,5105898883,Mantax Radio Taxis Ltd,"60,005.99"
Manchester City Council,Manchester Leisure,Agency staff provision,02-Nov-23,5105898921,M&G Transport & Technical Services,"1,070.00"
Manchester City Council,Manchester Leisure,I T Provision,02-Nov-23,5105898850,BT PLC,"1,467.38"
Manchester City Council,Manchester Leisure,Refuse Collection,02-Nov-23,5105898543,GTS Steam Cleaners,"2,170.68"
Manchester City Council,Childrens & Education Services,Third party payments to other Local Authorities,02-Nov-23,5105898723,Blessed Thomas Holford School,"10,669.67"
Manchester City Council,Highways Services,Purchase of stores for re-distribution,02-Nov-23,5105898797,P.F. Cusack (Tools Supplies) Ltd,542.95
Manchester City Council,Corporate Services,Agency staff provision,02-Nov-23,5105898707,Adecco Uk Ltd,"1,800.00"
Manchester City Council,Regeneration Finance,Grant Payments,02-Nov-23,5105898533,Oxford University Press,695.00
Manchester City Council,Chief Executives,Legal Fees,02-Nov-23,5105898508,Kings Chambers,500.00
Manchester City Council,Regeneration Finance,Legal Fees,02-Nov-23,5105898750,Kings Chambers,"1,250.00"
Manchester City Council,Adult Social Care,Supported Accommodation,02-Nov-23,5105898814,Mosscare Housing Ltd,703.64
Manchester City Council,Adult Social Care,Supported Accommodation,02-Nov-23,5105898816,Mosscare Housing Ltd,"25,790.28"
Manchester City Council,Adult Social Care,Supported Accommodation,02-Nov-23,5105898821,Mosscare Housing Ltd,"2,088.40"
Manchester City Council,Adult Social Care,Supported Accommodation,02-Nov-23,5105898826,Mosscare Housing Ltd,"4,184.80"
Manchester City Council,Adult Social Care,Supported Accommodation,02-Nov-23,5105898841,Mosscare Housing Ltd,"4,184.80"
Manchester City Council,Manchester Leisure,Cleaning Equipment and Materials,02-Nov-23,5105898890,Biffa Waste Services Ltd,"5,102.70"
Manchester City Council,Adult Social Care,Third party payments relating to Voluntary Organisations,02-Nov-23,5105898490,Riverside ECHG,"51,708.00"
Manchester City Council,Manchester Leisure,Payments to Sub-Contractors,02-Nov-23,5105898876,Groundwork Landscapes Ltd,950.00
Manchester City Council,Highways Services,Building Materials for direct delivery,02-Nov-23,5105898725,TARMAC,616.71
Manchester City Council,Highways Services,Building Materials for direct delivery,02-Nov-23,5105898727,TARMAC,"1,216.36"
Manchester City Council,Adult Social Care,Third party payments relating to Voluntary Organisations,02-Nov-23,5105898624,Greater Manchester Mental Health,"9,061.00"
Manchester City Council,Adult Social Care,Third party payments to Health Authority,02-Nov-23,5105898449,Central Mcr Uni Hospital t/a,"63,985.75"
Manchester City Council,Adult Social Care,Third party payments to Health Authority,02-Nov-23,5105898603,Central Mcr Uni Hospital t/a,"84,500.00"
Manchester City Council,Chief Executives,Works and associated costs for Land and Buildings,02-Nov-23,5105898525,Manchester International Festival,"-558,160.33"
Manchester City Council,Corporate Services,Payments for services,02-Nov-23,5105898540,Victoria Baths Trust,"7,500.00"
Manchester City Council,Corporate Services,Payments for services,02-Nov-23,5105898588,Victoria Baths Trust,"6,254.33"
Manchester City Council,Corporate Services,Payments for services,02-Nov-23,5105898590,Victoria Baths Trust,"11,900.00"
Manchester City Council,Adult Social Care,Grant and subscriptions awarded,02-Nov-23,5105898679,Greater Manchester Immigration Aid,"30,000.00"
Manchester City Council,Adult Social Care,Agency staff provision,02-Nov-23,5105898680,Breakthrough Uk Ltd,"12,000.00"
Manchester City Council,Manchester Leisure,Grant and subscriptions awarded,02-Nov-23,5105898791,Wythenshawe Community Farm,"5,000.00"
Manchester City Council,Highways Services,Grounds Maintenance,02-Nov-23,5105898528,Redgate Holdings Ltd,900.00
Manchester City Council,Highways Services,Payments to Sub-Contractors,02-Nov-23,5105898735,Fairway Landscapes Ltd,"5,202.00"
Manchester City Council,Highways Services,Payments to Sub-Contractors,02-Nov-23,5105898736,Fairway Landscapes Ltd,720.00
Manchester City Council,Manchester Leisure,Special Event,02-Nov-23,5105898503,University Of Manchester,"1,049.40"
Manchester City Council,Childrens & Education Services,Payments for services,02-Nov-23,5105898741,Tameside College,"3,587.79"
Manchester City Council,Manchester Leisure,Electricity,02-Nov-23,1700160383,Npower,"-6,007.55"
Manchester City Council,Manchester Leisure,Electricity,02-Nov-23,1908265723,Npower,"2,627.37"
Manchester City Council,Manchester Leisure,Electricity,02-Nov-23,1908265727,Npower,"4,661.59"
Manchester City Council,Manchester Leisure,Electricity,02-Nov-23,1908265728,Npower,"13,454.36"
Manchester City Council,Manchester Leisure,Electricity,02-Nov-23,1908265732,Npower,"35,702.01"
Manchester City Council,Manchester Leisure,Electricity,02-Nov-23,1908265735,Npower,"2,930.19"
Manchester City Council,Manchester Leisure,Electricity,02-Nov-23,1908265738,Npower,"4,133.29"
Manchester City Council,Manchester Leisure,Electricity,02-Nov-23,1908265740,Npower,"1,705.25"
Manchester City Council,Manchester Leisure,Electricity,02-Nov-23,1908265742,Npower,"8,984.68"
Manchester City Council,Manchester Leisure,Electricity,02-Nov-23,1908265744,Npower,"3,207.35"
Manchester City Council,Manchester Leisure,Electricity,02-Nov-23,1908265745,Npower,"2,291.50"
Manchester City Council,Manchester Leisure,Electricity,02-Nov-23,1908265746,Npower,"22,488.38"
Manchester City Council,Manchester Leisure,Electricity,02-Nov-23,1908265762,Npower,"11,727.49"
Manchester City Council,Manchester Leisure,Electricity,02-Nov-23,1908265763,Npower,"10,537.23"
Manchester City Council,Manchester Leisure,Electricity,02-Nov-23,1908265766,Npower,"15,532.34"
Manchester City Council,Manchester Leisure,Electricity,02-Nov-23,1908265769,Npower,"2,678.75"
Manchester City Council,Manchester Leisure,Electricity,02-Nov-23,1908265770,Npower,"1,384.56"
Manchester City Council,Manchester Leisure,Electricity,02-Nov-23,1908265771,Npower,"3,342.14"
Manchester City Council,Manchester Leisure,Electricity,02-Nov-23,1908265772,Npower,"3,197.76"
Manchester City Council,Manchester Leisure,Electricity,02-Nov-23,1908265777,Npower,"130,675.12"
Manchester City Council,Manchester Leisure,Electricity,02-Nov-23,1908265779,Npower,"5,829.05"
Manchester City Council,Manchester Leisure,Electricity,02-Nov-23,1908265780,Npower,"8,523.91"
Manchester City Council,Manchester Leisure,Electricity,02-Nov-23,1908265781,Npower,"1,535.12"
Manchester City Council,Manchester Leisure,Electricity,02-Nov-23,1908265782,Npower,"23,026.89"
Manchester City Council,Manchester Leisure,Electricity,02-Nov-23,1908265783,Npower,"91,378.73"
Manchester City Council,Manchester Leisure,Electricity,02-Nov-23,1908265784,Npower,"35,769.39"
Manchester City Council,Manchester Leisure,Electricity,02-Nov-23,1908265786,Npower,"21,906.48"
Manchester City Council,Manchester Leisure,Electricity,02-Nov-23,1908265788,Npower,"5,875.18"
Manchester City Council,Manchester Leisure,Electricity,02-Nov-23,1908265796,Npower,"2,616.43"
Manchester City Council,Manchester Leisure,Electricity,02-Nov-23,1908265799,Npower,"2,360.66"
Manchester City Council,Manchester Leisure,Electricity,02-Nov-23,1908265800,Npower,"3,033.93"
Manchester City Council,Manchester Leisure,Electricity,02-Nov-23,1908265803,Npower,"8,441.15"
Manchester City Council,Manchester Leisure,Electricity,02-Nov-23,1908265805,Npower,"2,125.16"
Manchester City Council,Manchester Leisure,Electricity,02-Nov-23,1908265806,Npower,"11,728.15"
Manchester City Council,Manchester Leisure,Electricity,02-Nov-23,1908265817,Npower,"2,240.03"
Manchester City Council,Manchester Leisure,Electricity,02-Nov-23,1908265818,Npower,"1,867.43"
Manchester City Council,Manchester Leisure,Electricity,02-Nov-23,1908265822,Npower,"3,973.48"
Manchester City Council,Manchester Leisure,Electricity,02-Nov-23,1908265823,Npower,"2,116.24"
Manchester City Council,Manchester Leisure,Electricity,02-Nov-23,1908265824,Npower,"1,665.69"
Manchester City Council,Manchester Leisure,Electricity,02-Nov-23,1908265825,Npower,"2,714.45"
Manchester City Council,Manchester Leisure,Electricity,02-Nov-23,1908265826,Npower,"2,326.52"
Manchester City Council,Manchester Leisure,Electricity,02-Nov-23,1908265827,Npower,"3,003.45"
Manchester City Council,Manchester Leisure,Electricity,02-Nov-23,1908265828,Npower,"1,598.27"
Manchester City Council,Libraries and Theatres,Electricity,02-Nov-23,1908265815,Npower,882.69
Manchester City Council,Hospitality + Trading Services,Electricity,02-Nov-23,1908265729,Npower,"49,703.89"
Manchester City Council,Hospitality + Trading Services,Electricity,02-Nov-23,1908265730,Npower,"49,898.47"
Manchester City Council,Hospitality + Trading Services,Electricity,02-Nov-23,1908265733,Npower,"5,559.82"
Manchester City Council,Hospitality + Trading Services,Electricity,02-Nov-23,1908265747,Npower,"1,459.18"
Manchester City Council,Hospitality + Trading Services,Electricity,02-Nov-23,1908265751,Npower,"21,521.54"
Manchester City Council,Hospitality + Trading Services,Electricity,02-Nov-23,1908265758,Npower,"34,293.57"
Manchester City Council,Hospitality + Trading Services,Electricity,02-Nov-23,1908265776,Npower,"4,934.14"
Manchester City Council,Hospitality + Trading Services,Electricity,02-Nov-23,1908265785,Npower,"139,105.65"
Manchester City Council,Hospitality + Trading Services,Electricity,02-Nov-23,1908265809,Npower,"4,548.46"
Manchester City Council,Childrens & Education Services,Electricity,02-Nov-23,1908265731,Npower,869.55
Manchester City Council,Childrens & Education Services,Electricity,02-Nov-23,1908265739,Npower,"1,558.04"
Manchester City Council,Childrens & Education Services,Electricity,02-Nov-23,1908265795,Npower,"1,775.79"
Manchester City Council,Adult Social Care,Electricity,02-Nov-23,1908265773,Npower,"3,090.28"
Manchester City Council,Adult Social Care,Electricity,02-Nov-23,1908265791,Npower,"3,120.19"
Manchester City Council,Adult Social Care,Electricity,02-Nov-23,1908265807,Npower,"3,515.24"
Manchester City Council,Adult Social Care,Electricity,02-Nov-23,1908265808,Npower,"2,546.94"
Manchester City Council,Adult Social Care,Electricity,02-Nov-23,1908265830,Npower,"3,295.24"
Manchester City Council,Corporate Services,Electricity,02-Nov-23,1908265721,Npower,"84,438.38"
Manchester City Council,Corporate Services,Electricity,02-Nov-23,1908265722,Npower,"6,083.17"
Manchester City Council,Corporate Services,Electricity,02-Nov-23,1908265724,Npower,"12,927.82"
Manchester City Council,Corporate Services,Electricity,02-Nov-23,1908265725,Npower,"2,465.36"
Manchester City Council,Corporate Services,Electricity,02-Nov-23,1908265734,Npower,"2,162.29"
Manchester City Council,Corporate Services,Electricity,02-Nov-23,1908265741,Npower,"1,608.25"
Manchester City Council,Corporate Services,Electricity,02-Nov-23,1908265743,Npower,"2,521.59"
Manchester City Council,Corporate Services,Electricity,02-Nov-23,1908265748,Npower,"23,020.31"
Manchester City Council,Corporate Services,Electricity,02-Nov-23,1908265750,Npower,940.28
Manchester City Council,Corporate Services,Electricity,02-Nov-23,1908265752,Npower,"13,077.02"
Manchester City Council,Corporate Services,Electricity,02-Nov-23,1908265754,Npower,"2,072.83"
Manchester City Council,Corporate Services,Electricity,02-Nov-23,1908265755,Npower,"5,776.59"
Manchester City Council,Corporate Services,Electricity,02-Nov-23,1908265756,Npower,"9,449.67"
Manchester City Council,Corporate Services,Electricity,02-Nov-23,1908265757,Npower,"9,756.84"
Manchester City Council,Corporate Services,Electricity,02-Nov-23,1908265759,Npower,"3,777.16"
Manchester City Council,Corporate Services,Electricity,02-Nov-23,1908265760,Npower,"2,931.16"
Manchester City Council,Corporate Services,Electricity,02-Nov-23,1908265761,Npower,"7,146.81"
Manchester City Council,Corporate Services,Electricity,02-Nov-23,1908265764,Npower,"5,755.30"
Manchester City Council,Corporate Services,Electricity,02-Nov-23,1908265765,Npower,"9,928.94"
Manchester City Council,Corporate Services,Electricity,02-Nov-23,1908265767,Npower,"8,901.94"
Manchester City Council,Corporate Services,Electricity,02-Nov-23,1908265774,Npower,"5,545.68"
Manchester City Council,Corporate Services,Electricity,02-Nov-23,1908265775,Npower,"3,907.41"
Manchester City Council,Corporate Services,Electricity,02-Nov-23,1908265778,Npower,"61,137.88"
Manchester City Council,Corporate Services,Electricity,02-Nov-23,1908265792,Npower,"1,544.12"
Manchester City Council,Corporate Services,Electricity,02-Nov-23,1908265793,Npower,"1,205.48"
Manchester City Council,Corporate Services,Electricity,02-Nov-23,1908265810,Npower,"1,318.18"
Manchester City Council,Corporate Services,Electricity,02-Nov-23,1908265811,Npower,805.55
Manchester City Council,Corporate Services,Electricity,02-Nov-23,1908265831,Npower,531.38
Manchester City Council,Housing Revenue Account,Electricity,02-Nov-23,1908265814,Npower,"2,511.64"
Manchester City Council,Regeneration Finance,Electricity,02-Nov-23,1908265753,Npower,"4,580.90"
Manchester City Council,Regeneration Finance,Electricity,02-Nov-23,1908265768,Npower,"3,853.36"
Manchester City Council,Regeneration Finance,Electricity,02-Nov-23,1908265787,Npower,"33,747.04"
Manchester City Council,Regeneration Finance,Electricity,02-Nov-23,1908265794,Npower,"3,043.45"
Manchester City Council,Regeneration Finance,Electricity,02-Nov-23,1908265797,Npower,"52,960.89"
Manchester City Council,Regeneration Finance,Electricity,02-Nov-23,1908265798,Npower,"2,404.56"
Manchester City Council,Regeneration Finance,Electricity,02-Nov-23,1908265801,Npower,"21,379.49"
Manchester City Council,Regeneration Finance,Electricity,02-Nov-23,1908265802,Npower,"23,937.33"
Manchester City Council,Highways Services,Electricity,02-Nov-23,1908265736,Npower,"2,082.88"
Manchester City Council,Highways Services,Electricity,02-Nov-23,1908265749,Npower,"4,910.26"
Manchester City Council,Highways Services,Electricity,02-Nov-23,1908265789,Npower,"5,581.19"
Manchester City Council,Highways Services,Electricity,02-Nov-23,1908265790,Npower,"6,065.37"
Manchester City Council,Highways Services,Electricity,02-Nov-23,1908265804,Npower,"2,305.02"
Manchester City Council,Manchester Leisure,Goods purchased for resale in Council outlets,02-Nov-23,5105898929,Cornflower Ltd,"2,125.00"
Manchester City Council,Regeneration Finance,External repairs and maintenance for buildings,02-Nov-23,5105898557,P Mcguinness & Co Ltd,"3,250.00"
Manchester City Council,Adult Social Care,Personal needs of client,02-Nov-23,5105899026,The Helping Hand Company Ltd,-630.00
Manchester City Council,Manchester Leisure,Payments to Sub-Contractors,02-Nov-23,5105898761,Manchester Dogs Home,800.00
Manchester City Council,Manchester Leisure,Payments to Sub-Contractors,02-Nov-23,5105898766,Manchester Dogs Home,"1,398.60"
Manchester City Council,Chief Executives,Legal Fees,02-Nov-23,5105898880,Warwickshire County Council,"1,193.59"
Manchester City Council,Adult Social Care,Furniture,02-Nov-23,5105898651,Bennett Workplace Solutions Ltd,550.00
Manchester City Council,Manchester Leisure,Gas,02-Nov-23,1700160393,Corona Energy Ltd,"-9,608.06"
Manchester City Council,Manchester Leisure,Gas,02-Nov-23,1700160394,Corona Energy Ltd,"-9,466.13"
Manchester City Council,Manchester Leisure,Gas,02-Nov-23,1700160395,Corona Energy Ltd,"-10,536.53"
Manchester City Council,Manchester Leisure,Gas,02-Nov-23,1700160396,Corona Energy Ltd,"-7,588.79"
Manchester City Council,Manchester Leisure,Gas,02-Nov-23,1700160397,Corona Energy Ltd,"-9,949.32"
Manchester City Council,Manchester Leisure,Gas,02-Nov-23,1700160401,Corona Energy Ltd,"-2,401.37"
Manchester City Council,Manchester Leisure,Gas,02-Nov-23,1700160402,Corona Energy Ltd,"-2,860.72"
Manchester City Council,Manchester Leisure,Gas,02-Nov-23,1700160403,Corona Energy Ltd,"-2,456.60"
Manchester City Council,Manchester Leisure,Gas,02-Nov-23,1700160404,Corona Energy Ltd,"-5,135.85"
Manchester City Council,Manchester Leisure,Gas,02-Nov-23,1700160405,Corona Energy Ltd,"-4,286.67"
Manchester City Council,Manchester Leisure,Gas,02-Nov-23,1700160434,Corona Energy Ltd,"-6,235.66"
Manchester City Council,Manchester Leisure,Gas,02-Nov-23,1700160435,Corona Energy Ltd,-994.80
Manchester City Council,Manchester Leisure,Gas,02-Nov-23,1700160463,Corona Energy Ltd,"-4,609.97"
Manchester City Council,Manchester Leisure,Gas,02-Nov-23,1700160464,Corona Energy Ltd,-627.22
Manchester City Council,Manchester Leisure,Gas,02-Nov-23,1700160465,Corona Energy Ltd,-603.32
Manchester City Council,Manchester Leisure,Gas,02-Nov-23,1908265888,Corona Energy Ltd,"9,331.61"
Manchester City Council,Manchester Leisure,Gas,02-Nov-23,1908265889,Corona Energy Ltd,"9,608.06"
Manchester City Council,Manchester Leisure,Gas,02-Nov-23,1908265890,Corona Energy Ltd,"9,466.13"
Manchester City Council,Manchester Leisure,Gas,02-Nov-23,1908265891,Corona Energy Ltd,"10,536.53"
Manchester City Council,Manchester Leisure,Gas,02-Nov-23,1908265892,Corona Energy Ltd,"7,588.79"
Manchester City Council,Manchester Leisure,Gas,02-Nov-23,1908265893,Corona Energy Ltd,"9,949.32"
Manchester City Council,Manchester Leisure,Gas,02-Nov-23,1908265905,Corona Energy Ltd,"1,100.51"
Manchester City Council,Manchester Leisure,Gas,02-Nov-23,1908265907,Corona Energy Ltd,671.63
Manchester City Council,Manchester Leisure,Gas,02-Nov-23,1908265918,Corona Energy Ltd,"1,525.32"
Manchester City Council,Manchester Leisure,Gas,02-Nov-23,1908265919,Corona Energy Ltd,"2,000.83"
Manchester City Council,Manchester Leisure,Gas,02-Nov-23,1908265920,Corona Energy Ltd,"2,716.38"
Manchester City Council,Manchester Leisure,Gas,02-Nov-23,1908265921,Corona Energy Ltd,"1,514.01"
Manchester City Council,Manchester Leisure,Gas,02-Nov-23,1908265922,Corona Energy Ltd,"10,828.40"
Manchester City Council,Manchester Leisure,Gas,02-Nov-23,1908265923,Corona Energy Ltd,"5,927.04"
Manchester City Council,Manchester Leisure,Gas,02-Nov-23,1908265962,Corona Energy Ltd,"5,048.89"
Manchester City Council,Manchester Leisure,Gas,02-Nov-23,1908266019,Corona Energy Ltd,"6,235.52"
Manchester City Council,Manchester Leisure,Gas,02-Nov-23,1908266020,Corona Energy Ltd,"1,230.42"
Manchester City Council,Manchester Leisure,Gas,02-Nov-23,1908266021,Corona Energy Ltd,"6,459.73"
Manchester City Council,Manchester Leisure,Gas,02-Nov-23,1908266022,Corona Energy Ltd,"1,355.14"
Manchester City Council,Manchester Leisure,Gas,02-Nov-23,1908266023,Corona Energy Ltd,"7,738.23"
Manchester City Council,Manchester Leisure,Gas,02-Nov-23,1908266024,Corona Energy Ltd,"8,993.00"
Manchester City Council,Manchester Leisure,Gas,02-Nov-23,1908266048,Corona Energy Ltd,"4,225.16"
Manchester City Council,Manchester Leisure,Gas,02-Nov-23,1908266055,Corona Energy Ltd,"1,908.56"
Manchester City Council,Manchester Leisure,Gas,02-Nov-23,1908266057,Corona Energy Ltd,"1,593.50"
Manchester City Council,Manchester Leisure,Gas,02-Nov-23,1908266072,Corona Energy Ltd,"4,609.81"
Manchester City Council,Manchester Leisure,Gas,02-Nov-23,1908266073,Corona Energy Ltd,790.57
Manchester City Council,Manchester Leisure,Gas,02-Nov-23,1908266074,Corona Energy Ltd,"3,915.81"
Manchester City Council,Manchester Leisure,Gas,02-Nov-23,1908266075,Corona Energy Ltd,988.20
Manchester City Council,Manchester Leisure,Gas,02-Nov-23,1908266078,Corona Energy Ltd,601.71
Manchester City Council,Manchester Leisure,Gas,02-Nov-23,1908266079,Corona Energy Ltd,612.03
Manchester City Council,Manchester Leisure,Gas,02-Nov-23,1908266084,Corona Energy Ltd,"1,360.31"
Manchester City Council,Manchester Leisure,Gas,02-Nov-23,1908266098,Corona Energy Ltd,"4,037.75"
Manchester City Council,Manchester Leisure,Gas,02-Nov-23,1908266154,Corona Energy Ltd,622.36
Manchester City Council,Manchester Leisure,Gas,02-Nov-23,1908266178,Corona Energy Ltd,651.51
Manchester City Council,Hospitality + Trading Services,Gas,02-Nov-23,1908265896,Corona Energy Ltd,"1,208.32"
Manchester City Council,Hospitality + Trading Services,Gas,02-Nov-23,1908265910,Corona Energy Ltd,"5,640.04"
Manchester City Council,Hospitality + Trading Services,Gas,02-Nov-23,1908265980,Corona Energy Ltd,662.78
Manchester City Council,Childrens & Education Services,Gas,02-Nov-23,1908266077,Corona Energy Ltd,546.06
Manchester City Council,Adult Social Care,Gas,02-Nov-23,1908265969,Corona Energy Ltd,"1,151.30"
Manchester City Council,Adult Social Care,Gas,02-Nov-23,1908265983,Corona Energy Ltd,580.70
Manchester City Council,Adult Social Care,Gas,02-Nov-23,1908266039,Corona Energy Ltd,"1,055.06"
Manchester City Council,Adult Social Care,Gas,02-Nov-23,1908266120,Corona Energy Ltd,742.79
Manchester City Council,Adult Social Care,Gas,02-Nov-23,1908266182,Corona Energy Ltd,714.20
Manchester City Council,Corporate Services,Gas,02-Nov-23,1700160391,Corona Energy Ltd,"-5,446.20"
Manchester City Council,Corporate Services,Gas,02-Nov-23,1700160392,Corona Energy Ltd,"-1,148.79"
Manchester City Council,Corporate Services,Gas,02-Nov-23,1700160411,Corona Energy Ltd,-591.54
Manchester City Council,Corporate Services,Gas,02-Nov-23,1700160412,Corona Energy Ltd,-771.73
Manchester City Council,Corporate Services,Gas,02-Nov-23,1700160413,Corona Energy Ltd,"-1,011.51"
Manchester City Council,Corporate Services,Gas,02-Nov-23,1700160414,Corona Energy Ltd,-769.16
Manchester City Council,Corporate Services,Gas,02-Nov-23,1700160415,Corona Energy Ltd,"-1,250.20"
Manchester City Council,Corporate Services,Gas,02-Nov-23,1700160416,Corona Energy Ltd,-960.77
Manchester City Council,Corporate Services,Gas,02-Nov-23,1700160417,Corona Energy Ltd,"-1,671.62"
Manchester City Council,Corporate Services,Gas,02-Nov-23,1700160442,Corona Energy Ltd,-974.69
Manchester City Council,Corporate Services,Gas,02-Nov-23,1700160446,Corona Energy Ltd,-653.56
Manchester City Council,Corporate Services,Gas,02-Nov-23,1700160488,Corona Energy Ltd,"-1,091.48"
Manchester City Council,Corporate Services,Gas,02-Nov-23,1700160490,Corona Energy Ltd,-783.36
Manchester City Council,Corporate Services,Gas,02-Nov-23,1700160491,Corona Energy Ltd,-845.28
Manchester City Council,Corporate Services,Gas,02-Nov-23,1700160492,Corona Energy Ltd,-595.10
Manchester City Council,Corporate Services,Gas,02-Nov-23,1700160493,Corona Energy Ltd,-763.82
Manchester City Council,Corporate Services,Gas,02-Nov-23,1700160494,Corona Energy Ltd,-933.89
Manchester City Council,Corporate Services,Gas,02-Nov-23,1700160496,Corona Energy Ltd,"-1,383.18"
Manchester City Council,Corporate Services,Gas,02-Nov-23,1700160499,Corona Energy Ltd,"-2,498.48"
Manchester City Council,Corporate Services,Gas,02-Nov-23,1700160500,Corona Energy Ltd,"-1,293.79"
Manchester City Council,Corporate Services,Gas,02-Nov-23,1700160504,Corona Energy Ltd,-777.83
Manchester City Council,Corporate Services,Gas,02-Nov-23,1908265873,Corona Energy Ltd,"2,627.75"
Manchester City Council,Corporate Services,Gas,02-Nov-23,1908265874,Corona Energy Ltd,"5,209.48"
Manchester City Council,Corporate Services,Gas,02-Nov-23,1908265875,Corona Energy Ltd,"1,391.61"
Manchester City Council,Corporate Services,Gas,02-Nov-23,1908265876,Corona Energy Ltd,"5,446.20"
Manchester City Council,Corporate Services,Gas,02-Nov-23,1908265877,Corona Energy Ltd,"1,710.90"
Manchester City Council,Corporate Services,Gas,02-Nov-23,1908265881,Corona Energy Ltd,753.92
Manchester City Council,Corporate Services,Gas,02-Nov-23,1908265949,Corona Energy Ltd,960.77
Manchester City Council,Corporate Services,Gas,02-Nov-23,1908265950,Corona Energy Ltd,"1,671.62"
Manchester City Council,Corporate Services,Gas,02-Nov-23,1908265972,Corona Energy Ltd,538.74
Manchester City Council,Corporate Services,Gas,02-Nov-23,1908265977,Corona Energy Ltd,873.07
Manchester City Council,Corporate Services,Gas,02-Nov-23,1908265981,Corona Energy Ltd,"1,255.30"
Manchester City Council,Corporate Services,Gas,02-Nov-23,1908265987,Corona Energy Ltd,702.55
Manchester City Council,Corporate Services,Gas,02-Nov-23,1908265997,Corona Energy Ltd,"2,561.21"
Manchester City Council,Corporate Services,Gas,02-Nov-23,1908265998,Corona Energy Ltd,813.38
Manchester City Council,Corporate Services,Gas,02-Nov-23,1908266001,Corona Energy Ltd,866.66
Manchester City Council,Corporate Services,Gas,02-Nov-23,1908266002,Corona Energy Ltd,732.73
Manchester City Council,Corporate Services,Gas,02-Nov-23,1908266007,Corona Energy Ltd,508.00
Manchester City Council,Corporate Services,Gas,02-Nov-23,1908266008,Corona Energy Ltd,"1,109.26"
Manchester City Council,Corporate Services,Gas,02-Nov-23,1908266013,Corona Energy Ltd,631.90
Manchester City Council,Corporate Services,Gas,02-Nov-23,1908266018,Corona Energy Ltd,913.13
Manchester City Council,Corporate Services,Gas,02-Nov-23,1908266035,Corona Energy Ltd,974.69
Manchester City Council,Corporate Services,Gas,02-Nov-23,1908266043,Corona Energy Ltd,653.56
Manchester City Council,Corporate Services,Gas,02-Nov-23,1908266117,Corona Energy Ltd,"1,091.48"
Manchester City Council,Corporate Services,Gas,02-Nov-23,1908266156,Corona Energy Ltd,845.28
Manchester City Council,Corporate Services,Gas,02-Nov-23,1908266157,Corona Energy Ltd,783.36
Manchester City Council,Corporate Services,Gas,02-Nov-23,1908266158,Corona Energy Ltd,595.10
Manchester City Council,Corporate Services,Gas,02-Nov-23,1908266159,Corona Energy Ltd,933.89
Manchester City Council,Corporate Services,Gas,02-Nov-23,1908266160,Corona Energy Ltd,763.82
Manchester City Council,Corporate Services,Gas,02-Nov-23,1908266163,Corona Energy Ltd,"1,383.18"
Manchester City Council,Corporate Services,Gas,02-Nov-23,1908266165,Corona Energy Ltd,"2,498.48"
Manchester City Council,Corporate Services,Gas,02-Nov-23,1908266168,Corona Energy Ltd,"22,302.59"
Manchester City Council,Corporate Services,Gas,02-Nov-23,1908266169,Corona Energy Ltd,"26,334.39"
Manchester City Council,Corporate Services,Gas,02-Nov-23,1908266185,Corona Energy Ltd,"1,293.79"
Manchester City Council,Corporate Services,Gas,02-Nov-23,1908266189,Corona Energy Ltd,777.83
Manchester City Council,Housing Revenue Account,Gas,02-Nov-23,1908265886,Corona Energy Ltd,"1,590.38"
Manchester City Council,Housing Revenue Account,Gas,02-Nov-23,1908265887,Corona Energy Ltd,"1,198.34"
Manchester City Council,Housing Revenue Account,Gas,02-Nov-23,1908265914,Corona Energy Ltd,"1,418.53"
Manchester City Council,Housing Revenue Account,Gas,02-Nov-23,1908265946,Corona Energy Ltd,"10,427.39"
Manchester City Council,Housing Revenue Account,Gas,02-Nov-23,1908265964,Corona Energy Ltd,"1,078.51"
Manchester City Council,Housing Revenue Account,Gas,02-Nov-23,1908265978,Corona Energy Ltd,557.86
Manchester City Council,Housing Revenue Account,Gas,02-Nov-23,1908266004,Corona Energy Ltd,"1,845.39"
Manchester City Council,Housing Revenue Account,Gas,02-Nov-23,1908266005,Corona Energy Ltd,"1,808.32"
Manchester City Council,Housing Revenue Account,Gas,02-Nov-23,1908266025,Corona Energy Ltd,"1,440.14"
Manchester City Council,Housing Revenue Account,Gas,02-Nov-23,1908266127,Corona Energy Ltd,"1,354.33"
Manchester City Council,Housing Revenue Account,Gas,02-Nov-23,1908266129,Corona Energy Ltd,822.27
Manchester City Council,Housing Revenue Account,Gas,02-Nov-23,1908266138,Corona Energy Ltd,"1,314.51"
Manchester City Council,Housing Revenue Account,Gas,02-Nov-23,1908266171,Corona Energy Ltd,"11,735.83"
Manchester City Council,Housing Revenue Account,Gas,02-Nov-23,1908266172,Corona Energy Ltd,"9,083.86"
Manchester City Council,Regeneration Finance,Gas,02-Nov-23,1700160385,Corona Energy Ltd,-739.23
Manchester City Council,Regeneration Finance,Gas,02-Nov-23,1700160386,Corona Energy Ltd,-897.52
Manchester City Council,Regeneration Finance,Gas,02-Nov-23,1700160478,Corona Energy Ltd,"-1,646.85"
Manchester City Council,Regeneration Finance,Gas,02-Nov-23,1700160479,Corona Energy Ltd,-735.81
Manchester City Council,Regeneration Finance,Gas,02-Nov-23,1908265862,Corona Energy Ltd,739.77
Manchester City Council,Regeneration Finance,Gas,02-Nov-23,1908265863,Corona Energy Ltd,574.38
Manchester City Council,Regeneration Finance,Gas,02-Nov-23,1908265985,Corona Energy Ltd,815.19
Manchester City Council,Regeneration Finance,Gas,02-Nov-23,1908266016,Corona Energy Ltd,"1,226.70"
Manchester City Council,Regeneration Finance,Gas,02-Nov-23,1908266103,Corona Energy Ltd,"1,223.80"
Manchester City Council,Regeneration Finance,Gas,02-Nov-23,1908266104,Corona Energy Ltd,"1,647.79"
Manchester City Council,Regeneration Finance,Gas,02-Nov-23,1908266126,Corona Energy Ltd,924.23
Manchester City Council,Highways Services,Tipping - Tonnage,02-Nov-23,5105898634,Environment Agency,"1,824.00"
Manchester City Council,Adult Social Care,Extra Care Sheltd HP,02-Nov-23,5105898410,Sevacare (U K ) lTD,"27,254.10"
Manchester City Council,Adult Social Care,Extra Care Sheltd HP,02-Nov-23,5105898521,Sevacare (U K ) lTD,"44,843.00"
Manchester City Council,Adult Social Care,Bed & Breakfast Acc,02-Nov-23,5105898795,Redacted Personal Information,"12,236.00"
Manchester City Council,Adult Social Care,Rents,02-Nov-23,5105898835,Ashley Property services,"3,320.00"
Manchester City Council,Childrens & Education Services,Professional fees,02-Nov-23,5105898904,NT&AS,"2,694.50"
Manchester City Council,Regeneration Finance,Professional fees,02-Nov-23,5105898781,Jacobs UK Ltd,"2,206.35"
Manchester City Council,Chief Executives,Legal Fees,02-Nov-23,5105898789,Weightmans LLP Solicitors,604.50
Manchester City Council,Chief Executives,Legal Fees,02-Nov-23,5105898811,Weightmans LLP Solicitors,"2,352.17"
Manchester City Council,Chief Executives,I T Provision,02-Nov-23,5105898817,Zipporah Ltd,"1,890.12"
Manchester City Council,Chief Executives,I T Provision,02-Nov-23,5105898818,Zipporah Ltd,"5,047.67"
Manchester City Council,Chief Executives,I T Provision,02-Nov-23,5105898819,Zipporah Ltd,"4,986.30"
Manchester City Council,Chief Executives,Grant and subscriptions awarded,02-Nov-23,5105898765,The Law Society,747.00
Manchester City Council,Chief Executives,Grant and subscriptions awarded,02-Nov-23,5105898813,The Law Society,747.00
Manchester City Council,Environment and Operations,Construction Works,02-Nov-23,5105899009,Wilde Consultants Ltd,"-16,854.48"
Manchester City Council,Childrens & Education Services,Third party payments to other Local Authorities,02-Nov-23,5105898762,Redacted Personal Information,"6,005.42"
Manchester City Council,Corporate Services,I T Provision,02-Nov-23,5105898459,Trustmarque Solutions Ltd,"1,000.00"
Manchester City Council,Corporate Services,ICT Sup & Maintnance,02-Nov-23,5105898405,Trustmarque Solutions Ltd,"-39,650.00"
Manchester City Council,Corporate Services,ICT Sup & Maintnance,02-Nov-23,5105898406,Trustmarque Solutions Ltd,"18,120.00"
Manchester City Council,Regeneration Finance,Storage Costs,02-Nov-23,5105898675,Oasis UK formerly Box-It (NW),993.95
Manchester City Council,Regeneration Finance,Storage Costs,02-Nov-23,5105898676,Oasis UK formerly Box-It (NW),604.12
Manchester City Council,Childrens & Education Services,Furniture,02-Nov-23,5105898621,Oasis UK formerly Box-It (NW),"3,083.98"
Manchester City Council,Hospitality + Trading Services,Catering Provisions,02-Nov-23,5105899006,Ralph Livesey Ltd,"-63,242.50"
Manchester City Council,Hospitality + Trading Services,Catering Provisions,02-Nov-23,5105899007,Ralph Livesey Ltd,"-30,464.38"
Manchester City Council,Manchester Leisure,Professional fees,02-Nov-23,5105898569,Effusion LLP,792.00
Manchester City Council,Corporate Services,Agency staff provision,02-Nov-23,5105898901,Ashberry Recruitment Ltd,"1,968.30"
Manchester City Council,Corporate Services,Agency staff provision,02-Nov-23,5105898902,Ashberry Recruitment Ltd,"1,968.30"
Manchester City Council,Manchester Leisure,Payments to Sub-Contractors,02-Nov-23,5105898545,Scrutiny Cleaning Services,"1,125.00"
Manchester City Council,Manchester Leisure,Payments to Sub-Contractors,02-Nov-23,5105898546,Scrutiny Cleaning Services,"8,192.99"
Manchester City Council,Adult Social Care,Subsistence and Conference Expenses,02-Nov-23,5105898840,Urban Village Medical Practice,600.00
Manchester City Council,Adult Social Care,Landline Telephone,02-Nov-23,1908262212,St Helens & Knowsley Hospitals NHST,718.51
Manchester City Council,Chief Executives,Counsel Costs,02-Nov-23,1908265139,Kenworthy's Chambers,850.00
Manchester City Council,Adult Social Care,Third party payments to Health Authority,02-Nov-23,5105898689,NHS Supply Chain,570.40
Manchester City Council,Corporate Services,Equipment,02-Nov-23,5105898884,Eventures,"1,232.00"
Manchester City Council,Manchester Leisure,Grant and subscriptions awarded,02-Nov-23,5105898517,Wythenshawe Community Housing Group,"47,072.00"
Manchester City Council,Adult Social Care,Supported Accommodation,02-Nov-23,5105898846,Wythenshawe Community Housing Group,"1,410.37"
Manchester City Council,Adult Social Care,Rents,02-Nov-23,5105898846,Wythenshawe Community Housing Group,"1,424.15"
Manchester City Council,Corporate Services,I T Provision,02-Nov-23,5105898772,Vocera Communications UK Ltd,"-5,906.22"
Manchester City Council,Libraries and Theatres,Vehicle Plant Furniture and Equipment,02-Nov-23,5105898771,Vocera Communications UK Ltd,"-14,613.72"
Manchester City Council,Manchester Leisure,Works and associated costs for Land and Buildings,02-Nov-23,5105898763,One Green World,"4,000.00"
Manchester City Council,Childrens & Education Services,Transport Coach Hire,02-Nov-23,5105898777,Middleton Cars Ltd,"2,340.00"
Manchester City Council,Childrens & Education Services,Transport Coach Hire,02-Nov-23,5105898778,Middleton Cars Ltd,"1,440.00"
Manchester City Council,Childrens & Education Services,Transport Taxis,02-Nov-23,5105898743,Middleton Cars Ltd,"-2,340.00"
Manchester City Council,Childrens & Education Services,Transport Taxis,02-Nov-23,5105898745,Middleton Cars Ltd,"-1,440.00"
Manchester City Council,Adult Social Care,Payments for services,02-Nov-23,5105898780,Tom Harrison House,"3,480.00"
Manchester City Council,Adult Social Care,Bed & Breakfast Acc,02-Nov-23,5105898599,Redacted Personal Information,"1,480.00"
Manchester City Council,Housing Revenue Account,Professional fees,02-Nov-23,5105898773,Capita Property & Infras'ture Ltd,"11,225.00"
Manchester City Council,Adult Social Care,Professional fees,02-Nov-23,5105898577,Irish Town Manchester Ltd,"1,135.00"
Manchester City Council,Chief Executives,Payments to Sub-Contractors,02-Nov-23,5105898513,Redacted Personal Information,725.89
Manchester City Council,Chief Executives,Payments to Sub-Contractors,02-Nov-23,5105898719,Redacted Personal Information,665.85
Manchester City Council,Chief Executives,Payments to Sub-Contractors,02-Nov-23,5105898641,Redacted Personal Information,"1,189.88"
Manchester City Council,Chief Executives,Payments to Sub-Contractors,02-Nov-23,5105898520,Redacted Personal Information,518.24
Manchester City Council,Adult Social Care,Rents,02-Nov-23,5105898682,Housing Social Ltd,"4,720.00"
Manchester City Council,Childrens & Education Services,Foster Payments,02-Nov-23,5105898684,Foster Talk,"8,083.29"
Manchester City Council,Manchester Leisure,Agency staff provision,02-Nov-23,5105898825,Manchester Art Gallery,"1,746.23"
Manchester City Council,Environment and Operations,Construction Works,02-Nov-23,5105898601,Cadent Gas Ltd.,"59,515.68"
Manchester City Council,Environment and Operations,Construction Works,02-Nov-23,5105898602,Cadent Gas Ltd.,"-71,418.82"
Manchester City Council,Manchester Leisure,Grant and subscriptions awarded,02-Nov-23,5105898608,Alexandra Park Governance Board,"2,000.00"
Manchester City Council,Chief Executives,Professional fees,02-Nov-23,1908266366,Pickering Psychology Services Ltd,"6,733.30"
Manchester City Council,Corporate Services,Licences Purchase,02-Nov-23,5105899003,DigiCert Inc,"-15,301.00"
Manchester City Council,Corporate Services,Licences Purchase,02-Nov-23,5105899004,DigiCert Inc,"-13,910.00"
Manchester City Council,Corporate Services,Licences Purchase,02-Nov-23,5105899005,DigiCert Inc,"-13,910.00"
Manchester City Council,Chief Executives,Counsel Costs,02-Nov-23,1908171214,Central Chambers,600.00
Manchester City Council,Regeneration Finance,CRB Fees,02-Nov-23,5105898706,Complete Background Screening Ltd,860.00
Manchester City Council,Manchester Leisure,Grant and subscriptions awarded,02-Nov-23,5105898541,Sydney Jones Inbetweeners,850.00
Manchester City Council,Adult Social Care,Bed & Breakfast Acc,02-Nov-23,5105898600,Hala Guest House,620.00
Manchester City Council,Chief Executives,Payments to Sub-Contractors,02-Nov-23,5105898515,Redacted Personal Information,651.35
Manchester City Council,Corporate Services,WPS Awards,02-Nov-23,5105898505,Furniture Resource Centre Ltd,"1,157.72"
Manchester City Council,Corporate Services,WPS Awards,02-Nov-23,5105898639,Furniture Resource Centre Ltd,588.47
Manchester City Council,Corporate Services,WPS Awards,02-Nov-23,5105898757,Furniture Resource Centre Ltd,807.82
Manchester City Council,Corporate Services,Professional fees,02-Nov-23,5105898605,Pick Everard,"2,951.00"
Manchester City Council,Adult Social Care,Rents,02-Nov-23,5105898618,Houses4Homes 4U Ltd,"9,026.00"
Manchester City Council,Adult Social Care,Security,02-Nov-23,5105898922,UNIQUE SPECIALIST SERVICES,"1,404.00"
Manchester City Council,Adult Social Care,Security,02-Nov-23,5105898924,UNIQUE SPECIALIST SERVICES,"1,134.00"
Manchester City Council,Chief Executives,Legal Fees,02-Nov-23,5105898790,Isherwood Legal Limited,792.00
Manchester City Council,Manchester Leisure,Grant and subscriptions awarded,02-Nov-23,5105898796,Manchester Vineyard,"2,095.00"
Manchester City Council,Childrens & Education Services,Third party payments relating to Voluntary Organisations,02-Nov-23,5105898793,Citywall,"6,750.00"
Manchester City Council,Childrens & Education Services,Third party payments relating to Voluntary Organisations,02-Nov-23,5105898794,Citywall,"6,750.00"
Manchester City Council,Childrens & Education Services,Third party payments to other Local Authorities,02-Nov-23,5105898694,Inspire Training & Education,"14,299.92"
Manchester City Council,Manchester Leisure,Cleaning Equipment,02-Nov-23,5105898710,CPD Property Services,500.00
Manchester City Council,Manchester Leisure,Cleaning Equipment,02-Nov-23,5105898721,CPD Property Services,"2,250.00"
Manchester City Council,Childrens & Education Services,Third party payments to other Local Authorities,02-Nov-23,5105898764,4syte Funding Limited,752.07
Manchester City Council,Adult Social Care,Grant and subscriptions awarded,02-Nov-23,5105898610,Divrse Ltd,"55,350.00"
Manchester City Council,Adult Social Care,Bed & Breakfast Acc,02-Nov-23,5105898509,247Hotel.Com,935.00
Manchester City Council,Childrens & Education Services,Third party payments to other Local Authorities,02-Nov-23,5105898878,Heyhead Farm Education Centre Ltd,"15,675.00"
Manchester City Council,Childrens & Education Services,Third party payments to other Local Authorities,02-Nov-23,5105898923,Heyhead Farm Education Centre Ltd,"14,630.00"
Manchester City Council,Chief Executives,Payments to Sub-Contractors,02-Nov-23,5105898644,Redacted Personal Information,523.38
Manchester City Council,Adult Social Care,Rents,02-Nov-23,5105898623,NWA Housing Ltd,"1,660.12"
Manchester City Council,Adult Social Care,Furniture,02-Nov-23,5105898625,Rtech Group Limited,"1,716.66"
Manchester City Council,Adult Social Care,Furniture,02-Nov-23,5105898630,Rtech Group Limited,"9,825.01"
Manchester City Council,Adult Social Care,Furniture,02-Nov-23,5105898903,Rtech Group Limited,"5,766.68"
Manchester City Council,Adult Social Care,Furniture,02-Nov-23,5105898905,Rtech Group Limited,"3,841.67"
Manchester City Council,Chief Executives,Examination Fees,02-Nov-23,5105898567,Toxicology UK Ltd,"5,625.00"
Manchester City Council,Corporate Services,Training and Development,02-Nov-23,5105898497,UK Learning Network Limited,650.00
Manchester City Council,Adult Social Care,Furniture,02-Nov-23,5105898652,Rtec Carpets Ltd,615.00
Manchester City Council,Adult Social Care,Furniture,02-Nov-23,5105898730,Rtec Carpets Ltd,"1,294.00"
Manchester City Council,Manchester Leisure,Professional fees,02-Nov-23,5105898582,Redacted Personal Information,632.00
Manchester City Council,Manchester Leisure,Goods purchased for resale in Council outlets,02-Nov-23,5105898768,MDBKA,550.00
Manchester City Council,Manchester Leisure,Professional fees,02-Nov-23,5105898632,Substance 2005 Limited,"15,200.00"
Manchester City Council,Corporate Services,Compensation Payments,02-Nov-23,1908264815,Brown Turner Client Account,"1,233.88"
Manchester City Council,Childrens & Education Services,Payments for services,02-Nov-23,1908263561,Life Changing Education,"6,318.00"
Manchester City Council,Regeneration Finance,Professional fees,02-Nov-23,1908264791,Callack Consulting,"1,250.00"
Manchester City Council,Corporate Services,Transport Taxis,02-Nov-23,1700160505,MANTAX TAXIS - VT,"-14,475.10"
Manchester City Council,Corporate Services,Transport Taxis,02-Nov-23,1908266375,MANTAX TAXIS - VT,"14,475.10"
Manchester City Council,Corporate Services,Transport Taxis,02-Nov-23,1908266379,MANTAX TAXIS - VT,"12,062.59"
Manchester City Council,Adult Social Care,Rents,02-Nov-23,1908266403,"Glenthorpe Homes � J Khan, NY",850.00
Manchester City Council,Manchester Leisure,Special Event,02-Nov-23,1908264780,Inflect Partners Limited,"9,281.00"
Manchester City Council,Hospitality + Trading Services,Ext Sales - Other,02-Nov-23,1908264777,RCD Electrical Engineers Ltd,"1,205.00"
Manchester City Council,Regeneration Finance,Grant and subscriptions awarded,03-Nov-23,1908266402,Redacted personal info,"2,500.00"
Manchester City Council,Regeneration Finance,Grant and subscriptions awarded,03-Nov-23,1908266399,Redacted personal info,"2,500.00"
Manchester City Council,Regeneration Finance,Grant and subscriptions awarded,03-Nov-23,1908264774,Redacted personal info,"2,500.00"
Manchester City Council,Regeneration Finance,Grant and subscriptions awarded,03-Nov-23,1908266400,Redacted personal info,"2,500.00"
Manchester City Council,Regeneration Finance,Grant and subscriptions awarded,03-Nov-23,1908266406,Redacted personal info,"2,500.00"
Manchester City Council,Regeneration Finance,Grant and subscriptions awarded,03-Nov-23,1908266401,Redacted personal info,"2,500.00"
Manchester City Council,Regeneration Finance,Grant and subscriptions awarded,03-Nov-23,1908266407,Redacted personal info,"2,500.00"
Manchester City Council,Chief Executives,Professional fees,03-Nov-23,1908266422,Redacted personal info,"1,363.52"
Manchester City Council,Adult Social Care,Rents,03-Nov-23,1908266972,Redacted personal info,600.00
Manchester City Council,Chief Executives,Counsel Costs,03-Nov-23,1908266440,Redacted personal info,600.00
Manchester City Council,Regeneration Finance,Bank Charges,03-Nov-23,1908266405,Redacted personal info,"2,500.00"
Manchester City Council,Adult Social Care,Personal needs of client,03-Nov-23,5105898867,Prism Medical UK Carefree Division,730.78
Manchester City Council,Corporate Services,Training and Development,03-Nov-23,5105899181,North West Employers Ltd,500.00
Manchester City Council,Childrens & Education Services,Hire of Premises,03-Nov-23,5105898722,Benchill Community Centre,"1,225.00"
Manchester City Council,Regeneration Finance,Subsistence and Conference Expenses,03-Nov-23,5105899137,Assessment & Qualifications Allianc,"2,472.00"
Manchester City Council,Highways Services,Purchase of stores for re-distribution,03-Nov-23,5105899164,Instarmac Group Ltd,"1,320.48"
Manchester City Council,Insurance Fund,Engineering Ins,03-Nov-23,5105899017,Zurich Insurance,"2,024.77"
Manchester City Council,Highways Services,Purchase of stores for re-distribution,03-Nov-23,5105898458,Marshalls Mono Ltd,"1,940.00"
Manchester City Council,Manchester Leisure,Works and associated costs for Land and Buildings,03-Nov-23,5105899111,Kompan Ltd,"16,604.95"
Manchester City Council,Chief Executives,Equipment Operating Lease,03-Nov-23,5105898774,Xerox Finance Ltd,"6,839.31"
Manchester City Council,Chief Executives,Equipment Operating Lease,03-Nov-23,5105898775,Xerox Finance Ltd,"6,839.31"
Manchester City Council,Chief Executives,Equipment Operating Lease,03-Nov-23,5105898776,Xerox Finance Ltd,"-12,930.49"
Manchester City Council,Chief Executives,Equipment Operating Lease,03-Nov-23,5105898836,Xerox Finance Ltd,"4,239.61"
Manchester City Council,Chief Executives,Equipment Operating Lease,03-Nov-23,5105898837,Xerox Finance Ltd,"4,239.61"
Manchester City Council,Chief Executives,Equipment Operating Lease,03-Nov-23,5105898838,Xerox Finance Ltd,"-7,971.26"
Manchester City Council,Manchester Leisure,ICT Hardware,03-Nov-23,5105899123,BT PLC,667.76
Manchester City Council,Childrens & Education Services,Payments for services,03-Nov-23,5105898987,H.G. Care Services Ltd,"15,566.10"
Manchester City Council,Childrens & Education Services,Payments for services,03-Nov-23,5105898988,H.G. Care Services Ltd,"15,710.15"
Manchester City Council,Childrens & Education Services,Payments for services,03-Nov-23,5105898990,H.G. Care Services Ltd,"17,160.35"
Manchester City Council,Highways Services,Grounds Maintenance,03-Nov-23,5105898810,The Fountain Company Ltd,555.50
Manchester City Council,Highways Services,Grounds Maintenance,03-Nov-23,5105899076,The Fountain Company Ltd,"-6,047.00"
Manchester City Council,Highways Services,Grounds Maintenance,03-Nov-23,5105899078,The Fountain Company Ltd,667.50
Manchester City Council,Highways Services,Grounds Maintenance,03-Nov-23,5105899092,The Fountain Company Ltd,"4,535.00"
Manchester City Council,Highways Services,Grounds Maintenance,03-Nov-23,5105899094,The Fountain Company Ltd,630.50
Manchester City Council,Highways Services,Grounds Maintenance,03-Nov-23,5105899097,The Fountain Company Ltd,"2,294.00"
Manchester City Council,Highways Services,Grounds Maintenance,03-Nov-23,5105899098,The Fountain Company Ltd,"10,020.00"
Manchester City Council,Manchester Leisure,Special Event,03-Nov-23,5105899171,Utilities Design & Planning Ltd,"-6,084.19"
Manchester City Council,Manchester Leisure,Special Event,03-Nov-23,5105899174,Utilities Design & Planning Ltd,"6,084.19"
Manchester City Council,Highways Services,Professional fees,03-Nov-23,5105898910,Mace Ltd,"5,451.75"
Manchester City Council,Highways Services,Professional fees,03-Nov-23,5105899057,Mace Ltd,"-5,451.75"
Manchester City Council,Childrens & Education Services,Payments for services,03-Nov-23,5105898933,Reed Employment Plc,"8,140.96"
Manchester City Council,Environment and Operations,Construction Works,03-Nov-23,5105898646,Kings Chambers,"2,500.00"
Manchester City Council,Housing Revenue Account,Council Dwelling Adaptations,03-Nov-23,5105899033,Rexel UK Ltd,"1,281.67"
Manchester City Council,Manchester Leisure,Building Materials for direct delivery,03-Nov-23,5105899153,Rigby Taylor Ltd,771.60
Manchester City Council,Highways Services,Building Materials for direct delivery,03-Nov-23,5105899014,TARMAC,"1,329.70"
Manchester City Council,Corporate Services,Payments for services,03-Nov-23,5105898592,Victoria Baths Trust,"8,500.00"
Manchester City Council,Corporate Services,Payments for services,03-Nov-23,5105898593,Victoria Baths Trust,"7,430.00"
Manchester City Council,Manchester Leisure,Payments to Sub-Contractors,03-Nov-23,5105898733,Fairway Landscapes Ltd,634.50
Manchester City Council,Manchester Leisure,Special Event,03-Nov-23,5105898705,Event Technical Support,"13,895.56"
Manchester City Council,Adult Social Care,Third party payments relating to Voluntary Organisations,03-Nov-23,5105898911,The Depaul Trust,"100,000.00"
Manchester City Council,Adult Social Care,Third party payments relating to Voluntary Organisations,03-Nov-23,5105898935,The Depaul Trust,"10,603.50"
Manchester City Council,Manchester Leisure,Goods purchased for resale in Council outlets,03-Nov-23,5105899175,Cornflower Ltd,560.00
Manchester City Council,Housing Revenue Account,Council Dwelling Adaptations,03-Nov-23,5105899068,Pts Plumbing Trade Supplies,"2,265.72"
Manchester City Council,Housing Revenue Account,Council Dwelling Adaptations,03-Nov-23,5105899069,Pts Plumbing Trade Supplies,"2,240.77"
Manchester City Council,Housing Revenue Account,Council Dwelling Adaptations,03-Nov-23,5105899070,Pts Plumbing Trade Supplies,"3,352.59"
Manchester City Council,Housing Revenue Account,Council Dwelling Adaptations,03-Nov-23,5105899081,Pts Plumbing Trade Supplies,"1,657.63"
Manchester City Council,Housing Revenue Account,Council Dwelling Adaptations,03-Nov-23,5105899084,Pts Plumbing Trade Supplies,"1,672.47"
Manchester City Council,Housing Revenue Account,Council Dwelling Adaptations,03-Nov-23,5105899085,Pts Plumbing Trade Supplies,"6,339.64"
Manchester City Council,Adult Social Care,Professional fees,03-Nov-23,5105899045,Bennett Workplace Solutions Ltd,"1,278.00"
Manchester City Council,Adult Social Care,Professional fees,03-Nov-23,5105899312,Bennett Workplace Solutions Ltd,"-1,278.00"
Manchester City Council,Childrens & Education Services,Public Transport,03-Nov-23,5105898934,Stagecoach Manchester,"1,900.00"
Manchester City Council,Corporate Services,Travel Season TLS,03-Nov-23,5105898683,Stagecoach Manchester,670.00
Manchester City Council,Corporate Services,Travel Season TLS,03-Nov-23,5105898685,Stagecoach Manchester,670.00
Manchester City Council,Corporate Services,Transport Taxis,03-Nov-23,1908266943,City Car Club Ltd,"3,755.50"
Manchester City Council,Regeneration Finance,Printing,03-Nov-23,5105898953,Bay Media,"2,443.00"
Manchester City Council,Chief Executives,Postage,03-Nov-23,5105899102,Whistl North Ltd,"5,663.27"
Manchester City Council,Chief Executives,Legal Fees,03-Nov-23,5105899067,Russell & Russell Solicitors LLP,"5,106.25"
Manchester City Council,Chief Executives,Legal Fees,03-Nov-23,5105899088,Russell & Russell Solicitors LLP,"4,064.10"
Manchester City Council,Adult Social Care,Rents,03-Nov-23,5105898937,Southway Housing Trust,"4,110.00"
Manchester City Council,Adult Social Care,Rents,03-Nov-23,5105898939,Southway Housing Trust,"4,167.00"
Manchester City Council,Adult Social Care,Rents,03-Nov-23,5105898940,Southway Housing Trust,"8,221.50"
Manchester City Council,Adult Social Care,Rents,03-Nov-23,5105898941,Southway Housing Trust,"8,334.50"
Manchester City Council,Corporate Services,Payments to Sub-Contractors,03-Nov-23,5105898981,Video Receiving Centre Ltd,"1,440.00"
Manchester City Council,Chief Executives,Licences Purchase,03-Nov-23,5105899016,Snap Surveys Ltd,"1,535.00"
Manchester City Council,Chief Executives,Hire of Equipment,03-Nov-23,5105898576,Sterling Event Group,720.00
Manchester City Council,Environment and Operations,Construction Works,03-Nov-23,5105898504,Wilde Consultants Ltd,"1,100.00"
Manchester City Council,Adult Social Care,Professional fees,03-Nov-23,5105899186,Penna PLC,"8,981.00"
Manchester City Council,Manchester Leisure,Payments to Sub-Contractors,03-Nov-23,5105899133,Scrutiny Cleaning Services,"8,935.80"
Manchester City Council,Adult Social Care,Bed & Breakfast Acc,03-Nov-23,5105898982,Redacted Personal Information,"8,940.00"
Manchester City Council,Childrens & Education Services,Payments for services,03-Nov-23,5105899093,SOL Christian Academy,"25,122.68"
Manchester City Council,Manchester Leisure,Equipment,03-Nov-23,5105899149,One Green World,"1,250.00"
Manchester City Council,Manchester Leisure,Equipment,03-Nov-23,5105899151,One Green World,"1,070.00"
Manchester City Council,Manchester Leisure,Equipment,03-Nov-23,5105899066,Cromwell Polythene Limited,"10,626.00"
Manchester City Council,Corporate Services,Data Links,03-Nov-23,5105898808,The Networking People (TNP) Ltd,"2,513.30"
Manchester City Council,Environment and Operations,Construction Works,03-Nov-23,5105899161,IWJS Ltd,"7,125.00"
Manchester City Council,Adult Social Care,Rents,03-Nov-23,5105899032,District Homes Cic,"6,129.14"
Manchester City Council,Childrens & Education Services,Payments for services,03-Nov-23,5105899082,Fairfield Care Ltd,"4,672.76"
Manchester City Council,Childrens & Education Services,Payments for services,03-Nov-23,5105899083,Fairfield Care Ltd,"2,325.96"
Manchester City Council,Childrens & Education Services,Payments for services,03-Nov-23,5105898949,Prospero Teaching,500.00
Manchester City Council,Childrens & Education Services,Payments for services,03-Nov-23,5105898951,Prospero Teaching,500.00
Manchester City Council,Childrens & Education Services,Payments for services,03-Nov-23,5105898954,Prospero Teaching,500.00
Manchester City Council,Childrens & Education Services,Payments for services,03-Nov-23,5105898955,Prospero Teaching,500.00
Manchester City Council,Childrens & Education Services,Payments for services,03-Nov-23,5105898956,Prospero Teaching,500.00
Manchester City Council,Childrens & Education Services,Payments for services,03-Nov-23,5105898959,Prospero Teaching,500.00
Manchester City Council,Manchester Leisure,Grant and subscriptions awarded,03-Nov-23,5105898784,Manchester Active,"30,000.00"
Manchester City Council,Highways Services,Payments to Sub-Contractors,03-Nov-23,5105899158,Conservation Contracts Northwest,537.75
Manchester City Council,Corporate Services,Training and Development,03-Nov-23,5105899156,Abuka Ltd,850.00
Manchester City Council,Highways Services,Professional fees,03-Nov-23,5105898975,Waterman Infrastructure and,"3,439.50"
Manchester City Council,Highways Services,Professional fees,03-Nov-23,5105898978,Waterman Infrastructure and,"-3,439.50"
Manchester City Council,Corporate Services,Surveys Fees other,03-Nov-23,5105899163,Shield Environmental Services,"1,100.00"
Manchester City Council,Childrens & Education Services,Professional fees,03-Nov-23,5105898984,WALKING TOGETHER,560.00
Manchester City Council,Environment and Operations,Construction Works,03-Nov-23,5105899150,Ventbrook,"16,038.75"
Manchester City Council,Corporate Services,Car Parking Permits,03-Nov-23,5105898932,Yunex Ltd,"18,726.38"
Manchester City Council,Manchester Leisure,Special Event,03-Nov-23,5105899157,Redacted Personal Information,750.00
Manchester City Council,Manchester Leisure,Payments to Sub-Contractors,03-Nov-23,5105898925,APSE,700.00
Manchester City Council,Childrens & Education Services,Payments for services,03-Nov-23,5105899104,Care Solutions Recruitment,"1,038.40"
Manchester City Council,Adult Social Care,Rents,03-Nov-23,5105899110,NWA Housing Ltd,"1,660.12"
Manchester City Council,Manchester Leisure,Grant and subscriptions awarded,03-Nov-23,5105899056,Age Friendly Wythenshawe,"1,000.00"
Manchester City Council,Manchester Leisure,Grant and subscriptions awarded,03-Nov-23,5105899136,Age Friendly Wythenshawe,"1,000.00"
Manchester City Council,Corporate Services,Training and Development,03-Nov-23,5105899089,ASK Europe Limited,750.00
Manchester City Council,Adult Social Care,Rents,03-Nov-23,5105899132,Devon Homes,"2,650.00"
Manchester City Council,Adult Social Care,Furniture,03-Nov-23,5105899118,Devon Homes,"4,050.00"
Manchester City Council,Childrens & Education Services,Foster Payments,03-Nov-23,1908266971,Five Rivers Ireland Limited,"3,857.74"
Manchester City Council,Childrens & Education Services,Foster Payments,03-Nov-23,1908266973,Five Rivers Ireland Limited,"3,857.73"
Manchester City Council,Manchester Leisure,Goods purchased for resale in Council outlets,03-Nov-23,5105899080,Stockwell Ceramics,619.20
Manchester City Council,Adult Social Care,Furniture,03-Nov-23,5105898980,R&S Properties Ltd,"3,750.00"
Manchester City Council,Manchester Leisure,Grant and subscriptions awarded,03-Nov-23,5105898906,Focus and Fly CIC,"2,500.00"
Manchester City Council,Childrens & Education Services,Transport Taxis,03-Nov-23,5105899048,Travel Deluxe Limited,"4,800.00"
Manchester City Council,Manchester Leisure,Goods purchased for resale in Council outlets,03-Nov-23,1908266391,Nineteen Seventy Three Ltd,738.00
Manchester City Council,Chief Executives,Professional fees,03-Nov-23,1908266376,ISW Assessments Ltd,"1,889.50"
Manchester City Council,Adult Social Care,Rents,03-Nov-23,1908266977,Ben Rob Estates,"5,000.00"
Manchester City Council,Adult Social Care,Rents,03-Nov-23,1908266977,Ben Rob Estates,"5,796.78"
Manchester City Council,Adult Social Care,Rents,03-Nov-23,1908266976,RENNSOLUTION,"2,400.00"
Manchester City Council,Adult Social Care,Rents,03-Nov-23,1908266975,Woodberry Group,"4,780.00"
Manchester City Council,Adult Social Care,Rents,03-Nov-23,1908266975,Woodberry Group,"1,415.94"
Manchester City Council,Manchester Leisure,Special Event,03-Nov-23,1908266341,Aggreko UK Ltd,"22,024.99"
Manchester City Council,Regeneration Finance,Grant and subscriptions awarded,06-Nov-23,1908266728,Redacted personal info,"2,500.00"
Manchester City Council,Regeneration Finance,Grant and subscriptions awarded,06-Nov-23,1908266727,Redacted personal info,"2,500.00"
Manchester City Council,Regeneration Finance,Grant and subscriptions awarded,06-Nov-23,1908266730,Redacted personal info,"2,500.00"
Manchester City Council,Highways Services,Professional fees,06-Nov-23,5105899233,Vaisala Ltd,"2,732.00"
Manchester City Council,Corporate Services,Agency staff provision,06-Nov-23,5105899290,Michael Page International,672.00
Manchester City Council,Corporate Services,Agency staff provision,06-Nov-23,5105899301,Michael Page International,-672.00
Manchester City Council,Adult Social Care,Day Care Payments,06-Nov-23,5105899053,Age Concern Manchester,"10,000.00"
Manchester City Council,Adult Social Care,Day Care Payments,06-Nov-23,5105899054,Age Concern Manchester,"14,165.43"
Manchester City Council,Adult Social Care,Day Care Payments,06-Nov-23,5105899055,Age Concern Manchester,"10,520.49"
Manchester City Council,Highways Services,Grounds Maintenance,06-Nov-23,5105899204,The Fountain Company Ltd,930.75
Manchester City Council,Highways Services,Grounds Maintenance,06-Nov-23,5105899205,The Fountain Company Ltd,"3,915.00"
Manchester City Council,Highways Services,Building Materials for direct delivery,06-Nov-23,5105899192,William Smith Sons (Barnard Castle),693.92
Manchester City Council,Adult Social Care,Home Care ,06-Nov-23,5105899195,Standwalk Ltd,846.40
Manchester City Council,Highways Services,Building Materials for direct delivery,06-Nov-23,5105899304,TARMAC,916.54
Manchester City Council,Corporate Services,Grounds Maintenance,06-Nov-23,5105899159,Arboricultural Services Treework,600.00
Manchester City Council,Manchester Leisure,Cleaning Equipment and Materials,06-Nov-23,5105898478,Redgate Holdings Ltd,"14,028.84"
Manchester City Council,Manchester Leisure,Refuse Collection,06-Nov-23,5105898482,Redgate Holdings Ltd,"79,691.90"
Manchester City Council,Manchester Leisure,Grounds Maintenance,06-Nov-23,5105898476,Redgate Holdings Ltd,"11,246.50"
Manchester City Council,Manchester Leisure,Disposables,06-Nov-23,5105898470,Redgate Holdings Ltd,"117,558.64"
Manchester City Council,Manchester Leisure,Liquid Contnr Recycl,06-Nov-23,5105898471,Redgate Holdings Ltd,"8,900.96"
Manchester City Council,Manchester Leisure,Tipping - Tonnage,06-Nov-23,5105898480,Redgate Holdings Ltd,"96,028.97"
Manchester City Council,Childrens & Education Services,Professional fees,06-Nov-23,5105899217,Greater Manchester Police Sports &,560.00
Manchester City Council,Childrens & Education Services,Hire of Premises,06-Nov-23,5105899281,Greater Manchester Police Sports &,592.40
Manchester City Council,Manchester Leisure,Payments to Sub-Contractors,06-Nov-23,5105899256,Swans Travel Ltd,990.00
Manchester City Council,Chief Executives,Counsel Costs,06-Nov-23,1908263536,Redacted Personal Information,"2,770.83"
Manchester City Council,Chief Executives,Legal Fees,06-Nov-23,5105899197,Warwickshire County Council,"6,003.86"
Manchester City Council,Chief Executives,Legal Fees,06-Nov-23,5105899198,Warwickshire County Council,790.18
Manchester City Council,Chief Executives,Legal Fees,06-Nov-23,5105899200,Warwickshire County Council,552.93
Manchester City Council,Chief Executives,Legal Fees,06-Nov-23,5105899283,Warwickshire County Council,"1,666.75"
Manchester City Council,Chief Executives,Legal Fees,06-Nov-23,5105899287,Warwickshire County Council,"1,710.26"
Manchester City Council,Childrens & Education Services,Payments for services,06-Nov-23,5105899248,Teaching Personnel Ltd,600.00
Manchester City Council,Manchester Leisure,Professional fees,06-Nov-23,5105899253,Manchester Professional,"6,250.00"
Manchester City Council,Chief Executives,Grant Payments,06-Nov-23,5105899230,Commonwealth Local Government Forum,"2,390.00"
Manchester City Council,Manchester Leisure,Mobilephone Charges,06-Nov-23,5105899263,O2 (UK) Ltd,"2,084.09"
Manchester City Council,Childrens & Education Services,Professional fees,06-Nov-23,5105899271,Museum of Science & Industry,934.00
Manchester City Council,Manchester Leisure,Grant and subscriptions awarded,06-Nov-23,5105899252,Cheetham Cultural Festival T/a,"2,000.00"
Manchester City Council,Childrens & Education Services,Third party payments relating to Voluntary Organisations,06-Nov-23,5105899259,Remedi,"7,500.00"
Manchester City Council,Childrens & Education Services,Third party payments relating to Voluntary Organisations,06-Nov-23,5105899260,Remedi,"2,500.00"
Manchester City Council,Chief Executives,Legal Fees,06-Nov-23,5105899207,Weightmans LLP Solicitors,"3,420.50"
Manchester City Council,Chief Executives,Legal Fees,06-Nov-23,5105899208,Weightmans LLP Solicitors,"2,025.75"
Manchester City Council,Chief Executives,Legal Fees,06-Nov-23,5105899209,Weightmans LLP Solicitors,"2,296.50"
Manchester City Council,Manchester Leisure,Special Event,06-Nov-23,5105899099,MK Illuminations UK Ltd,"1,778.00"
Manchester City Council,Childrens & Education Services,Professional fees,06-Nov-23,5105899258,Signis Group,871.50
Manchester City Council,Manchester Leisure,Special Event,06-Nov-23,5105899169,Redacted Personal Information,500.00
Manchester City Council,Chief Executives,Professional fees,06-Nov-23,1908262220,Pickering Psychology Services Ltd,799.63
Manchester City Council,Chief Executives,Counsel Costs,06-Nov-23,1908262213,Central Chambers,650.00
Manchester City Council,Childrens & Education Services,Professional fees,06-Nov-23,5105899231,Prospero Teaching,500.00
Manchester City Council,Childrens & Education Services,Professional fees,06-Nov-23,5105899232,Prospero Teaching,500.00
Manchester City Council,Childrens & Education Services,Professional fees,06-Nov-23,5105899234,Prospero Teaching,500.00
Manchester City Council,Childrens & Education Services,Professional fees,06-Nov-23,5105899236,Prospero Teaching,500.00
Manchester City Council,Childrens & Education Services,Professional fees,06-Nov-23,5105899239,Prospero Teaching,500.00
Manchester City Council,Childrens & Education Services,Professional fees,06-Nov-23,5105899240,Prospero Teaching,500.00
Manchester City Council,Hospitality + Trading Services,Vehicle Fuel Costs,06-Nov-23,5105899305,Standard Fuels Oils,"18,937.50"
Manchester City Council,Adult Social Care,Bed & Breakfast Acc,06-Nov-23,5105899307,Hala Guest House,780.00
Manchester City Council,Childrens & Education Services,Personal needs of client,06-Nov-23,5105899264,Furniture Resource Centre Ltd,574.66
Manchester City Council,Childrens & Education Services,Personal needs of client,06-Nov-23,5105899265,Furniture Resource Centre Ltd,744.58
Manchester City Council,Corporate Services,WPS Awards,06-Nov-23,5105899160,Furniture Resource Centre Ltd,"2,025.16"
Manchester City Council,Adult Social Care,Personal needs of client,06-Nov-23,5105899221,YOURmedpack Ltd,"1,229.00"
Manchester City Council,Adult Social Care,Payments for services,06-Nov-23,5105899173,Slimming World,"10,410.00"
Manchester City Council,Adult Social Care,Third party payments relating to Voluntary Organisations,06-Nov-23,5105899292,Quays Housing,"15,376.26"
Manchester City Council,Chief Executives,Legal Fees,06-Nov-23,5105899168,Isherwood Legal Limited,960.00
Manchester City Council,Adult Social Care,Third party payments relating to Voluntary Organisations,06-Nov-23,5105899293,Change Grow Live Services Ltd,"540,735.67"
Manchester City Council,Adult Social Care,Third party payments relating to Voluntary Organisations,06-Nov-23,5105899294,Change Grow Live Services Ltd,"54,374.28"
Manchester City Council,Adult Social Care,Third party payments relating to Voluntary Organisations,06-Nov-23,5105899295,Change Grow Live Services Ltd,"3,768.67"
Manchester City Council,Adult Social Care,Third party payments relating to Voluntary Organisations,06-Nov-23,5105899297,Change Grow Live Services Ltd,"65,663.75"
Manchester City Council,Manchester Leisure,Construction Works,06-Nov-23,5105899162,WSP UK Limited,"12,500.00"
Manchester City Council,Manchester Leisure,Photocopying,06-Nov-23,5105899299,Arena Group Ltd,939.54
Manchester City Council,Corporate Services,Works and associated costs for Land and Buildings,06-Nov-23,5105899255,FEC Northern Gateway Development Lt,"1,666.67"
Manchester City Council,Manchester Leisure,Professional fees,06-Nov-23,5105899268,Redacted Personal Information,850.00
Manchester City Council,Insurance Fund,Insurance,06-Nov-23,1908266871,COSGROVE COSTINGS LIMITED,900.00
Manchester City Council,Housing Revenue Account,Council Dwelling Fees,06-Nov-23,5105899298,Forever Manchester,"15,827.00"
Manchester City Council,Corporate Services,I T Provision,06-Nov-23,5105899193,ThinkProject UK Limited,"2,250.00"
Manchester City Council,Manchester Leisure,Hire of Equipment,06-Nov-23,5105899147,Arena Group,"1,675.00"
Manchester City Council,Corporate Services,Payments to Sub-Contractors,06-Nov-23,5105899226,Sants Fabrications Ltd,"3,800.00"
Manchester City Council,Corporate Services,Payments to Sub-Contractors,06-Nov-23,5105899227,Sants Fabrications Ltd,"3,200.00"
Manchester City Council,Manchester Leisure,Special Event,06-Nov-23,5105899214,Redacted Personal Information,527.33
Manchester City Council,Corporate Services,Training and Development,06-Nov-23,5105899285,ASK Europe Limited,750.00
Manchester City Council,Manchester Leisure,Compensation Payments,06-Nov-23,1908266864,KPHP Limited,"12,750.00"
Manchester City Council,Corporate Services,Compensation Payments,06-Nov-23,1908266870,Robert Bingham Limited � Client Acc,"2,000.00"
Manchester City Council,Highways Services,Legal Fees,06-Nov-23,1908266868,Fletchers Solicitors Ltd,"9,368.16"
Manchester City Council,Regeneration Finance,Grant and subscriptions awarded,07-Nov-23,1908266957,Redacted personal info,"2,500.00"
Manchester City Council,Regeneration Finance,Grant and subscriptions awarded,07-Nov-23,1908266958,Redacted personal info,"2,500.00"
Manchester City Council,Adult Social Care,Rents,07-Nov-23,1700161038,Redacted personal info,"-3,590.00"
Manchester City Council,Adult Social Care,Rents,07-Nov-23,1908269053,Redacted personal info,"3,590.00"
Manchester City Council,Adult Social Care,Rents,07-Nov-23,1908269059,Redacted personal info,"2,300.00"
Manchester City Council,Adult Social Care,Rents,07-Nov-23,1908269059,Redacted personal info,"1,290.00"
Manchester City Council,Childrens & Education Services,Transport Taxis,07-Nov-23,5105899415,Hastings Private Hire,"9,144.00"
Manchester City Council,Childrens & Education Services,Transport Taxis,07-Nov-23,5105899444,Hastings Private Hire,"-9,144.00"
Manchester City Council,Corporate Services,I T Provision,07-Nov-23,5105899392,EE/T-Mobile,"1,090.87"
Manchester City Council,Chief Executives,Publications,07-Nov-23,5105899495,NLA Media Access Ltd,"12,453.48"
Manchester City Council,Manchester Leisure,Contract Cleaning External,07-Nov-23,5105898556,Clearview Event Services Limited,"13,128.42"
Manchester City Council,Housing Revenue Account,Council Dwelling Adaptations,07-Nov-23,5105899432,Handicare Accessibility Ltd,"4,027.00"
Manchester City Council,Manchester Leisure,Refuse Collection,07-Nov-23,5105898529,Ramora Ltd,"2,490.00"
Manchester City Council,Manchester Leisure,Grant and subscriptions awarded,07-Nov-23,5105899336,Moss Side Millennium Powerhouse Ltd,"1,808.00"
Manchester City Council,Highways Services,Building Materials for direct delivery,07-Nov-23,5105899363,TARMAC,"1,372.37"
Manchester City Council,Adult Social Care,Payments for services,07-Nov-23,5105899445,Big Life Centres,"6,024.50"
Manchester City Council,Manchester Leisure,Grant and subscriptions awarded,07-Nov-23,5105899440,Wai Yin Society,"1,550.12"
Manchester City Council,Manchester Leisure,Grant and subscriptions awarded,07-Nov-23,5105899440,Wai Yin Society,617.88
Manchester City Council,Housing Revenue Account,Council Dwelling Adaptations,07-Nov-23,5105899471,Stannah Lift Services Ltd,"6,872.00"
Manchester City Council,Childrens & Education Services,Payments for services,07-Nov-23,5105899410,Central Mcr Uni Hospital t/a,"7,652.40"
Manchester City Council,Childrens & Education Services,Childminding Fee Pay,07-Nov-23,5105899406,Central Mcr Uni Hospital t/a,779.01
Manchester City Council,Childrens & Education Services,Payments for services,07-Nov-23,5105899461,Irwell Valley Housing Association,"5,254.58"
Manchester City Council,Childrens & Education Services,Payments for services,07-Nov-23,5105899463,Irwell Valley Housing Association,"5,254.58"
Manchester City Council,Childrens & Education Services,Private Finance and Public Private partnership initiatives,07-Nov-23,5105899341,Manchester School Services Limited,"457,087.67"
Manchester City Council,Childrens & Education Services,Gas,07-Nov-23,5105899342,Manchester School Services Limited,"80,017.95"
Manchester City Council,Regeneration Finance,External repairs and maintenance for buildings,07-Nov-23,5105899196,P Mcguinness & Co Ltd,860.00
Manchester City Council,Highways Services,Legal Fees,07-Nov-23,1908266331,Department For Work & Pensions,766.00
Manchester City Council,Chief Executives,Legal Fees,07-Nov-23,5105899345,Warwickshire County Council,777.47
Manchester City Council,Chief Executives,Legal Fees,07-Nov-23,5105899346,Warwickshire County Council,628.65
Manchester City Council,Chief Executives,Legal Fees,07-Nov-23,5105899348,Warwickshire County Council,"1,116.80"
Manchester City Council,Chief Executives,Legal Fees,07-Nov-23,5105899402,Warwickshire County Council,501.65
Manchester City Council,Childrens & Education Services,Contract Cleaning External,07-Nov-23,5105899385,Brighter Beginnings (Newton Heath),"2,231.25"
Manchester City Council,Childrens & Education Services,Contract Cleaning External,07-Nov-23,5105899370,Brighter Beginnings Day Nursery,"1,673.43"
Manchester City Council,Childrens & Education Services,Contract Cleaning External,07-Nov-23,5105899382,Brighter Beginnings Day Nursery,"1,673.43"
Manchester City Council,Childrens & Education Services,Contract Cleaning External,07-Nov-23,5105899367,Brighter Beginnings (Charlestown),"2,231.25"
Manchester City Council,Adult Social Care,Legal Fees,07-Nov-23,5105899364,Redacted Personal Information,500.00
Manchester City Council,Adult Social Care,Legal Fees,07-Nov-23,5105899493,11KBW,500.00
Manchester City Council,Manchester Leisure,Grant and subscriptions awarded,07-Nov-23,5105899401,Healthy Me Healthy Communities,"1,715.00"
Manchester City Council,Regeneration Finance,Third party payments relating to Voluntary Organisations,07-Nov-23,5105899400,Reform Radio CIC,"4,380.00"
Manchester City Council,Adult Social Care,Third party payments relating to Voluntary Organisations,07-Nov-23,5105899321,One Manchester Limited,"10,140.00"
Manchester City Council,Adult Social Care,Bed & Breakfast Acc,07-Nov-23,5105899496,Redacted Personal Information,860.00
Manchester City Council,Adult Social Care,Rents,07-Nov-23,5105899421,K L Properties,"17,480.53"
Manchester City Council,Manchester Leisure,Grant Payments,07-Nov-23,5105899405,The Bread and Butter Thing,"27,843.72"
Manchester City Council,Childrens & Education Services,Payments for services,07-Nov-23,5105899359,Prospero Teaching,500.00
Manchester City Council,Childrens & Education Services,Payments for services,07-Nov-23,5105899360,Prospero Teaching,500.00
Manchester City Council,Childrens & Education Services,Payments for services,07-Nov-23,5105899371,Prospero Teaching,500.00
Manchester City Council,Childrens & Education Services,Payments for services,07-Nov-23,5105899372,Prospero Teaching,500.00
Manchester City Council,Childrens & Education Services,Payments for services,07-Nov-23,5105899373,Prospero Teaching,500.00
Manchester City Council,Childrens & Education Services,Payments for services,07-Nov-23,5105899375,Prospero Teaching,500.00
Manchester City Council,Childrens & Education Services,Payments for services,07-Nov-23,5105899376,Prospero Teaching,500.00
Manchester City Council,Childrens & Education Services,Payments for services,07-Nov-23,5105899377,Prospero Teaching,500.00
Manchester City Council,Childrens & Education Services,Payments for services,07-Nov-23,5105899379,Prospero Teaching,500.00
Manchester City Council,Childrens & Education Services,Payments for services,07-Nov-23,5105899409,Prospero Teaching,787.50
Manchester City Council,Childrens & Education Services,Payments for services,07-Nov-23,5105899451,Prospero Teaching,787.50
Manchester City Council,Childrens & Education Services,Payments for services,07-Nov-23,5105899455,Prospero Teaching,500.00
Manchester City Council,Childrens & Education Services,Payments for services,07-Nov-23,5105899456,Prospero Teaching,550.00
Manchester City Council,Childrens & Education Services,Payments for services,07-Nov-23,5105899457,Prospero Teaching,500.00
Manchester City Council,Childrens & Education Services,Payments for services,07-Nov-23,5105899481,Prospero Teaching,500.00
Manchester City Council,Adult Social Care,Equipment,07-Nov-23,5105899477,Herida Healthcare Plc,"2,019.60"
Manchester City Council,Manchester Leisure,Building Materials for direct delivery,07-Nov-23,5105899340,CPD Property Services,"2,795.00"
Manchester City Council,Manchester Leisure,Cleaning Equipment,07-Nov-23,5105899335,CPD Property Services,895.00
Manchester City Council,Manchester Leisure,Library Materials Acquisition,07-Nov-23,1908269003,Chorlton News,852.72
Manchester City Council,Manchester Leisure,Grant and subscriptions awarded,07-Nov-23,5105899357,Green Fingers Moston Community,"1,500.00"
Manchester City Council,Hospitality + Trading Services,Professional fees,07-Nov-23,5105899399,APSE,"8,680.00"
Manchester City Council,Regeneration Finance,Professional fees,07-Nov-23,5105899353,OTB Engineering Limited,"48,760.48"
Manchester City Council,Regeneration Finance,Professional fees,07-Nov-23,5105899354,OTB Engineering Limited,"1,900.00"
Manchester City Council,Regeneration Finance,Professional fees,07-Nov-23,5105899355,OTB Engineering Limited,"4,750.00"
Manchester City Council,Childrens & Education Services,Payments for services,07-Nov-23,5105899482,Positive Care Solutions Ltd,720.00
Manchester City Council,Childrens & Education Services,Third party payments to other Local Authorities,07-Nov-23,5105899483,Marlborough Primary School,"3,481.00"
Manchester City Council,Childrens & Education Services,Professional fees,07-Nov-23,1908264801,Expert Psychology Consultancy Ltd,748.80
Manchester City Council,Manchester Leisure,Professional fees,07-Nov-23,1908261224,OH Digital Limited,"4,100.00"
Manchester City Council,Adult Social Care,Rents,07-Nov-23,1908269060,MODUSSIR CHOUDHURY,"5,600.00"
Manchester City Council,Hospitality + Trading Services,Hire of Equipment,07-Nov-23,1908266944,Marks & Spencer PLC,"5,000.00"
Manchester City Council,Adult Social Care,Rents,08-Nov-23,1908270945,Redacted personal info,"4,900.00"
Manchester City Council,Adult Social Care,Rents,08-Nov-23,1908270947,Redacted personal info,"9,600.00"
Manchester City Council,Adult Social Care,Rents,08-Nov-23,1908270947,Redacted personal info,"7,178.60"
Manchester City Council,Childrens & Education Services,Rents,08-Nov-23,1908261117,Redacted personal info,"8,993.63"
Manchester City Council,Corporate Services,Sanitary/Medcal Wast,08-Nov-23,5105899550,Initial Medical Services,"1,037.66"
Manchester City Council,Adult Social Care,Equipment,08-Nov-23,5105899540,RNIB,750.00
Manchester City Council,Hospitality + Trading Services,Hire of Machinery,08-Nov-23,5105899614,F.R.Sharrock Ltd,"-33,294.53"
Manchester City Council,Hospitality + Trading Services,Hire of Machinery,08-Nov-23,5105899615,F.R.Sharrock Ltd,"32,594.53"
Manchester City Council,Hospitality + Trading Services,Hire of Machinery,08-Nov-23,5105899616,F.R.Sharrock Ltd,"32,594.53"
Manchester City Council,Adult Social Care,Payments for services,08-Nov-23,5105899462,Holgate House,"1,188.59"
Manchester City Council,Adult Social Care,Payments for services,08-Nov-23,5105899464,Holgate House,"-1,188.59"
Manchester City Council,Chief Executives,Advertising,08-Nov-23,5105899447,Hemming Group Ltd,675.00
Manchester City Council,Chief Executives,Advertising,08-Nov-23,5105899448,Hemming Group Ltd,675.00
Manchester City Council,Chief Executives,Advertising,08-Nov-23,5105899449,Hemming Group Ltd,675.00
Manchester City Council,Chief Executives,Advertising,08-Nov-23,5105899450,Hemming Group Ltd,562.50
Manchester City Council,Chief Executives,Advertising,08-Nov-23,5105899472,Hemming Group Ltd,675.00
Manchester City Council,Chief Executives,Advertising,08-Nov-23,5105899473,Hemming Group Ltd,675.00
Manchester City Council,Chief Executives,Advertising,08-Nov-23,5105899474,Hemming Group Ltd,675.00
Manchester City Council,Hospitality + Trading Services,Hire of Machinery,08-Nov-23,5105899554,R & M Developments Ltd,"1,073.50"
Manchester City Council,Regeneration Finance,Legal Fees,08-Nov-23,1908270951,Redacted Personal Information,"18,400.00"
Manchester City Council,Manchester Leisure,Building Materials for direct delivery,08-Nov-23,5105899621,Arboricultural Services Treework,700.00
Manchester City Council,Manchester Leisure,Building Materials for direct delivery,08-Nov-23,5105899622,Arboricultural Services Treework,"1,000.00"
Manchester City Council,Manchester Leisure,Payments to Sub-Contractors,08-Nov-23,5105899610,Arboricultural Services Treework,"11,250.00"
Manchester City Council,Corporate Services,Grounds Maintenance,08-Nov-23,5105899570,Arboricultural Services Treework,600.00
Manchester City Council,Highways Services,Private Finance and Public Private partnership initiatives,08-Nov-23,5105898604,Amey Highways Lighting (Manchester),"772,527.80"
Manchester City Council,Adult Social Care,Third party payments to Health Authority,08-Nov-23,5105899574,Greater Manchester Mental Health,"-401,023.00"
Manchester City Council,Chief Executives,Professional fees,08-Nov-23,5105899059,Manchester International Festival,"45,715.50"
Manchester City Council,Adult Social Care,Third party payments relating to Voluntary Organisations,08-Nov-23,5105899393,Citizens Advice Manchester,"80,000.00"
Manchester City Council,Chief Executives,Printing,08-Nov-23,5105899499,Wallace Printers Ltd,553.00
Manchester City Council,Manchester Leisure,Grant and subscriptions awarded,08-Nov-23,1908270955,University Of Manchester,"16,946.70"
Manchester City Council,Chief Executives,Printing,08-Nov-23,5105899235,Browns CTP Ltd,698.00
Manchester City Council,Childrens & Education Services,Legal Fees,08-Nov-23,5105899504,Warwickshire County Council,"1,851.42"
Manchester City Council,Chief Executives,Legal Fees,08-Nov-23,5105899502,Warwickshire County Council,"1,651.20"
Manchester City Council,Chief Executives,Legal Fees,08-Nov-23,5105899503,Warwickshire County Council,829.35
Manchester City Council,Adult Social Care,Professional fees,08-Nov-23,5105899514,Bennett Workplace Solutions Ltd,947.99
Manchester City Council,Adult Social Care,Furniture,08-Nov-23,5105899389,Bennett Workplace Solutions Ltd,"1,373.00"
Manchester City Council,Adult Social Care,Furniture,08-Nov-23,5105899512,Bennett Workplace Solutions Ltd,"1,234.95"
Manchester City Council,Childrens & Education Services,Payments for services,08-Nov-23,5105899525,Teaching Personnel Ltd,640.00
Manchester City Council,Childrens & Education Services,Payments for services,08-Nov-23,5105899561,Teaching Personnel Ltd,500.00
Manchester City Council,Childrens & Education Services,Personal needs of client,08-Nov-23,5105899625,Phonak UK,"-6,172.12"
Manchester City Council,Environment and Operations,Construction Works,08-Nov-23,5105898792,Malcolm Hughes Land Surveyors Ltd,"1,950.00"
Manchester City Council,Manchester Leisure,Payments to Sub-Contractors,08-Nov-23,5105899500,Lubbe & Sons (Bulbs) Ltd,"13,249.50"
Manchester City Council,Manchester Leisure,Payments to Sub-Contractors,08-Nov-23,5105899513,Lubbe & Sons (Bulbs) Ltd,"1,770.50"
Manchester City Council,Chief Executives,Legal Fees,08-Nov-23,5105899517,Weightmans LLP Solicitors,"8,060.42"
Manchester City Council,Regeneration Finance,Storage Costs,08-Nov-23,1908270980,Oasis UK formerly Box-It (NW),"23,889.61"
Manchester City Council,Manchester Leisure,Payments to Sub-Contractors,08-Nov-23,5105899520,Groundwork & Leisure Services Ltd,890.00
Manchester City Council,Corporate Services,Agency staff provision,08-Nov-23,5105899587,Ashberry Recruitment Ltd,"1,968.30"
Manchester City Council,Adult Social Care,Grant and subscriptions awarded,08-Nov-23,5105899571,Manchester Mind,"5,602.16"
Manchester City Council,Manchester Leisure,Heating Oil,08-Nov-23,5105898742,Greenwich Leisure Limited,"12,662.96"
Manchester City Council,Chief Executives,Floral Decorations,08-Nov-23,5105899331,Eventures,825.00
Manchester City Council,Chief Executives,Payments to Sub-Contractors,08-Nov-23,5105899575,Redacted Personal Information,559.65
Manchester City Council,Adult Social Care,Payments for services,08-Nov-23,5105899485,Delphi Medical,"1,995.00"
Manchester City Council,Adult Social Care,Water - Metered,08-Nov-23,5105899583,Water Plus Limited,"3,089.95"
Manchester City Council,Chief Executives,Printing,08-Nov-23,5105899603,Impression (Bolton) Ltd,958.00
Manchester City Council,Chief Executives,Printing,08-Nov-23,5105899604,Impression (Bolton) Ltd,"2,691.00"
Manchester City Council,Chief Executives,Printing,08-Nov-23,5105899466,Geiger Limited,587.50
Manchester City Council,Manchester Leisure,Grant Payments,08-Nov-23,5105899590,The Bread and Butter Thing,"3,168.00"
Manchester City Council,Childrens & Education Services,Personal needs of client,08-Nov-23,5105898691,Furniture Resource Centre Ltd,755.24
Manchester City Council,Adult Social Care,Personal needs of client,08-Nov-23,5105899545,YOURmedpack Ltd,"9,443.57"
Manchester City Council,Adult Social Care,Personal needs of client,08-Nov-23,5105899628,YOURmedpack Ltd,"-9,443.57"
Manchester City Council,Manchester Leisure,GRIR,08-Nov-23,5105899814,Grahams (Holdings) Ltd,-962.00
Manchester City Council,Manchester Leisure,Cleaning Equipment,08-Nov-23,5105899508,CPD Property Services,595.00
Manchester City Council,Chief Executives,Payments to Sub-Contractors,08-Nov-23,5105899560,Redacted Personal Information,690.00
Manchester City Council,Highways Services,Building Materials for direct delivery,08-Nov-23,5105899480,STANDARD SIGNS & TRAFFIC SYSTEMS,"1,126.00"
Manchester City Council,Corporate Services,Training and Development,08-Nov-23,5105899572,ASK Europe Limited,750.00
Manchester City Council,Manchester Leisure,Water - Unmetered,08-Nov-23,1908266442,Business Stream,"4,073.74"
Manchester City Council,Manchester Leisure,Water - Unmetered,08-Nov-23,1908266595,Business Stream,"16,154.00"
Manchester City Council,Manchester Leisure,Water - Unmetered,08-Nov-23,1908266596,Business Stream,"16,340.20"
Manchester City Council,Manchester Leisure,Water - Unmetered,08-Nov-23,1908266603,Business Stream,"15,574.82"
Manchester City Council,Manchester Leisure,Special Event,08-Nov-23,1908210220,Ambrose Musiyiwa,"1,183.20"
Manchester City Council,Adult Social Care,Rents,09-Nov-23,1908272161,Redacted personal info,"1,600.00"
Manchester City Council,Chief Executives,Counsel Costs,09-Nov-23,1908266967,Redacted personal info,937.50
Manchester City Council,Chief Executives,Counsel Costs,09-Nov-23,1908269074,Redacted personal info,666.66
Manchester City Council,Chief Executives,Grant Payments,09-Nov-23,5105899801,Oldham Borough Council,"5,925.00"
Manchester City Council,Adult Social Care,Supporting People Payments,09-Nov-23,5105899826,People First Housing Association,"13,833.27"
Manchester City Council,Adult Social Care,Supporting People Payments,09-Nov-23,5105899828,People First Housing Association,"13,833.27"
Manchester City Council,Adult Social Care,Supporting People Payments,09-Nov-23,5105899922,People First Housing Association,"13,833.27"
Manchester City Council,Corporate Services,Legal Fees,09-Nov-23,5105899811,Eversheds Llp,"11,043.00"
Manchester City Council,Adult Social Care,Equipment,09-Nov-23,5105899875,Prism Medical UK Carefree Division,"5,950.00"
Manchester City Council,Manchester Leisure,Grant and subscriptions awarded,09-Nov-23,5105899652,Benchill Community Centre,"1,085.00"
Manchester City Council,Adult Social Care,Equipment,09-Nov-23,5105899785,Drive Devilbiss Sidhil Ltd,523.60
Manchester City Council,Corporate Services,Cash Collection,09-Nov-23,5105899874,NSL Ltd,"5,343.37"
Manchester City Council,Corporate Services,Cash Collection,09-Nov-23,5105899876,NSL Ltd,"-5,502.43"
Manchester City Council,Corporate Services,Cash Collection,09-Nov-23,5105899877,NSL Ltd,"5,502.43"
Manchester City Council,Manchester Leisure,Payments to Contractors,09-Nov-23,5105899638,NSL Ltd,"16,663.31"
Manchester City Council,Corporate Services,Payments to Contractors,09-Nov-23,5105899872,NSL Ltd,"-5,343.37"
Manchester City Council,Chief Executives,Publications,09-Nov-23,5105899927,Lexis Nexis Uk,"26,432.00"
Manchester City Council,Adult Social Care,Gas,09-Nov-23,1700161177,Scottish & Southern Energy Plc,"-1,067.10"
Manchester City Council,Adult Social Care,Gas,09-Nov-23,1908272065,Scottish & Southern Energy Plc,"1,200.83"
Manchester City Council,Adult Social Care,Gas,09-Nov-23,1908272066,Scottish & Southern Energy Plc,"1,017.22"
Manchester City Council,Adult Social Care,Gas,09-Nov-23,1908272069,Scottish & Southern Energy Plc,983.85
Manchester City Council,Adult Social Care,Gas,09-Nov-23,1908272072,Scottish & Southern Energy Plc,"1,769.79"
Manchester City Council,Adult Social Care,Gas,09-Nov-23,1908272073,Scottish & Southern Energy Plc,"1,245.91"
Manchester City Council,Adult Social Care,Gas,09-Nov-23,1908272074,Scottish & Southern Energy Plc,684.92
Manchester City Council,Housing Revenue Account,Gas,09-Nov-23,1908272067,Scottish & Southern Energy Plc,"1,223.75"
Manchester City Council,Manchester Leisure,Electricity,09-Nov-23,1700161115,Scottish & Southern Energy Plc,-595.05
Manchester City Council,Manchester Leisure,Electricity,09-Nov-23,1700161116,Scottish & Southern Energy Plc,-515.81
Manchester City Council,Manchester Leisure,Electricity,09-Nov-23,1700161117,Scottish & Southern Energy Plc,-542.02
Manchester City Council,Manchester Leisure,Electricity,09-Nov-23,1700161124,Scottish & Southern Energy Plc,-663.30
Manchester City Council,Manchester Leisure,Electricity,09-Nov-23,1700161125,Scottish & Southern Energy Plc,-697.27
Manchester City Council,Manchester Leisure,Electricity,09-Nov-23,1700161126,Scottish & Southern Energy Plc,-551.98
Manchester City Council,Manchester Leisure,Electricity,09-Nov-23,1700161128,Scottish & Southern Energy Plc,-654.67
Manchester City Council,Manchester Leisure,Electricity,09-Nov-23,1908271883,Scottish & Southern Energy Plc,564.07
Manchester City Council,Manchester Leisure,Electricity,09-Nov-23,1908271916,Scottish & Southern Energy Plc,508.35
Manchester City Council,Manchester Leisure,Electricity,09-Nov-23,1908271923,Scottish & Southern Energy Plc,597.79
Manchester City Council,Childrens & Education Services,Electricity,09-Nov-23,1700161150,Scottish & Southern Energy Plc,-513.86
Manchester City Council,Childrens & Education Services,Electricity,09-Nov-23,1700161151,Scottish & Southern Energy Plc,"-5,426.43"
Manchester City Council,Childrens & Education Services,Electricity,09-Nov-23,1700161153,Scottish & Southern Energy Plc,"-3,053.35"
Manchester City Council,Childrens & Education Services,Electricity,09-Nov-23,1700161154,Scottish & Southern Energy Plc,"-3,054.28"
Manchester City Council,Childrens & Education Services,Electricity,09-Nov-23,1700161155,Scottish & Southern Energy Plc,"-3,054.28"
Manchester City Council,Childrens & Education Services,Electricity,09-Nov-23,1700161156,Scottish & Southern Energy Plc,"-1,983.24"
Manchester City Council,Adult Social Care,Electricity,09-Nov-23,1700161084,Scottish & Southern Energy Plc,-582.66
Manchester City Council,Adult Social Care,Electricity,09-Nov-23,1700161085,Scottish & Southern Energy Plc,-629.34
Manchester City Council,Adult Social Care,Electricity,09-Nov-23,1700161086,Scottish & Southern Energy Plc,-651.82
Manchester City Council,Adult Social Care,Electricity,09-Nov-23,1700161174,Scottish & Southern Energy Plc,-681.13
Manchester City Council,Adult Social Care,Electricity,09-Nov-23,1908271887,Scottish & Southern Energy Plc,629.34
Manchester City Council,Adult Social Care,Electricity,09-Nov-23,1908271888,Scottish & Southern Energy Plc,582.66
Manchester City Council,Adult Social Care,Electricity,09-Nov-23,1908271889,Scottish & Southern Energy Plc,604.07
Manchester City Council,Adult Social Care,Electricity,09-Nov-23,1908271890,Scottish & Southern Energy Plc,614.82
Manchester City Council,Adult Social Care,Electricity,09-Nov-23,1908271925,Scottish & Southern Energy Plc,839.24
Manchester City Council,Adult Social Care,Electricity,09-Nov-23,1908271953,Scottish & Southern Energy Plc,956.05
Manchester City Council,Adult Social Care,Electricity,09-Nov-23,1908271954,Scottish & Southern Energy Plc,"1,982.45"
Manchester City Council,Adult Social Care,Electricity,09-Nov-23,1908271957,Scottish & Southern Energy Plc,706.56
Manchester City Council,Adult Social Care,Electricity,09-Nov-23,1908272023,Scottish & Southern Energy Plc,603.16
Manchester City Council,Adult Social Care,Electricity,09-Nov-23,1908272049,Scottish & Southern Energy Plc,583.20
Manchester City Council,Corporate Services,Electricity,09-Nov-23,1908271962,Scottish & Southern Energy Plc,"1,488.58"
Manchester City Council,Corporate Services,Electricity,09-Nov-23,1908271983,Scottish & Southern Energy Plc,"1,036.90"
Manchester City Council,Corporate Services,Electricity,09-Nov-23,1908271994,Scottish & Southern Energy Plc,"1,288.90"
Manchester City Council,Regeneration Finance,Electricity,09-Nov-23,1908271978,Scottish & Southern Energy Plc,"6,542.67"
Manchester City Council,Regeneration Finance,Electricity,09-Nov-23,1908272006,Scottish & Southern Energy Plc,"4,846.85"
Manchester City Council,Manchester Leisure,Library Materials Acquisition,09-Nov-23,1908268936,Martin-Lavell Limited,"1,532.71"
Manchester City Council,Hospitality + Trading Services,Building Materials for direct delivery,09-Nov-23,5105899882,Killgerm Chemicals Ltd,"1,080.00"
Manchester City Council,Hospitality + Trading Services,Vehicle Hire Costs,09-Nov-23,5105899891,F.R.Sharrock Ltd,609.00
Manchester City Council,Hospitality + Trading Services,Hire of Machinery,09-Nov-23,5105899924,F.R.Sharrock Ltd,"5,124.00"
Manchester City Council,Regeneration Finance,Gas,09-Nov-23,5105899943,British Gas Plc,552.14
Manchester City Council,Corporate Services,Landline Telephone,09-Nov-23,1908265134,BT PLC,"46,524.17"
Manchester City Council,Chief Executives,Publications,09-Nov-23,5105899660,NLA Media Access Ltd,"1,245.35"
Manchester City Council,Childrens & Education Services,Transport Coach Hire,09-Nov-23,5105900005,Street Cars,"5,000.00"
Manchester City Council,Childrens & Education Services,Transport Coach Hire,09-Nov-23,5105900006,Street Cars,"10,000.00"
Manchester City Council,Childrens & Education Services,Transport Coach Hire,09-Nov-23,5105900007,Street Cars,"10,000.00"
Manchester City Council,Childrens & Education Services,Transport Coach Hire,09-Nov-23,5105900008,Street Cars,"5,000.00"
Manchester City Council,Childrens & Education Services,Transport Coach Hire,09-Nov-23,5105900009,Street Cars,"1,541.00"
Manchester City Council,Childrens & Education Services,Transport Coach Hire,09-Nov-23,5105900048,Street Cars,"20,000.00"
Manchester City Council,Childrens & Education Services,Transport Coach Hire,09-Nov-23,5105900049,Street Cars,"10,000.00"
Manchester City Council,Childrens & Education Services,Transport Coach Hire,09-Nov-23,5105900050,Street Cars,"8,012.00"
Manchester City Council,Housing Revenue Account,Training and Development,09-Nov-23,5105899947,The Manchester College,650.00
Manchester City Council,Adult Social Care,Third party payments relating to Voluntary Organisations,09-Nov-23,5105898868,Gaddum Centre,"143,401.00"
Manchester City Council,Corporate Services,I T Provision,09-Nov-23,5105899663,NEC Software Solutions UK Ltd,"6,300.00"
Manchester City Council,Highways Services,Payments to Sub-Contractors,09-Nov-23,5105899776,Utilities Design & Planning Ltd,"9,367.36"
Manchester City Council,Highways Services,Payments to Sub-Contractors,09-Nov-23,5105899778,Utilities Design & Planning Ltd,"1,728.00"
Manchester City Council,Highways Services,Payments to Sub-Contractors,09-Nov-23,5105899779,Utilities Design & Planning Ltd,"1,100.00"
Manchester City Council,Highways Services,Payments to Sub-Contractors,09-Nov-23,5105899800,Utilities Design & Planning Ltd,575.00
Manchester City Council,Highways Services,Payments to Sub-Contractors,09-Nov-23,5105899802,Utilities Design & Planning Ltd,"1,200.00"
Manchester City Council,Highways Services,Payments to Sub-Contractors,09-Nov-23,5105899805,Utilities Design & Planning Ltd,600.00
Manchester City Council,Highways Services,Payments to Sub-Contractors,09-Nov-23,5105899806,Utilities Design & Planning Ltd,"4,052.00"
Manchester City Council,Highways Services,Payments to Sub-Contractors,09-Nov-23,5105899910,Utilities Design & Planning Ltd,"2,000.00"
Manchester City Council,Highways Services,Payments to Sub-Contractors,09-Nov-23,5105899942,Utilities Design & Planning Ltd,"3,257.50"
Manchester City Council,Highways Services,Payments to Sub-Contractors,09-Nov-23,5105899951,Utilities Design & Planning Ltd,"2,000.00"
Manchester City Council,Highways Services,Payments to Sub-Contractors,09-Nov-23,5105899952,Utilities Design & Planning Ltd,"2,000.00"
Manchester City Council,Highways Services,Grounds Maintenance,09-Nov-23,5105899737,Utilities Design & Planning Ltd,570.93
Manchester City Council,Highways Services,Grounds Maintenance,09-Nov-23,5105899738,Utilities Design & Planning Ltd,-570.93
Manchester City Council,Hospitality + Trading Services,Hire of Machinery,09-Nov-23,5105899810,R & M Developments Ltd,"1,073.50"
Manchester City Council,Hospitality + Trading Services,Hire of Machinery,09-Nov-23,5105899998,R & M Developments Ltd,"1,073.50"
Manchester City Council,Hospitality + Trading Services,Hire of Machinery,09-Nov-23,5105900032,R & M Developments Ltd,"1,073.50"
Manchester City Council,Manchester Leisure,Cleaning Equipment and Materials,09-Nov-23,5105899868,Moston Janitorial Supplies Ltd,641.07
Manchester City Council,Adult Social Care,Rents,09-Nov-23,5105899703,Mosscare Housing Ltd,"1,737.84"
Manchester City Council,Housing Revenue Account,Council Dwelling Adaptations,09-Nov-23,5105899793,Rexel UK Ltd,"1,567.89"
Manchester City Council,Housing Revenue Account,Council Dwelling Adaptations,09-Nov-23,5105899794,Rexel UK Ltd,"24,922.26"
Manchester City Council,Chief Executives,Counsel Costs,09-Nov-23,1908266392,Redacted Personal Information,700.00
Manchester City Council,Regeneration Finance,Professional fees,09-Nov-23,5105899830,Savills (UK) Ltd,"17,425.00"
Manchester City Council,Regeneration Finance,Professional fees,09-Nov-23,5105899905,Savills (UK) Ltd,"5,500.00"
Manchester City Council,Regeneration Finance,Professional fees,09-Nov-23,5105899921,Savills (UK) Ltd,"2,800.00"
Manchester City Council,Regeneration Finance,Professional fees,09-Nov-23,5105899954,Savills (UK) Ltd,"7,000.00"
Manchester City Council,Regeneration Finance,Professional fees,09-Nov-23,5105899955,Savills (UK) Ltd,"7,000.00"
Manchester City Council,Manchester Leisure,Building Materials for direct delivery,09-Nov-23,5105899648,Arboricultural Services Treework,"1,820.00"
Manchester City Council,Manchester Leisure,Payments to Sub-Contractors,09-Nov-23,5105899608,Arboricultural Services Treework,"13,510.00"
Manchester City Council,Manchester Leisure,Payments to Sub-Contractors,09-Nov-23,5105899646,Arboricultural Services Treework,"1,350.00"
Manchester City Council,Manchester Leisure,Payments to Sub-Contractors,09-Nov-23,5105899649,Arboricultural Services Treework,"1,740.00"
Manchester City Council,Corporate Services,Works and associated costs for Land and Buildings,09-Nov-23,5105899609,Arboricultural Services Treework,"1,380.00"
Manchester City Council,Corporate Services,Works and associated costs for Land and Buildings,09-Nov-23,5105899651,Arboricultural Services Treework,"1,530.00"
Manchester City Council,Adult Social Care,Grant and subscriptions awarded,09-Nov-23,5105899682,Saheli,"26,627.75"
Manchester City Council,Adult Social Care,Third party payments relating to Voluntary Organisations,09-Nov-23,5105899691,Saheli,"6,259.75"
Manchester City Council,Adult Social Care,Third party payments relating to Voluntary Organisations,09-Nov-23,5105899694,Saheli,"6,259.75"
Manchester City Council,Adult Social Care,Third party payments relating to Voluntary Organisations,09-Nov-23,5105899697,Saheli,"6,259.75"
Manchester City Council,Adult Social Care,Signers/Interpreters,09-Nov-23,5105898596,Language Line Ltd,578.95
Manchester City Council,Housing General Fund,Building Works,09-Nov-23,1908270745,Stannah Lift Services Ltd,"7,055.00"
Manchester City Council,Housing General Fund,Building Works,09-Nov-23,1908270748,Stannah Lift Services Ltd,"3,638.00"
Manchester City Council,Housing General Fund,Building Works,09-Nov-23,1908270749,Stannah Lift Services Ltd,"3,293.00"
Manchester City Council,Housing General Fund,Building Works,09-Nov-23,1908270752,Stannah Lift Services Ltd,"4,950.90"
Manchester City Council,Housing General Fund,Building Works,09-Nov-23,1908270754,Stannah Lift Services Ltd,"4,602.00"
Manchester City Council,Housing General Fund,Building Works,09-Nov-23,1908270756,Stannah Lift Services Ltd,"7,205.00"
Manchester City Council,Housing General Fund,Building Works,09-Nov-23,1908270746,Stannah Lift Services Ltd,"7,563.00"
Manchester City Council,Housing General Fund,Building Works,09-Nov-23,1908270753,Stannah Lift Services Ltd,"6,745.00"
Manchester City Council,Childrens & Education Services,Internal Repairs and Maintenance for buildings,09-Nov-23,5105899985,NU3PS,842.46
Manchester City Council,Manchester Leisure,Professional fees,09-Nov-23,5105899599,Wythenshawe Forum Trust Ltd,"6,625.92"
Manchester City Council,Manchester Leisure,Professional fees,09-Nov-23,5105899673,Wythenshawe Forum Trust Ltd,"6,059.64"
Manchester City Council,Housing Revenue Account,Private Finance and Public Private partnership initiatives,09-Nov-23,5105899670,Grove Village Ltd,"536,182.58"
Manchester City Council,Childrens & Education Services,Hire of Premises,09-Nov-23,5105899658,Greater Manchester Police Sports &,807.92
Manchester City Council,Manchester Leisure,Electricity,09-Nov-23,1908272088,Npower,"1,329.89"
Manchester City Council,Manchester Leisure,Electricity,09-Nov-23,1908272090,Npower,"1,679.46"
Manchester City Council,Manchester Leisure,Electricity,09-Nov-23,1908272092,Npower,"1,538.58"
Manchester City Council,Manchester Leisure,Electricity,09-Nov-23,1908272094,Npower,723.20
Manchester City Council,Manchester Leisure,Electricity,09-Nov-23,1908272096,Npower,781.65
Manchester City Council,Manchester Leisure,Electricity,09-Nov-23,1908272097,Npower,829.78
Manchester City Council,Manchester Leisure,Electricity,09-Nov-23,1908272098,Npower,779.67
Manchester City Council,Manchester Leisure,Electricity,09-Nov-23,1908272099,Npower,765.35
Manchester City Council,Manchester Leisure,Electricity,09-Nov-23,1908272100,Npower,788.26
Manchester City Council,Manchester Leisure,Electricity,09-Nov-23,1908272101,Npower,"1,542.06"
Manchester City Council,Manchester Leisure,Electricity,09-Nov-23,1908272102,Npower,866.03
Manchester City Council,Manchester Leisure,Electricity,09-Nov-23,1908272103,Npower,"1,644.11"
Manchester City Council,Manchester Leisure,Electricity,09-Nov-23,1908272104,Npower,"1,683.51"
Manchester City Council,Hospitality + Trading Services,Electricity,09-Nov-23,1908272093,Npower,"42,746.31"
Manchester City Council,Hospitality + Trading Services,Vehicle Hire Costs,09-Nov-23,5105900030,Verizon Connect UK Ltd,"1,424.50"
Manchester City Council,Regeneration Finance,External repairs and maintenance for buildings,09-Nov-23,5105899712,P Mcguinness & Co Ltd,600.00
Manchester City Council,Regeneration Finance,External repairs and maintenance for buildings,09-Nov-23,5105899725,P Mcguinness & Co Ltd,"1,375.00"
Manchester City Council,Chief Executives,Legal Fees,09-Nov-23,5105899705,Warwickshire County Council,"2,057.70"
Manchester City Council,Chief Executives,Legal Fees,09-Nov-23,5105899920,Warwickshire County Council,"1,412.45"
Manchester City Council,Corporate Services,I T Provision,09-Nov-23,5105900041,Insight Direct (Uk) Ltd,"4,659.00"
Manchester City Council,Childrens & Education Services,Licences Purchase,09-Nov-23,5105899843,Insight Direct (Uk) Ltd,511.17
Manchester City Council,Corporate Services,Telecoms Equip,09-Nov-23,5105899988,Insight Direct (Uk) Ltd,658.99
Manchester City Council,Corporate Services,Travel Season TLS,09-Nov-23,5105899671,Stagecoach Manchester,670.00
Manchester City Council,Corporate Services,Professional fees,09-Nov-23,5105899835,Cloud9 Management Limited,"5,000.00"
Manchester City Council,Childrens & Education Services,Personal needs of client,09-Nov-23,5105899623,Phonak UK,"6,830.79"
Manchester City Council,Childrens & Education Services,Personal needs of client,09-Nov-23,5105899624,Phonak UK,"-6,830.79"
Manchester City Council,Childrens & Education Services,Personal needs of client,09-Nov-23,5105899627,Phonak UK,"6,172.12"
Manchester City Council,Adult Social Care,Bed & Breakfast Acc,09-Nov-23,5105899836,Redacted Personal Information,"12,236.00"
Manchester City Council,Housing General Fund,Building Works,09-Nov-23,1908270747,Hoist & Shower Chair Company,"2,548.00"
Manchester City Council,Housing General Fund,Building Works,09-Nov-23,1908270755,Hoist & Shower Chair Company,"2,625.50"
Manchester City Council,Housing General Fund,Building Works,09-Nov-23,1908270751,Hoist & Shower Chair Company,"3,231.50"
Manchester City Council,Adult Social Care,Cleaning Equipment and Materials,09-Nov-23,5105900401,Alliance Disposables Ltd,715.00
Manchester City Council,Corporate Services,Cleaning Equipment and Materials,09-Nov-23,5105900423,Alliance Disposables Ltd,"1,481.68"
Manchester City Council,Adult Social Care,ClothsUniformLaundry,09-Nov-23,5105900395,Alliance Disposables Ltd,550.00
Manchester City Council,Manchester Leisure,External repairs and maintenance for buildings,09-Nov-23,5105899819,Pro-Kill Environmental Services,"2,460.00"
Manchester City Council,Corporate Services,Car Parking Permits,09-Nov-23,5105899594,Taranto Systems Ltd,"4,000.00"
Manchester City Council,Hospitality + Trading Services,Equipment,09-Nov-23,1908271330,Stapletons Tyre Services,"4,089.14"
Manchester City Council,Corporate Services,Window Cleaning,09-Nov-23,5105899687,Ultra Cleaning Service,"1,790.00"
Manchester City Council,Chief Executives,Counsel Costs,09-Nov-23,1700160375,18 St John Street Chambers,"-1,250.00"
Manchester City Council,Chief Executives,Counsel Costs,09-Nov-23,1908266386,18 St John Street Chambers,950.00
Manchester City Council,Corporate Services,Catering,09-Nov-23,5105899918,The Monastery Manchester Ltd,966.67
Manchester City Council,Corporate Services,Special Event,09-Nov-23,5105899918,The Monastery Manchester Ltd,"2,747.65"
Manchester City Council,Childrens & Education Services,Rates,09-Nov-23,5105899937,Brighter Beginnings (Newton Heath),"1,634.38"
Manchester City Council,Housing General Fund,Building Works,09-Nov-23,5105899904,Southway Housing Trust,"43,390.47"
Manchester City Council,Childrens & Education Services,Childminding Fee Pay,09-Nov-23,5105899735,Tiddlywinks Day Nursery,649.00
Manchester City Council,Childrens & Education Services,Contract Cleaning External,09-Nov-23,5105899963,Brighter Beginnings Day Nursery,"2,231.25"
Manchester City Council,Childrens & Education Services,Rates,09-Nov-23,5105899939,Brighter Beginnings Day Nursery,875.93
Manchester City Council,Chief Executives,Legal Fees,09-Nov-23,5105899677,Weightmans LLP Solicitors,551.00
Manchester City Council,Chief Executives,Legal Fees,09-Nov-23,5105899731,Weightmans LLP Solicitors,"2,836.25"
Manchester City Council,Chief Executives,Legal Fees,09-Nov-23,5105899744,Weightmans LLP Solicitors,"8,788.50"
Manchester City Council,Chief Executives,Legal Fees,09-Nov-23,5105899923,Weightmans LLP Solicitors,"1,286.25"
Manchester City Council,Chief Executives,Legal Fees,09-Nov-23,5105900024,Weightmans LLP Solicitors,"1,100.50"
Manchester City Council,Highways Services,Professional fees,09-Nov-23,5105899949,Wilde Consultants Ltd,"7,894.02"
Manchester City Council,Corporate Services,Vehicle Costs,09-Nov-23,1908270975,Cyclescheme Ltd,"3,223.33"
Manchester City Council,Corporate Services,Vehicle Costs,09-Nov-23,1908270978,Cyclescheme Ltd,"7,800.97"
Manchester City Council,Manchester Leisure,Equipment,09-Nov-23,5105899635,MGB Plastics Limited,"15,804.00"
Manchester City Council,Manchester Leisure,Equipment,09-Nov-23,5105899636,MGB Plastics Limited,"15,804.00"
Manchester City Council,Corporate Services,Licences Purchase,09-Nov-23,5105899433,Trustmarque Solutions Ltd,"24,135.94"
Manchester City Council,Regeneration Finance,Hire of Premises,09-Nov-23,5105899883,Levenshulme Inspire,"4,872.24"
Manchester City Council,Regeneration Finance,Hire of Premises,09-Nov-23,5105899884,Levenshulme Inspire,627.00
Manchester City Council,Adult Social Care,Personal needs of client,09-Nov-23,5105899617,Care & Independence Ltd,"-1,560.00"
Manchester City Council,Adult Social Care,Personal needs of client,09-Nov-23,5105899618,Care & Independence Ltd,"1,560.00"
Manchester City Council,Housing Revenue Account,Council Dwelling Adaptations,09-Nov-23,5105899789,"Jackson, Jackson & Sons Ltd","36,947.14"
Manchester City Council,Adult Social Care,Rents,09-Nov-23,5105899766,MJ Rental Ltd,"2,521.98"
Manchester City Council,Regeneration Finance,Third party payments relating to Voluntary Organisations,09-Nov-23,5105899768,Sow the City,"3,096.00"
Manchester City Council,Regeneration Finance,Expenditure re Internal Trading Ordered Externally,09-Nov-23,5105899509,Greater Manchester Chamber of,575.00
Manchester City Council,Regeneration Finance,Grant Payments,09-Nov-23,5105899849,Maths Watch Limited,500.00
Manchester City Council,Adult Social Care,Bed & Breakfast Acc,09-Nov-23,5105899839,Redacted Personal Information,"11,625.00"
Manchester City Council,Chief Executives,Grant and subscriptions awarded,09-Nov-23,5105899700,Manchester Histories,"6,069.83"
Manchester City Council,Adult Social Care,Furniture,09-Nov-23,5105899739,Wythenshawe Community Housing Group,500.00
Manchester City Council,Adult Social Care,Furniture,09-Nov-23,5105899774,Wythenshawe Community Housing Group,500.00
Manchester City Council,Manchester Leisure,Responsive Repairs Work,09-Nov-23,5105899489,EQUANS Regeneration Limited,"222,702.22"
Manchester City Council,Manchester Leisure,Responsive Repairs Work,09-Nov-23,5105899556,EQUANS Regeneration Limited,"552,170.14"
Manchester City Council,Manchester Leisure,Responsive Repairs Work,09-Nov-23,5105899715,EQUANS Regeneration Limited,"-222,702.22"
Manchester City Council,Manchester Leisure,Responsive Repairs Work,09-Nov-23,5105899765,EQUANS Regeneration Limited,"-552,170.14"
Manchester City Council,Manchester Leisure,Refuse Collection,09-Nov-23,5105898892,Biffa Municipal Limited,"5,400.00"
Manchester City Council,Manchester Leisure,Works and associated costs for Land and Buildings,09-Nov-23,5105899869,One Green World,"4,250.00"
Manchester City Council,Regeneration Finance,Travel,09-Nov-23,5105899914,Legacy 90.1,870.00
Manchester City Council,Chief Executives,Payments to Sub-Contractors,09-Nov-23,5105899643,Redacted Personal Information,676.50
Manchester City Council,Chief Executives,Payments to Sub-Contractors,09-Nov-23,5105899645,Redacted Personal Information,686.85
Manchester City Council,Adult Social Care,Rents,09-Nov-23,5105899619,Eeven Homes Ltd.,"17,436.00"
Manchester City Council,Chief Executives,Professional fees,09-Nov-23,1908266389,Target Psychology Ltd,514.28
Manchester City Council,Chief Executives,Printing,09-Nov-23,5105899730,Mortons Media Group Ltd,"7,329.00"
Manchester City Council,Regeneration Finance,I T Provision,09-Nov-23,5105899851,NSEP CIC,"7,622.00"
Manchester City Council,Adult Social Care,Equipment,09-Nov-23,5105899653,Direct Healthcare Group Ltd,"6,000.00"
Manchester City Council,Chief Executives,Advertising,09-Nov-23,5105899969,Fonemedia Limited,"2,000.00"
Manchester City Council,Chief Executives,Legal Fees,09-Nov-23,5105900028,Central Chambers,750.00
Manchester City Council,Chief Executives,Counsel Costs,09-Nov-23,1908266387,Central Chambers,500.00
Manchester City Council,Regeneration Finance,I T Provision,09-Nov-23,5105899887,Vitalize Consultancy,"6,325.00"
Manchester City Council,Corporate Services,Heating Oil,09-Nov-23,1908271879,Standard Fuels Oils,"16,119.74"
Manchester City Council,Childrens & Education Services,Third party payments to other Local Authorities,09-Nov-23,5105899661,Carrington Riding Centre,"196,666.64"
Manchester City Council,Chief Executives,Legal Fees,09-Nov-23,5105899824,Waddington & Son Solicitors,"1,037.50"
Manchester City Council,Chief Executives,Legal Fees,09-Nov-23,5105899825,Waddington & Son Solicitors,"3,647.92"
Manchester City Council,Chief Executives,Legal Fees,09-Nov-23,5105900027,Waddington & Son Solicitors,"1,641.24"
Manchester City Council,Corporate Services,WPS Awards,09-Nov-23,5105899620,Furniture Resource Centre Ltd,"1,467.60"
Manchester City Council,Corporate Services,WPS Awards,09-Nov-23,5105899818,Furniture Resource Centre Ltd,"1,041.01"
Manchester City Council,Manchester Leisure,Grant and subscriptions awarded,09-Nov-23,5105899879,Keem Youth Shout Out (KYSO),"1,455.00"
Manchester City Council,Adult Social Care,Payments for services,09-Nov-23,5105899764,Morelife (UK) Ltd,"1,184.04"
Manchester City Council,Childrens Services,Works and associated costs for Land and Buildings,09-Nov-23,5105898519,R Development Ltd,"49,644.71"
Manchester City Council,Adult Social Care,Bed & Breakfast Acc,09-Nov-23,5105899747,Medlock House Ltd,"7,840.00"
Manchester City Council,Adult Social Care,Bed & Breakfast Acc,09-Nov-23,5105899781,Medlock House Ltd,"7,399.00"
Manchester City Council,Highways Services,Professional fees,09-Nov-23,5105899396,Pell Frischmann Consultants Ltd,"-1,897.50"
Manchester City Council,Highways Services,Professional fees,09-Nov-23,5105899726,Pell Frischmann Consultants Ltd,"6,630.00"
Manchester City Council,Adult Social Care,Rents,09-Nov-23,5105899637,Houses4Homes 4U Ltd,"9,026.00"
Manchester City Council,Corporate Services,Agency staff provision,09-Nov-23,5105899684,The Oyster Partnership Limited,"2,497.50"
Manchester City Council,Childrens & Education Services,Third party payments to other Local Authorities,09-Nov-23,5105899668,Pinc College NW,"42,806.57"
Manchester City Council,Corporate Services,Training and Development,09-Nov-23,5105900001,Ginger Dog.Com,"1,050.00"
Manchester City Council,Adult Social Care,Third party payments relating to Voluntary Organisations,09-Nov-23,5105899916,Shared Habitat Limited,510.00
Manchester City Council,Childrens & Education Services,Professional fees,09-Nov-23,5105899746,Liam Trippier School Improvement,950.00
Manchester City Council,Childrens & Education Services,Professional fees,09-Nov-23,5105899852,Pennine School Improvement Ltd,"1,425.00"
Manchester City Council,Childrens & Education Services,Professional fees,09-Nov-23,5105899675,Term2term Ltd,950.00
Manchester City Council,Childrens & Education Services,Training and Development,09-Nov-23,5105899657,Term2term Ltd,"1,425.00"
Manchester City Council,Chief Executives,Counsel Costs,09-Nov-23,1908271294,DEANS COURT CHAMBERS,750.00
Manchester City Council,Manchester Leisure,Grant and subscriptions awarded,09-Nov-23,5105899758,Lee Court Social Club,"2,000.00"
Manchester City Council,Chief Executives,Printing,09-Nov-23,5105899823,The Purple Company (UK) Ltd,"1,050.00"
Manchester City Council,Chief Executives,Printing,09-Nov-23,5105899823,The Purple Company (UK) Ltd,800.00
Manchester City Council,Childrens & Education Services,Carer Support Payments ,09-Nov-23,5105899681,Care Solutions Recruitment,"5,334.75"
Manchester City Council,Childrens & Education Services,Third party payments to other Local Authorities,09-Nov-23,5105899662,Dragon Occupational Therapy Ltd,"1,500.00"
Manchester City Council,Manchester Leisure,Building Materials for direct delivery,09-Nov-23,5105899834,My Sports Turf,"7,500.00"
Manchester City Council,Chief Executives,Works and associated costs for Land and Buildings,09-Nov-23,1908248552,Barclays Eagle Labs,"9,888.00"
Manchester City Council,Manchester Leisure,Professional fees,09-Nov-23,5105899689,Ruche Marketing,"1,250.00"
Manchester City Council,Manchester Leisure,Special Event,09-Nov-23,5105899748,The Zebra Partnership,"1,500.00"
Manchester City Council,Manchester Leisure,Special Event,09-Nov-23,5105899749,The Zebra Partnership,"1,000.00"
Manchester City Council,Manchester Leisure,Professional fees,09-Nov-23,5105899791,AV Resilience Ltd,612.80
Manchester City Council,Childrens & Education Services,Professional fees,09-Nov-23,5105899917,Beate Wagner Associates Ltd,"1,800.00"
Manchester City Council,Chief Executives,Works and associated costs for Land and Buildings,09-Nov-23,5105899718,Allied London Campfield,"308,650.56"
Manchester City Council,Adult Social Care,Rents,09-Nov-23,5105899707,VSPG Housing Ltd,"46,853.00"
Manchester City Council,Manchester Leisure,Grant and subscriptions awarded,09-Nov-23,5105899742,Age Friendly Wythenshawe,"1,000.00"
Manchester City Council,Manchester Leisure,Grant and subscriptions awarded,09-Nov-23,5105899752,Age Friendly Wythenshawe,"1,000.00"
Manchester City Council,Childrens & Education Services,Third party payments to other Local Authorities,09-Nov-23,5105899669,Safe Start School Ltd,"18,999.99"
Manchester City Council,Manchester Leisure,Professional fees,09-Nov-23,5105899711,Royal Society of Arts (RSA),"20,000.00"
Manchester City Council,Hospitality + Trading Services,Funeral and coroner related services,09-Nov-23,5105900026,LEEC Limited,"9,895.00"
Manchester City Council,Adult Social Care,Rents,09-Nov-23,5105899699,The Whiteluck Group,"28,010.00"
Manchester City Council,Regeneration Finance,Professional fees,09-Nov-23,5105899888,JV Associates Ltd,500.00
Manchester City Council,Chief Executives,Grant Payments,09-Nov-23,5105900019,HALO Psychology Ltd,600.00
Manchester City Council,Manchester Leisure,"Consumable items eg Toilet rolls, soap etc",09-Nov-23,1908271405,SPEEDY ASSET SERVICES LTD,"1,500.00"
Manchester City Council,Manchester Leisure,"Consumable items eg Toilet rolls, soap etc",09-Nov-23,1908271372,THE CONSCIOUS FAIRE,"2,460.30"
Manchester City Council,Manchester Leisure,"Consumable items eg Toilet rolls, soap etc",09-Nov-23,1908271321,WILLARDCONSERVATIONLTD,"3,060.00"
Manchester City Council,Corporate Services,Professional fees,09-Nov-23,1908261259,Laura Serrant Ltd,"1,579.20"
Manchester City Council,Corporate Services,Professional fees,09-Nov-23,1908264783,Richie & Nickie Ltd,900.00
Manchester City Council,Corporate Services,Transport Taxis,09-Nov-23,1908272138,STREET CARS MANCHESTER LT,"18,086.90"
Manchester City Council,Manchester Leisure,Works and associated costs for Land and Buildings,09-Nov-23,1908265143,BLOOLOOP LTD,"3,500.00"
Manchester City Council,Corporate Services,Electricity,09-Nov-23,1908261153,Manchester Heat Network SupplyCo Lt,"97,249.05"
Manchester City Council,Adult Social Care,Rents,09-Nov-23,1908272149,Kramer & Company,"1,350.00"
Manchester City Council,Adult Social Care,Rents,09-Nov-23,1908272162,MJ Rental Ltd,"4,800.00"
Manchester City Council,Adult Social Care,Rents,09-Nov-23,1908272162,MJ Rental Ltd,"1,430.94"
Manchester City Council,Adult Social Care,Rents,09-Nov-23,1908272146,Primegold Properties Limited,900.00
Manchester City Council,Manchester Leisure,Furniture,09-Nov-23,1908271347,RED INDUSTRIES (BROWNHILL,"2,164.03"
Manchester City Council,Childrens & Education Services,Legal Fees,09-Nov-23,1700161195,NW Sexual Abuse Consultancy,"-3,200.00"
Manchester City Council,Manchester Leisure,Special Event,09-Nov-23,1908272192,INTERNATIONAL SPORTS BROADCASTING C,"35,179.01"
Manchester City Council,Regeneration Finance,Grant and subscriptions awarded,10-Nov-23,1908272203,Redacted personal info,"2,500.00"
Manchester City Council,Regeneration Finance,Grant and subscriptions awarded,10-Nov-23,1908272202,Redacted personal info,"2,500.00"
Manchester City Council,Regeneration Finance,Grant and subscriptions awarded,10-Nov-23,1908272204,Redacted personal info,"2,500.00"
Manchester City Council,Manchester Leisure,Professional fees,10-Nov-23,1908272686,Redacted personal info,500.00
Manchester City Council,Manchester Leisure,Responsive Repairs Work,10-Nov-23,1908272690,Redacted personal info,"6,000.00"
Manchester City Council,Adult Social Care,Rents,10-Nov-23,1908272687,Redacted personal info,"4,900.00"
Manchester City Council,Manchester Leisure,Equipment,10-Nov-23,1908261150,Redacted personal info,"1,740.00"
Manchester City Council,Adult Social Care,Furniture,10-Nov-23,1908272687,Redacted personal info,"4,050.00"
Manchester City Council,Corporate Services,I T Provision,10-Nov-23,5105899584,Iron Mountain,539.36
Manchester City Council,Corporate Services,I T Provision,10-Nov-23,5105899585,Iron Mountain,511.89
Manchester City Council,Corporate Services,Cash Collection,10-Nov-23,5105898561,NSL Ltd,"5,180.42"
Manchester City Council,Highways Services,Payments to Sub-Contractors,10-Nov-23,5105900013,Townscape Ltd,"11,530.00"
Manchester City Council,Highways Services,Building Materials for direct delivery,10-Nov-23,5105899665,Marshalls Mono Ltd,"1,500.00"
Manchester City Council,Highways Services,Purchase of stores for re-distribution,10-Nov-23,5105899600,Marshalls Mono Ltd,"3,170.48"
Manchester City Council,Highways Services,Purchase of stores for re-distribution,10-Nov-23,5105899633,Marshalls Mono Ltd,"1,940.00"
Manchester City Council,Corporate Services,Licences Purchase,10-Nov-23,5105900113,Trojan Consultants Ltd (CASPAR),"19,947.00"
Manchester City Council,Manchester Leisure,Refuse Collection,10-Nov-23,5105900074,GTS Steam Cleaners,646.34
Manchester City Council,Environment and Operations,Construction Works,10-Nov-23,5105898720,Bethell Construction Ltd,"40,228.11"
Manchester City Council,Environment and Operations,Construction Works,10-Nov-23,5105898732,Bethell Construction Ltd,"72,426.14"
Manchester City Council,Environment and Operations,Construction Works,10-Nov-23,5105898738,Bethell Construction Ltd,"5,010.96"
Manchester City Council,Environment and Operations,Construction Works,10-Nov-23,5105898740,Bethell Construction Ltd,"164,855.34"
Manchester City Council,Highways Services,Payments to Sub-Contractors,10-Nov-23,5105899734,Utilities Design & Planning Ltd,807.71
Manchester City Council,Highways Services,Payments to Sub-Contractors,10-Nov-23,5105899773,Utilities Design & Planning Ltd,"2,000.00"
Manchester City Council,Highways Services,Grounds Maintenance,10-Nov-23,5105899740,Utilities Design & Planning Ltd,570.93
Manchester City Council,Highways Services,Grounds Maintenance,10-Nov-23,5105899771,Utilities Design & Planning Ltd,877.50
Manchester City Council,Corporate Services,Professional fees,10-Nov-23,5105898468,Mace Ltd,"7,439.00"
Manchester City Council,Corporate Services,Professional fees,10-Nov-23,5105898609,Mace Ltd,"5,552.43"
Manchester City Council,Manchester Leisure,External repairs and maintenance for buildings,10-Nov-23,5105900149,Dickinson Environmental,727.00
Manchester City Council,Regeneration Finance,Removal and Storage of Furniture,10-Nov-23,5105900120,Master Moves Ltd,"1,202.16"
Manchester City Council,Regeneration Finance,Removal and Storage of Furniture,10-Nov-23,5105900492,Master Moves Ltd,989.32
Manchester City Council,Corporate Services,Licences Purchase,10-Nov-23,5105898767,GBM Digital Technologies Ltd,"4,464.00"
Manchester City Council,Housing Revenue Account,Council Dwelling Adaptations,10-Nov-23,5105899799,Rexel UK Ltd,"38,109.28"
Manchester City Council,Environment and Operations,Construction Works,10-Nov-23,5105899775,Dowhigh Ltd,"18,962.21"
Manchester City Council,Environment and Operations,Construction Works,10-Nov-23,5105900099,Dowhigh Ltd,"-18,962.21"
Manchester City Council,Environment and Operations,Construction Works,10-Nov-23,5105900122,Dowhigh Ltd,"18,962.21"
Manchester City Council,Environment and Operations,Construction Works,10-Nov-23,5105898914,J.Hopkins (Contractors) Ltd.,"22,250.00"
Manchester City Council,Environment and Operations,Construction Works,10-Nov-23,5105898915,J.Hopkins (Contractors) Ltd.,"8,007.03"
Manchester City Council,Environment and Operations,Construction Works,10-Nov-23,5105898916,J.Hopkins (Contractors) Ltd.,"14,550.00"
Manchester City Council,Environment and Operations,Construction Works,10-Nov-23,5105898918,J.Hopkins (Contractors) Ltd.,"9,500.00"
Manchester City Council,Environment and Operations,Construction Works,10-Nov-23,5105898919,J.Hopkins (Contractors) Ltd.,"4,257.90"
Manchester City Council,Environment and Operations,Construction Works,10-Nov-23,5105898920,J.Hopkins (Contractors) Ltd.,"8,700.00"
Manchester City Council,Environment and Operations,Construction Works,10-Nov-23,5105898961,J.Hopkins (Contractors) Ltd.,"3,376.14"
Manchester City Council,Environment and Operations,Construction Works,10-Nov-23,5105898962,J.Hopkins (Contractors) Ltd.,"12,650.00"
Manchester City Council,Environment and Operations,Construction Works,10-Nov-23,5105898963,J.Hopkins (Contractors) Ltd.,"6,260.41"
Manchester City Council,Environment and Operations,Construction Works,10-Nov-23,5105898964,J.Hopkins (Contractors) Ltd.,"26,900.00"
Manchester City Council,Environment and Operations,Construction Works,10-Nov-23,5105898965,J.Hopkins (Contractors) Ltd.,"51,650.00"
Manchester City Council,Environment and Operations,Construction Works,10-Nov-23,5105898966,J.Hopkins (Contractors) Ltd.,"57,700.88"
Manchester City Council,Environment and Operations,Construction Works,10-Nov-23,5105898967,J.Hopkins (Contractors) Ltd.,"29,044.41"
Manchester City Council,Environment and Operations,Construction Works,10-Nov-23,5105898968,J.Hopkins (Contractors) Ltd.,"14,550.00"
Manchester City Council,Environment and Operations,Construction Works,10-Nov-23,5105898969,J.Hopkins (Contractors) Ltd.,"24,542.08"
Manchester City Council,Environment and Operations,Construction Works,10-Nov-23,5105898970,J.Hopkins (Contractors) Ltd.,"14,550.00"
Manchester City Council,Environment and Operations,Construction Works,10-Nov-23,5105898992,J.Hopkins (Contractors) Ltd.,"25,900.00"
Manchester City Council,Environment and Operations,Construction Works,10-Nov-23,5105898994,J.Hopkins (Contractors) Ltd.,"2,887.87"
Manchester City Council,Environment and Operations,Construction Works,10-Nov-23,5105898995,J.Hopkins (Contractors) Ltd.,"26,850.00"
Manchester City Council,Environment and Operations,Construction Works,10-Nov-23,5105898998,J.Hopkins (Contractors) Ltd.,"31,364.91"
Manchester City Council,Environment and Operations,Construction Works,10-Nov-23,5105898913,J.Hopkins (Contractors) Ltd.,"44,091.89"
Manchester City Council,Environment and Operations,Construction Works,10-Nov-23,5105898913,J.Hopkins (Contractors) Ltd.,"1,662.00"
Manchester City Council,Childrens & Education Services,Transport Coach Hire,10-Nov-23,5105900135,Redacted Personal Information,"2,805.68"
Manchester City Council,Adult Social Care,Supporting People Payments,10-Nov-23,5105899909,Creative Support Ltd,"154,898.12"
Manchester City Council,Adult Social Care,Personal needs of client,10-Nov-23,5105899897,Neater Solutions Ltd,"6,778.00"
Manchester City Council,Regeneration Finance,Grant and subscriptions awarded,10-Nov-23,5105900072,Salford City Council,"15,000.00"
Manchester City Council,Corporate Services,External repairs and maintenance for buildings,10-Nov-23,5105900426,Electricity North West Limited,"2,095.48"
Manchester City Council,Regeneration Finance,Grant Payments,10-Nov-23,5105899975,Back On Track,791.99
Manchester City Council,Corporate Services,Legal Fees,10-Nov-23,1908272792,HMCTS (Manchester),"1,707.50"
Manchester City Council,Manchester Leisure,Works and associated costs for Land and Buildings,10-Nov-23,5105900461,Lanes Landscapes Ltd,845.64
Manchester City Council,Corporate Services,I T Provision,10-Nov-23,5105900103,Insight Direct (Uk) Ltd,"10,944.00"
Manchester City Council,Childrens & Education Services,Furniture,10-Nov-23,5105900065,Bennett Workplace Solutions Ltd,550.00
Manchester City Council,Corporate Services,Travel Season TLS,10-Nov-23,5105899672,Stagecoach Manchester,670.00
Manchester City Council,Manchester Leisure,Grant and subscriptions awarded,10-Nov-23,5105900081,REEL mcr,"2,000.00"
Manchester City Council,Regeneration Finance,Grant Payments,10-Nov-23,5105900116,Objective Corporation UK Ltd,"9,616.18"
Manchester City Council,Adult Social Care,Equipment,10-Nov-23,5105899395,Drive Devilbiss Healthcare Ltd,"4,486.50"
Manchester City Council,Adult Social Care,Equipment,10-Nov-23,5105900117,Drive Devilbiss Healthcare Ltd,"4,486.50"
Manchester City Council,Manchester Leisure,Professional fees,10-Nov-23,5105900071,Sensormatic Solutions,837.31
Manchester City Council,Adult Social Care,Professional fees,10-Nov-23,5105900119,North West Media Ltd,"3,000.00"
Manchester City Council,Highways Services,Payments to Sub-Contractors,10-Nov-23,5105898420,Northern Marking Limited,"5,635.54"
Manchester City Council,Highways Services,Payments to Sub-Contractors,10-Nov-23,5105899631,Northern Marking Limited,"1,586.29"
Manchester City Council,Highways Services,Payments to Sub-Contractors,10-Nov-23,5105899632,Northern Marking Limited,566.10
Manchester City Council,Highways Services,Payments to Sub-Contractors,10-Nov-23,5105899634,Northern Marking Limited,"1,172.60"
Manchester City Council,Highways Services,Payments to Sub-Contractors,10-Nov-23,5105900449,Northern Marking Limited,"3,404.94"
Manchester City Council,Corporate Services,Works and associated costs for Land and Buildings,10-Nov-23,5105899288,Turner & Townsend Project,"11,620.00"
Manchester City Council,Adult Social Care,Equipment,10-Nov-23,5105900039,Aidapt Bathrooms Ltd,"1,140.00"
Manchester City Council,Adult Social Care,Equipment,10-Nov-23,5105900058,Aidapt Bathrooms Ltd,900.00
Manchester City Council,Regeneration Finance,Professional fees,10-Nov-23,5105899612,AA Projects Ltd,"1,380.00"
Manchester City Council,Regeneration Finance,Professional fees,10-Nov-23,5105899613,AA Projects Ltd,"2,940.00"
Manchester City Council,Corporate Services,Works and associated costs for Land and Buildings,10-Nov-23,5105899027,Rider Levett Bucknall UK Ltd,"16,940.00"
Manchester City Council,Adult Social Care,Grant Payments,10-Nov-23,5105900474,Care Quality Commission,"7,311.00"
Manchester City Council,Chief Executives,Storage Costs,10-Nov-23,5105900146,Oasis UK formerly Box-It (NW),728.82
Manchester City Council,Adult Social Care,Catering Provisions,10-Nov-23,1908272747,TC Meats Ltd,881.41
Manchester City Council,Adult Social Care,Catering Provisions,10-Nov-23,1908272748,TC Meats Ltd,"1,010.83"
Manchester City Council,Adult Social Care,Bed & Breakfast Acc,10-Nov-23,5105900430,Redacted Personal Information,"8,325.00"
Manchester City Council,Housing Revenue Account,Vehicle Plant Furniture and Equipment,10-Nov-23,5105900112,CDW Limited,"1,538.46"
Manchester City Council,Manchester Leisure,Grant and subscriptions awarded,10-Nov-23,5105900447,One Manchester Limited,"3,747.50"
Manchester City Council,Regeneration Finance,Subvention Payments,10-Nov-23,5105899962,Manchester Creative Digital Assets,"250,648.00"
Manchester City Council,Regeneration Finance,Subvention Payments,10-Nov-23,5105899968,Manchester Creative Digital Assets,"22,457.00"
Manchester City Council,Regeneration Finance,Subvention Payments,10-Nov-23,5105899970,Manchester Creative Digital Assets,"210,243.00"
Manchester City Council,Regeneration Finance,Subvention Payments,10-Nov-23,5105899982,Manchester Creative Digital Assets,"51,631.00"
Manchester City Council,Regeneration Finance,Subvention Payments,10-Nov-23,5105899984,Manchester Creative Digital Assets,"222,518.00"
Manchester City Council,Chief Executives,Payments to Sub-Contractors,10-Nov-23,5105900123,Redacted Personal Information,654.90
Manchester City Council,Chief Executives,I T Provision,10-Nov-23,5105900448,The Networking People (TNP) Ltd,"1,817.81"
Manchester City Council,Manchester Leisure,Payments for services,10-Nov-23,5105900092,Redacted Personal Information,"1,200.00"
Manchester City Council,Adult Social Care,Funeral and coroner related services,10-Nov-23,5105898455,Greater Manchester Funeral Service,"2,892.00"
Manchester City Council,Childrens & Education Services,Transport Coach Hire,10-Nov-23,5105900472,Sumi Travel Ltd.,"15,385.00"
Manchester City Council,Regeneration Finance,Removal and Storage of Furniture,10-Nov-23,5105899844,Restore PLC,657.34
Manchester City Council,Environment and Operations,Construction Works,10-Nov-23,5105900475,IWJS Ltd,"3,690.00"
Manchester City Council,Adult Social Care,Payments for services,10-Nov-23,5105900118,Kaleidoscope Project,"9,520.00"
Manchester City Council,Chief Executives,Advertising,10-Nov-23,5105900053,MA Education Limited,"1,590.00"
Manchester City Council,Adult Social Care,Equipment,10-Nov-23,5105900458,Direct Healthcare Group Ltd,"9,000.00"
Manchester City Council,Chief Executives,ICT Sup & Maintnance,10-Nov-23,5105899919,Elected Technologies,"12,320.00"
Manchester City Council,Childrens & Education Services,Payments for services,10-Nov-23,5105900080,Prospero Teaching,500.00
Manchester City Council,Childrens & Education Services,Payments for services,10-Nov-23,5105900084,Prospero Teaching,500.00
Manchester City Council,Childrens & Education Services,Payments for services,10-Nov-23,5105900085,Prospero Teaching,500.00
Manchester City Council,Childrens & Education Services,Payments for services,10-Nov-23,5105900088,Prospero Teaching,500.00
Manchester City Council,Childrens & Education Services,Payments for services,10-Nov-23,5105900089,Prospero Teaching,500.00
Manchester City Council,Childrens & Education Services,Payments for services,10-Nov-23,5105900090,Prospero Teaching,500.00
Manchester City Council,Childrens & Education Services,Payments for services,10-Nov-23,5105900105,Prospero Teaching,500.00
Manchester City Council,Childrens & Education Services,Payments for services,10-Nov-23,5105900107,Prospero Teaching,500.00
Manchester City Council,Childrens & Education Services,Payments for services,10-Nov-23,5105900108,Prospero Teaching,500.00
Manchester City Council,Childrens & Education Services,Professional fees,10-Nov-23,5105900138,Prospero Teaching,500.00
Manchester City Council,Childrens & Education Services,Professional fees,10-Nov-23,5105900139,Prospero Teaching,500.00
Manchester City Council,Hospitality + Trading Services,Vehicle Fuel Costs,10-Nov-23,5105900463,Standard Fuels Oils,"1,280.06"
Manchester City Council,Hospitality + Trading Services,Vehicle Fuel Costs,10-Nov-23,5105900464,Standard Fuels Oils,"1,277.50"
Manchester City Council,Chief Executives,Legal Fees,10-Nov-23,5105899976,Waddington & Son Solicitors,"2,218.75"
Manchester City Council,Chief Executives,Legal Fees,10-Nov-23,5105899976,Waddington & Son Solicitors,"2,215.00"
Manchester City Council,Chief Executives,Legal Fees,10-Nov-23,5105900106,Waddington & Son Solicitors,"1,535.75"
Manchester City Council,Chief Executives,Legal Fees,10-Nov-23,5105900144,Waddington & Son Solicitors,"1,981.25"
Manchester City Council,Chief Executives,Legal Fees,10-Nov-23,5105900494,Waddington & Son Solicitors,"2,025.00"
Manchester City Council,Chief Executives,Legal Fees,10-Nov-23,5105900495,Waddington & Son Solicitors,"1,950.00"
Manchester City Council,Corporate Services,WPS Awards,10-Nov-23,5105900056,Furniture Resource Centre Ltd,887.06
Manchester City Council,Adult Social Care,Third party payments to Health Authority,10-Nov-23,5105900446,Europia,"3,312.00"
Manchester City Council,Childrens & Education Services,Transport Coach Hire,10-Nov-23,5105898859,Home to School Travel Ltd,"6,527.00"
Manchester City Council,Childrens & Education Services,Transport Coach Hire,10-Nov-23,5105900070,MCR Elite Taxis Ltd,"6,450.00"
Manchester City Council,Adult Social Care,Grant Payments,10-Nov-23,5105899931,Symetri,"6,290.00"
Manchester City Council,Corporate Services,Grant Payments,10-Nov-23,5105899425,Symetri,"1,110.00"
Manchester City Council,Corporate Services,Grant Payments,10-Nov-23,5105899690,Symetri,"3,450.00"
Manchester City Council,Adult Social Care,Security,10-Nov-23,5105900111,UNIQUE SPECIALIST SERVICES,"1,404.00"
Manchester City Council,Adult Social Care,Security,10-Nov-23,5105900114,UNIQUE SPECIALIST SERVICES,"1,134.00"
Manchester City Council,Manchester Leisure,Equipment,10-Nov-23,5105900148,Wex Photographic,"3,192.46"
Manchester City Council,Chief Executives,Payments to Sub-Contractors,10-Nov-23,5105900128,Redacted Personal Information,"2,165.18"
Manchester City Council,Corporate Services,Professional fees,10-Nov-23,5105899380,NE1 Procurement Services Limited,"5,641.03"
Manchester City Council,Adult Social Care,Rents,10-Nov-23,5105898942,M&D Residential Ltd,"15,818.00"
Manchester City Council,Adult Social Care,Rents,10-Nov-23,5105900450,M&D Residential Ltd,"16,734.95"
Manchester City Council,Housing Revenue Account,Works and associated costs for Land and Buildings,10-Nov-23,1908272691,Northern Gateway (FEC) No.10 Limite,"8,729.14"
Manchester City Council,Housing Revenue Account,Works and associated costs for Land and Buildings,10-Nov-23,1908272691,Northern Gateway (FEC) No.10 Limite,"436,457.00"
Manchester City Council,Chief Executives,Payments to Sub-Contractors,10-Nov-23,5105899788,Redacted Personal Information,690.00
Manchester City Council,Chief Executives,Payments to Sub-Contractors,10-Nov-23,5105899792,Redacted Personal Information,690.00
Manchester City Council,Childrens & Education Services,Grant Payments,10-Nov-23,1908272201,Paypoint,"9,751.79"
Manchester City Council,Corporate Services,Gas,10-Nov-23,1908272373,M\cr Heat Network Supply Co Ltd,"16,945.60"
Manchester City Council,Corporate Services,Electricity,10-Nov-23,1908272374,M\cr Heat Network Supply Co Ltd,"97,249.05"
Manchester City Council,Childrens & Education Services,Ind Budget Payment,10-Nov-23,1908272685,Harrison McCarthy,"2,660.00"
Manchester City Council,Chief Executives,Payments to Sub-Contractors,10-Nov-23,5105900493,Redacted Personal Information,789.20
Manchester City Council,Adult Social Care,Furniture,10-Nov-23,5105900489,Rtech Group Limited,"5,524.99"
Manchester City Council,Manchester Leisure,Professional fees,10-Nov-23,5105899467,Topscan (UK) Limited,"3,461.00"
Manchester City Council,Highways Services,Payments to Sub-Contractors,10-Nov-23,5105899878,CW Studio,"2,000.00"
Manchester City Council,Highways Services,Professional fees,10-Nov-23,5105899873,BWB Consulting Ltd,"6,380.00"
Manchester City Council,Adult Social Care,Rents,10-Nov-23,5105900079,Intra City Investments,"1,160.00"
Manchester City Council,Corporate Services,Transport Taxis,10-Nov-23,1908272798,STREET CARS MANCHESTER LT,"5,000.00"
Manchester City Council,Corporate Services,Transport Taxis,10-Nov-23,1908272800,STREET CARS MANCHESTER LT,"10,000.00"
Manchester City Council,Corporate Services,Transport Taxis,10-Nov-23,1908272801,STREET CARS MANCHESTER LT,"6,719.40"
Manchester City Council,Corporate Services,Transport Taxis,10-Nov-23,1908272802,STREET CARS MANCHESTER LT,"5,000.00"
Manchester City Council,Corporate Services,Gas,10-Nov-23,1908261152,Manchester Heat Network SupplyCo Lt,"16,945.60"
Manchester City Council,Corporate Services,Gas,10-Nov-23,1908261155,Manchester Heat Network SupplyCo Lt,"12,185.04"
Manchester City Council,Childrens & Education Services,Rents,10-Nov-23,1908272689,B&A PROPERTIES (LYELL) LTD,"1,790.00"
Manchester City Council,Chief Executives,Counsel Costs,13-Nov-23,1908272362,Redacted personal info,"9,937.50"
Manchester City Council,Manchester Leisure,Management Fee Inc,13-Nov-23,1908167637,Redacted personal info,542.50
Manchester City Council,Chief Executives,Postage,13-Nov-23,5105899172,Royal Mail Group Plc,"37,508.25"
Manchester City Council,Adult Social Care,Third party payments relating to Voluntary Organisations,13-Nov-23,5105898565,Nacro,"117,306.00"
Manchester City Council,Manchester Leisure,Removal and Storage of Furniture,13-Nov-23,5105900681,BCL,883.82
Manchester City Council,Corporate Services,Removal and Storage of Furniture,13-Nov-23,5105900457,BCL,524.20
Manchester City Council,Hospitality + Trading Services,Vehicle Hire Costs,13-Nov-23,5105900693,F.R.Sharrock Ltd,638.00
Manchester City Council,Regeneration Finance,Removal and Storage of Furniture,13-Nov-23,5105898548,M&G Transport & Technical Services,"4,629.00"
Manchester City Council,Manchester Leisure,ICT Hardware,13-Nov-23,5105900638,BT PLC,"3,602.03"
Manchester City Council,Childrens & Education Services,Transport Coach Hire,13-Nov-23,5105900509,Street Cars,"47,224.80"
Manchester City Council,Childrens & Education Services,Transport Coach Hire,13-Nov-23,5105900558,Street Cars,"-47,224.80"
Manchester City Council,Childrens & Education Services,Transport Coach Hire,13-Nov-23,5105900647,Street Cars,"39,354.00"
Manchester City Council,Childrens & Education Services,Transport Coach Hire,13-Nov-23,5105900682,Street Cars,"4,166.67"
Manchester City Council,Childrens & Education Services,Transport Coach Hire,13-Nov-23,5105900683,Street Cars,"2,433.00"
Manchester City Council,Childrens & Education Services,Transport Coach Hire,13-Nov-23,5105900685,Street Cars,"16,666.67"
Manchester City Council,Childrens & Education Services,Transport Coach Hire,13-Nov-23,5105900686,Street Cars,"4,166.67"
Manchester City Council,Corporate Services,Gas,13-Nov-23,5105900044,Calor Gas Ltd,793.50
Manchester City Council,Hospitality + Trading Services,Hire of Machinery,13-Nov-23,5105900542,R & M Developments Ltd,"1,073.50"
Manchester City Council,Hospitality + Trading Services,Security,13-Nov-23,5105899378,Showsec International Ltd,"60,544.22"
Manchester City Council,Hospitality + Trading Services,Security,13-Nov-23,5105900444,Showsec International Ltd,"10,544.40"
Manchester City Council,Highways Services,Professional fees,13-Nov-23,5105898907,Mace Ltd,"10,636.20"
Manchester City Council,Highways Services,Professional fees,13-Nov-23,5105898908,Mace Ltd,"10,636.20"
Manchester City Council,Highways Services,Professional fees,13-Nov-23,5105898909,Mace Ltd,"6,360.98"
Manchester City Council,Highways Services,Professional fees,13-Nov-23,5105899051,Mace Ltd,"7,510.50"
Manchester City Council,Highways Services,Professional fees,13-Nov-23,5105899058,Mace Ltd,"5,451.75"
Manchester City Council,Chief Executives,Legal Fees,13-Nov-23,5105900680,Kings Chambers,500.00
Manchester City Council,Corporate Services,Fees,13-Nov-23,1908262216,Jacobs,"3,686.35"
Manchester City Council,Corporate Services,Fees,13-Nov-23,1908262216,Jacobs,"-3,686.35"
Manchester City Council,Adult Social Care,Third party payments relating to Voluntary Organisations,13-Nov-23,5105900663,Riverside ECHG,"4,812.00"
Manchester City Council,Childrens & Education Services,Transport Coach Hire,13-Nov-23,5105898446,M Travel,"73,757.00"
Manchester City Council,Manchester Leisure,Equipment,13-Nov-23,5105900516,Groundwork Landscapes Ltd,"1,050.00"
Manchester City Council,Environment and Operations,Construction Works,13-Nov-23,5105899002,J.Hopkins (Contractors) Ltd.,"4,334.00"
Manchester City Council,Environment and Operations,Construction Works,13-Nov-23,5105899010,J.Hopkins (Contractors) Ltd.,"54,756.99"
Manchester City Council,Environment and Operations,Construction Works,13-Nov-23,5105899021,J.Hopkins (Contractors) Ltd.,"55,693.51"
Manchester City Council,Environment and Operations,Construction Works,13-Nov-23,5105899022,J.Hopkins (Contractors) Ltd.,"26,011.85"
Manchester City Council,Environment and Operations,Construction Works,13-Nov-23,5105899023,J.Hopkins (Contractors) Ltd.,"31,787.75"
Manchester City Council,Environment and Operations,Construction Works,13-Nov-23,5105899024,J.Hopkins (Contractors) Ltd.,"53,329.64"
Manchester City Council,Environment and Operations,Construction Works,13-Nov-23,5105899025,J.Hopkins (Contractors) Ltd.,"49,150.53"
Manchester City Council,Environment and Operations,Construction Works,13-Nov-23,5105899001,J.Hopkins (Contractors) Ltd.,"62,039.39"
Manchester City Council,Environment and Operations,Construction Works,13-Nov-23,5105899000,J.Hopkins (Contractors) Ltd.,"35,216.76"
Manchester City Council,Chief Executives,Counsel Costs,13-Nov-23,1908269072,Redacted Personal Information,"1,687.50"
Manchester City Council,Manchester Leisure,Payments to Sub-Contractors,13-Nov-23,5105900661,Arboricultural Services Treework,"4,940.00"
Manchester City Council,Manchester Leisure,I T Provision,13-Nov-23,5105900563,Civica UK Ltd,708.75
Manchester City Council,Manchester Leisure,I T Provision,13-Nov-23,5105900564,Civica UK Ltd,882.48
Manchester City Council,Manchester Leisure,Compensation Payments,13-Nov-23,1908266865,Antony Hodari Holding Ltd,"2,900.00"
Manchester City Council,Adult Social Care,"Consumable items eg Toilet rolls, soap etc",13-Nov-23,5105900503,All 4 Pets Limited,960.00
Manchester City Council,Adult Social Care,"Consumable items eg Toilet rolls, soap etc",13-Nov-23,5105900527,All 4 Pets Limited,-960.00
Manchester City Council,Adult Social Care,"Consumable items eg Toilet rolls, soap etc",13-Nov-23,5105900552,All 4 Pets Limited,960.00
Manchester City Council,Housing General Fund,Building Works,13-Nov-23,1908270750,Stannah Lift Services Ltd,684.01
Manchester City Council,Manchester Leisure,Equipment,13-Nov-23,5105899581,Countryscape,"2,286.00"
Manchester City Council,Adult Social Care,Third party payments relating to Voluntary Organisations,13-Nov-23,5105899135,Independent Choices Gtr Manchester,"4,390.00"
Manchester City Council,Manchester Leisure,Grant and subscriptions awarded,13-Nov-23,5105899605,4CT Limited,950.00
Manchester City Council,Adult Social Care,Payments for services,13-Nov-23,5105898870,Brook,"44,851.65"
Manchester City Council,Manchester Leisure,Refuse Collection,13-Nov-23,5105900585,Redgate Holdings Ltd,"5,922.06"
Manchester City Council,Highways Services,Professional fees,13-Nov-23,5105900643,A T G Access Ltd,"1,432.74"
Manchester City Council,Adult Social Care,Rents,13-Nov-23,5105899850,Amco Management,"41,630.51"
Manchester City Council,Manchester Leisure,Grant and subscriptions awarded,13-Nov-23,5105899052,University Of Manchester,"276,765.00"
Manchester City Council,Highways Services,Payments to Sub-Contractors,13-Nov-23,5105898607,Rosgal Ltd,"5,332.41"
Manchester City Council,Chief Executives,Land Registry fees,13-Nov-23,1908266368,The Coal Authority,908.66
Manchester City Council,Chief Executives,Works and associated costs for Land and Buildings,13-Nov-23,5105899846,Eric Wright Civil Engineering Limit,"404,625.44"
Manchester City Council,Hospitality + Trading Services,Rents,13-Nov-23,5105899538,Network Rail Property,"1,597.00"
Manchester City Council,Chief Executives,Legal Fees,13-Nov-23,5105900565,Warwickshire County Council,"1,437.31"
Manchester City Council,Corporate Services,I T Provision,13-Nov-23,5105900612,Insight Direct (Uk) Ltd,543.50
Manchester City Council,Corporate Services,Agency staff provision,13-Nov-23,5105900624,Hays Personnel,"71,916.99"
Manchester City Council,Corporate Services,Fees,13-Nov-23,1700161039,Newlyn Plc,"-13,075.97"
Manchester City Council,Corporate Services,Works and associated costs for Land and Buildings,13-Nov-23,5105899339,Morgan Sindall C & I Ltd,"466,235.88"
Manchester City Council,Corporate Services,Works and associated costs for Land and Buildings,13-Nov-23,5105899339,Morgan Sindall C & I Ltd,"1,165,845.47"
Manchester City Council,Chief Executives,Counsel Costs,13-Nov-23,1908269069,18 St John Street Chambers,"4,450.00"
Manchester City Council,Chief Executives,Counsel Costs,13-Nov-23,1908269070,18 St John Street Chambers,650.00
Manchester City Council,Chief Executives,Counsel Costs,13-Nov-23,1908272136,18 St John Street Chambers,650.00
Manchester City Council,Hospitality + Trading Services,Compensation Payments,13-Nov-23,1908266374,Redacted Personal Information,750.00
Manchester City Council,Childrens & Education Services,Transport Coach Hire,13-Nov-23,5105900580,Ricks Travel,"2,210.00"
Manchester City Council,Adult Social Care,Rents,13-Nov-23,5105900691,Accommodation Links Ltd,600.00
Manchester City Council,Corporate Services,Landline Telephone,13-Nov-23,1908163219,Daisy Corporate Services Trading,"1,912.68"
Manchester City Council,Corporate Services,Works and associated costs for Land and Buildings,13-Nov-23,5105900625,Green-Tech Ltd,"4,589.20"
Manchester City Council,Manchester Leisure,Special Event,13-Nov-23,5105900497,SilverbackUk,"3,210.00"
Manchester City Council,Hospitality + Trading Services,Vehicle Hire Costs,13-Nov-23,5105900632,Peter Douglass Platforms,"1,760.00"
Manchester City Council,Childrens & Education Services,Professional fees,13-Nov-23,5105900512,One Education Ltd,"1,000.00"
Manchester City Council,Adult Social Care,Third party payments relating to Voluntary Organisations,13-Nov-23,5105899497,Sow the City,"7,448.00"
Manchester City Council,Manchester Leisure,Grant and subscriptions awarded,13-Nov-23,5105898693,TLC St Luke's,500.00
Manchester City Council,Corporate Services,Rents,13-Nov-23,5105898869,ANS Group PLC,"50,020.00"
Manchester City Council,Regeneration Finance,Professional fees,13-Nov-23,5105900498,Colliers International,"1,950.00"
Manchester City Council,Regeneration Finance,Professional fees,13-Nov-23,5105900692,Bennetts Associates Architects,"9,015.00"
Manchester City Council,Corporate Services,I T Provision,13-Nov-23,5105899592,Greater Manchester Chamber of,892.00
Manchester City Council,Adult Social Care,Rents,13-Nov-23,5105900518,Mack Residential Letting Ltd,750.00
Manchester City Council,Adult Social Care,Rents,13-Nov-23,5105900594,Mack Residential Letting Ltd,"194,646.37"
Manchester City Council,Adult Social Care,Third party payments to Health Authority,13-Nov-23,5105900587,NHS Supply Chain,598.92
Manchester City Council,Adult Social Care,Third party payments to Health Authority,13-Nov-23,5105900588,NHS Supply Chain,727.80
Manchester City Council,Adult Social Care,Third party payments to Health Authority,13-Nov-23,5105900603,NHS Supply Chain,570.40
Manchester City Council,Manchester Leisure,Building Materials for direct delivery,13-Nov-23,5105899741,Biffa Municipal Limited,"10,228.50"
Manchester City Council,Manchester Leisure,Payments to Contractors,13-Nov-23,5105898800,Biffa Municipal Limited,"221,814.06"
Manchester City Council,Manchester Leisure,Refuse Collection,13-Nov-23,5105898799,Biffa Municipal Limited,"1,352,583.14"
Manchester City Council,Manchester Leisure,Refuse Collection,13-Nov-23,5105899724,Biffa Municipal Limited,"54,780.54"
Manchester City Council,Hospitality + Trading Services,Refuse Collection,13-Nov-23,5105898861,Biffa Municipal Limited,"118,087.86"
Manchester City Council,Corporate Services,Refuse Collection,13-Nov-23,5105899745,Biffa Municipal Limited,"56,678.37"
Manchester City Council,Corporate Services,Works and associated costs for Land and Buildings,13-Nov-23,5105899727,Biffa Municipal Limited,"51,099.00"
Manchester City Council,Manchester Leisure,Reuse credits,13-Nov-23,5105898862,Biffa Municipal Limited,"3,975.00"
Manchester City Council,Manchester Leisure,Reuse credits,13-Nov-23,5105898866,Biffa Municipal Limited,"2,275.00"
Manchester City Council,Manchester Leisure,Reuse credits,13-Nov-23,5105899729,Biffa Municipal Limited,"5,166.67"
Manchester City Council,Adult Social Care,Personal needs of client,13-Nov-23,5105900547,Doro Care Ltd,"2,908.00"
Manchester City Council,Chief Executives,Professional fees,13-Nov-23,1908265150,Forensic Testing Service Ltd,658.55
Manchester City Council,Manchester Leisure,Grant and subscriptions awarded,13-Nov-23,5105900630,Manchester North End Football Club,"2,249.98"
Manchester City Council,Adult Social Care,Rents,13-Nov-23,5105900570,Housing Social Ltd,"4,720.00"
Manchester City Council,Adult Social Care,Funeral and coroner related services,13-Nov-23,5105900598,Greater Manchester Funeral Service,"1,792.00"
Manchester City Council,Adult Social Care,Funeral and coroner related services,13-Nov-23,5105900599,Greater Manchester Funeral Service,875.00
Manchester City Council,Adult Social Care,Funeral and coroner related services,13-Nov-23,5105900622,Greater Manchester Funeral Service,"1,505.00"
Manchester City Council,Adult Social Care,Funeral and coroner related services,13-Nov-23,5105900626,Greater Manchester Funeral Service,705.00
Manchester City Council,Corporate Services,Professional fees,13-Nov-23,5105900431,Redacted Personal Information,980.00
Manchester City Council,Corporate Services,Professional fees,13-Nov-23,5105900432,Redacted Personal Information,"1,400.00"
Manchester City Council,Adult Social Care,Rents,13-Nov-23,5105900514,Manchester Housing Group Ltd,550.00
Manchester City Council,Manchester Leisure,Grounds Maintenance,13-Nov-23,5105900470,Tivoli Group Ltd,"5,429.64"
Manchester City Council,Manchester Leisure,Grounds Maintenance,13-Nov-23,5105900471,Tivoli Group Ltd,"6,311.17"
Manchester City Council,Manchester Leisure,Cash Collection,13-Nov-23,5105900452,APCOA PARKING UK Ltd,"22,948.38"
Manchester City Council,Manchester Leisure,External repairs and maintenance for buildings,13-Nov-23,5105900490,Event Buggy Hire,"1,430.00"
Manchester City Council,Childrens & Education Services,Payments for services,13-Nov-23,5105900591,A S K Healthcare Ltd,"1,288.00"
Manchester City Council,Adult Social Care,Personal needs of client,13-Nov-23,5105898724,Anywhere Care Ltd,"2,280.00"
Manchester City Council,Adult Social Care,Rents,13-Nov-23,5105900629,Houses4Homes 4U Ltd,"9,026.00"
Manchester City Council,Chief Executives,Counsel Costs,13-Nov-23,1908265144,Redacted Personal Information,875.00
Manchester City Council,Adult Social Care,Grant and subscriptions awarded,13-Nov-23,5105898549,Revolving Doors Housing Trust,"49,824.77"
Manchester City Council,Highways Services,Professional fees,13-Nov-23,5105900466,Waterman Infrastructure and,"3,439.50"
Manchester City Council,Adult Social Care,Third party payments relating to Voluntary Organisations,13-Nov-23,5105900549,Onward Group Ltd,"2,447.10"
Manchester City Council,Adult Social Care,Third party payments relating to Voluntary Organisations,13-Nov-23,5105900550,Onward Group Ltd,"2,447.10"
Manchester City Council,Adult Social Care,Third party payments relating to Voluntary Organisations,13-Nov-23,5105900561,Onward Group Ltd,"2,447.10"
Manchester City Council,Regeneration Finance,External repairs and maintenance for buildings,13-Nov-23,5105900631,SMS Solar Maintenance Services,"1,548.87"
Manchester City Council,Manchester Leisure,Other Allowances,13-Nov-23,1908270724,Tusker Direct,"2,565.82"
Manchester City Council,Manchester Leisure,Other Allowances,13-Nov-23,1908270726,Tusker Direct,910.27
Manchester City Council,Childrens & Education Services,Payments for services,13-Nov-23,5105900582,Sendcode CIC,"2,196.92"
Manchester City Council,Corporate Services,Works and associated costs for Land and Buildings,13-Nov-23,5105898673,Bam Nuttall Ltd,"634,319.38"
Manchester City Council,Childrens & Education Services,Transport Coach Hire,13-Nov-23,5105900671,Britannia Minibuses Ltd,"3,230.00"
Manchester City Council,Childrens & Education Services,Transport Coach Hire,13-Nov-23,5105900673,Britannia Minibuses Ltd,"2,720.00"
Manchester City Council,Childrens & Education Services,Transport Coach Hire,13-Nov-23,5105900674,Britannia Minibuses Ltd,"2,295.00"
Manchester City Council,Adult Social Care,Bed & Breakfast Acc,13-Nov-23,5105900595,VSP BEAUCLIFFE LTD,"123,660.00"
Manchester City Council,Corporate Services,Gas,13-Nov-23,1908272375,M\cr Heat Network Supply Co Ltd,"12,185.04"
Manchester City Council,Environment and Operations,Construction Works,13-Nov-23,5105900484,Urban 360 Ltd,"12,380.75"
Manchester City Council,Environment and Operations,Construction Works,13-Nov-23,5105900485,Urban 360 Ltd,"12,307.26"
Manchester City Council,Adult Social Care,Furniture,13-Nov-23,5105900684,Rtech Group Limited,"4,995.82"
Manchester City Council,Childrens & Education Services,Grant and subscriptions awarded,13-Nov-23,5105900583,The Movez Movement,"3,274.42"
Manchester City Council,Corporate Services,Grant Payments,13-Nov-23,5105900667,Precisely Software Limited,"11,769.51"
Manchester City Council,Chief Executives,Counsel Costs,13-Nov-23,1908265146,Holborn Chambers,626.00
Manchester City Council,Chief Executives,Counsel Costs,13-Nov-23,1908272142,Holborn Chambers,649.00
Manchester City Council,Regeneration Finance,External repairs and maintenance for buildings,13-Nov-23,5105899113,Belgrave Conservation,"7,850.00"
Manchester City Council,Manchester Leisure,Grant and subscriptions awarded,13-Nov-23,1908248711,Loveworld UK Zone 4,"1,000.00"
Manchester City Council,Manchester Leisure,Professional fees,13-Nov-23,1908266438,Mitchell Charlesworth (Audit) Ltd,"2,500.00"
Manchester City Council,Highways Services,Compensation Payments,14-Nov-23,1908273446,Redacted personal info,635.57
Manchester City Council,Regeneration Finance,Grant and subscriptions awarded,14-Nov-23,1908272823,Redacted personal info,"2,500.00"
Manchester City Council,Regeneration Finance,Grant and subscriptions awarded,14-Nov-23,1908272821,Redacted personal info,"2,500.00"
Manchester City Council,Chief Executives,Professional fees,14-Nov-23,1908272822,Redacted personal info,596.70
Manchester City Council,Adult Social Care,Supporting People Payments,14-Nov-23,5105900745,Praxis Care Group,"6,524.81"
Manchester City Council,Chief Executives,Works and associated costs for Land and Buildings,14-Nov-23,5105900734,Eversheds Llp,"17,235.00"
Manchester City Council,Corporate Services,Removal and Storage of Furniture,14-Nov-23,5105900733,BCL,570.00
Manchester City Council,Childrens & Education Services,Transport Coach Hire,14-Nov-23,5105900510,Street Cars,"4,166.67"
Manchester City Council,Childrens & Education Services,Transport Coach Hire,14-Nov-23,5105900533,Street Cars,"2,433.00"
Manchester City Council,Childrens & Education Services,Transport Coach Hire,14-Nov-23,5105900534,Street Cars,"16,666.67"
Manchester City Council,Childrens & Education Services,Transport Coach Hire,14-Nov-23,5105900535,Street Cars,"4,166.67"
Manchester City Council,Childrens & Education Services,Transport Coach Hire,14-Nov-23,5105900559,Street Cars,"-4,166.67"
Manchester City Council,Childrens & Education Services,Transport Coach Hire,14-Nov-23,5105900560,Street Cars,"-2,433.00"
Manchester City Council,Childrens & Education Services,Transport Coach Hire,14-Nov-23,5105900651,Street Cars,"-16,666.67"
Manchester City Council,Childrens & Education Services,Transport Coach Hire,14-Nov-23,5105900652,Street Cars,"-4,166.67"
Manchester City Council,Highways Services,Grounds Maintenance,14-Nov-23,5105900822,The Fountain Company Ltd,535.00
Manchester City Council,Housing Revenue Account,Professional fees,14-Nov-23,5105900695,Switch2 Energey Limited,"2,413.46"
Manchester City Council,Housing Revenue Account,Professional fees,14-Nov-23,5105900722,Switch2 Energey Limited,"2,413.46"
Manchester City Council,Manchester Leisure,Special Event,14-Nov-23,5105899957,Utilities Design & Planning Ltd,"3,708.00"
Manchester City Council,Hospitality + Trading Services,Hire of Machinery,14-Nov-23,5105900935,R & M Developments Ltd,720.79
Manchester City Council,Manchester Leisure,Equipment,14-Nov-23,5105900950,JLA Ltd,"3,186.77"
Manchester City Council,Adult Social Care,Grant and subscriptions awarded,14-Nov-23,5105900772,LGBT Foundation,"4,795.25"
Manchester City Council,Adult Social Care,Grant and subscriptions awarded,14-Nov-23,5105900773,LGBT Foundation,"10,484.33"
Manchester City Council,Regeneration Finance,Professional fees,14-Nov-23,5105900955,Savills (UK) Ltd,"5,600.00"
Manchester City Council,Chief Executives,Counsel Costs,14-Nov-23,5105900864,No 5 Chambers Ltd,"1,500.00"
Manchester City Council,Regeneration Finance,Hire of Premises,14-Nov-23,5105900778,Rochdale Mbc,"1,860.00"
Manchester City Council,Corporate Services,"Consumable items eg Toilet rolls, soap etc",14-Nov-23,5105899832,United Flags & Flagstaffs Ltd,567.50
Manchester City Council,Manchester Leisure,Library Materials Acquisition,14-Nov-23,1908273641,Dandy Booksellers,"1,455.20"
Manchester City Council,Housing Revenue Account,Council Dwelling Adaptations,14-Nov-23,5105900946,British Gas Social Housing Ltd,"4,411.00"
Manchester City Council,Housing Revenue Account,Council Dwelling Adaptations,14-Nov-23,5105900949,British Gas Social Housing Ltd,"2,407.97"
Manchester City Council,Housing Revenue Account,Council Dwelling Adaptations,14-Nov-23,5105900951,British Gas Social Housing Ltd,"1,365.90"
Manchester City Council,Housing Revenue Account,Council Dwelling Adaptations,14-Nov-23,5105900952,British Gas Social Housing Ltd,"2,454.19"
Manchester City Council,Housing Revenue Account,Council Dwelling Adaptations,14-Nov-23,5105900954,British Gas Social Housing Ltd,"9,294.69"
Manchester City Council,Chief Executives,Printing,14-Nov-23,5105900771,Browns CTP Ltd,620.00
Manchester City Council,Childrens & Education Services,Transport Coach Hire,14-Nov-23,5105900786,David'S Handy Rider,"-1,250.00"
Manchester City Council,Childrens & Education Services,Transport Coach Hire,14-Nov-23,5105900787,David'S Handy Rider,"-1,145.00"
Manchester City Council,Childrens & Education Services,Transport Coach Hire,14-Nov-23,5105900788,David'S Handy Rider,"-1,160.00"
Manchester City Council,Childrens & Education Services,Transport Coach Hire,14-Nov-23,5105900791,David'S Handy Rider,"-9,329.00"
Manchester City Council,Childrens & Education Services,Transport Coach Hire,14-Nov-23,5105900792,David'S Handy Rider,-560.00
Manchester City Council,Childrens & Education Services,Transport Coach Hire,14-Nov-23,5105900795,David'S Handy Rider,"-6,078.25"
Manchester City Council,Childrens & Education Services,Transport Coach Hire,14-Nov-23,5105900796,David'S Handy Rider,"-1,400.00"
Manchester City Council,Childrens & Education Services,Transport Coach Hire,14-Nov-23,5105900797,David'S Handy Rider,"-3,846.50"
Manchester City Council,Childrens & Education Services,Transport Coach Hire,14-Nov-23,5105900798,David'S Handy Rider,"-11,400.00"
Manchester City Council,Childrens & Education Services,Transport Coach Hire,14-Nov-23,5105900799,David'S Handy Rider,"-16,025.00"
Manchester City Council,Childrens & Education Services,Transport Coach Hire,14-Nov-23,5105900801,David'S Handy Rider,"-4,320.00"
Manchester City Council,Manchester Leisure,Works and associated costs for Land and Buildings,14-Nov-23,5105899640,Kier Construction North and,"287,093.86"
Manchester City Council,Manchester Leisure,Goods purchased for resale in Council outlets,14-Nov-23,5105900710,Cornflower Ltd,"2,100.00"
Manchester City Council,Chief Executives,Legal Fees,14-Nov-23,5105900698,Warwickshire County Council,"1,110.18"
Manchester City Council,Chief Executives,Legal Fees,14-Nov-23,5105900700,Warwickshire County Council,"1,588.85"
Manchester City Council,Chief Executives,Legal Fees,14-Nov-23,5105900703,Warwickshire County Council,748.88
Manchester City Council,Chief Executives,Legal Fees,14-Nov-23,5105900814,Warwickshire County Council,"2,236.81"
Manchester City Council,Chief Executives,Legal Fees,14-Nov-23,5105900816,Warwickshire County Council,"1,934.69"
Manchester City Council,Chief Executives,Legal Fees,14-Nov-23,5105900854,Warwickshire County Council,"1,830.72"
Manchester City Council,Adult Social Care,Equipment,14-Nov-23,5105900879,Bennett Workplace Solutions Ltd,"1,072.35"
Manchester City Council,Adult Social Care,Equipment,14-Nov-23,5105900881,Bennett Workplace Solutions Ltd,"-1,072.35"
Manchester City Council,Environment and Operations,Vehicle Plant Furniture and Equipment,14-Nov-23,5105900903,M247 UK Ltd,"11,277.49"
Manchester City Council,Childrens & Education Services,Rents,14-Nov-23,5105900711,Diocese of Salford,"7,604.39"
Manchester City Council,Corporate Services,Prof Qualifications,14-Nov-23,5105900613,Kaplan Financial - Manchester,"1,336.67"
Manchester City Council,Adult Social Care,Rents,14-Nov-23,5105900821,Accommodation Links Ltd,600.00
Manchester City Council,Adult Social Care,Rents,14-Nov-23,5105900844,Accommodation Links Ltd,600.00
Manchester City Council,Chief Executives,Legal Fees,14-Nov-23,5105900743,Weightmans LLP Solicitors,"4,657.47"
Manchester City Council,Chief Executives,Legal Fees,14-Nov-23,5105900836,Weightmans LLP Solicitors,891.50
Manchester City Council,Chief Executives,I T Provision,14-Nov-23,5105900455,Trustmarque Solutions Ltd,"4,885.00"
Manchester City Council,Corporate Services,Works and associated costs for Land and Buildings,14-Nov-23,5105900829,Green-Tech Ltd,"2,650.00"
Manchester City Council,Adult Social Care,Rents,14-Nov-23,5105900895,United Property Management Ltd,"26,886.60"
Manchester City Council,Childrens & Education Services,Professional fees,14-Nov-23,5105900780,One Education Ltd,"1,046.00"
Manchester City Council,Childrens & Education Services,Professional fees,14-Nov-23,5105900872,One Education Ltd,"1,046.00"
Manchester City Council,Corporate Services,Collection Commision,14-Nov-23,5105900920,Verrus (UK) T/A paybyphone,"26,443.05"
Manchester City Council,Hospitality + Trading Services,Vehicle Hire Costs,14-Nov-23,5105900781,Fleet Dynamic Consultancy Ltd,"1,261.68"
Manchester City Council,Chief Executives,Printing,14-Nov-23,5105900889,t/a R.C.D.,"1,045.54"
Manchester City Council,Adult Social Care,Payments for services,14-Nov-23,5105900823,Urban Village Medical Practice,"12,850.00"
Manchester City Council,Corporate Services,Fees,14-Nov-23,5105900870,Pannone Corporate LLP,"2,750.00"
Manchester City Council,Adult Social Care,Rents,14-Nov-23,5105900945,Mack Residential Letting Ltd,"200,938.90"
Manchester City Council,Manchester Leisure,Grant and subscriptions awarded,14-Nov-23,5105900839,Freshstart Smart,500.00
Manchester City Council,Corporate Services,Refuse Collection,14-Nov-23,5105900901,Restore Datashred Limited,"4,064.42"
Manchester City Council,Adult Social Care,Grant and subscriptions awarded,14-Nov-23,5105900731,Coffee4Craig Ltd,"8,750.00"
Manchester City Council,Adult Social Care,Bed & Breakfast Acc,14-Nov-23,5105900956,Redacted Personal Information,"1,540.00"
Manchester City Council,Adult Social Care,Rents,14-Nov-23,5105900835,T15 Consultancy Ltd,"3,115.39"
Manchester City Council,Housing Revenue Account,Professional fees,14-Nov-23,5105900777,Capita Property & Infras'ture Ltd,"6,575.00"
Manchester City Council,Environment and Operations,Construction Works,14-Nov-23,5105900761,IWJS Ltd,"5,535.00"
Manchester City Council,Adult Social Care,Grant and subscriptions awarded,14-Nov-23,5105900762,On The Out CIC,"20,985.58"
Manchester City Council,Adult Social Care,Grant and subscriptions awarded,14-Nov-23,5105900764,On The Out CIC,"2,147.58"
Manchester City Council,Adult Social Care,Grant and subscriptions awarded,14-Nov-23,5105900765,On The Out CIC,"3,113.60"
Manchester City Council,Adult Social Care,Contract Cleaning External,14-Nov-23,5105900776,YD Healthcare Ltd,"1,256.00"
Manchester City Council,Childrens & Education Services,Professional fees,14-Nov-23,5105900809,CPOMS Systems Limited,"1,395.00"
Manchester City Council,Hospitality + Trading Services,Vehicle Fuel Costs,14-Nov-23,5105900574,Standard Fuels Oils,"10,930.89"
Manchester City Council,Chief Executives,Legal Fees,14-Nov-23,5105900866,Waddington & Son Solicitors,579.50
Manchester City Council,Chief Executives,Legal Fees,14-Nov-23,5105900890,Waddington & Son Solicitors,"1,072.35"
Manchester City Council,Chief Executives,Legal Fees,14-Nov-23,5105900892,Waddington & Son Solicitors,"2,656.25"
Manchester City Council,Chief Executives,Legal Fees,14-Nov-23,5105900894,Waddington & Son Solicitors,898.25
Manchester City Council,Chief Executives,Legal Fees,14-Nov-23,5105900898,Waddington & Son Solicitors,"5,646.38"
Manchester City Council,Chief Executives,Legal Fees,14-Nov-23,5105900911,Waddington & Son Solicitors,742.00
Manchester City Council,Chief Executives,Legal Fees,14-Nov-23,5105900915,Waddington & Son Solicitors,"2,437.25"
Manchester City Council,Chief Executives,Legal Fees,14-Nov-23,5105900917,Waddington & Son Solicitors,"1,693.75"
Manchester City Council,Chief Executives,Legal Fees,14-Nov-23,5105900918,Waddington & Son Solicitors,"1,885.75"
Manchester City Council,Chief Executives,Legal Fees,14-Nov-23,5105900921,Waddington & Son Solicitors,"1,695.00"
Manchester City Council,Chief Executives,Legal Fees,14-Nov-23,5105900922,Waddington & Son Solicitors,"1,516.96"
Manchester City Council,Adult Social Care,Grant and subscriptions awarded,14-Nov-23,5105900748,Supporting People In Need,"22,000.00"
Manchester City Council,Adult Social Care,Grant and subscriptions awarded,14-Nov-23,5105900749,Supporting People In Need,"1,100.00"
Manchester City Council,Childrens & Education Services,Payments for services,14-Nov-23,5105900875,Thompsons Academy Ltd,"-1,050.00"
Manchester City Council,Childrens & Education Services,Payments for services,14-Nov-23,5105900876,Thompsons Academy Ltd,"-1,575.00"
Manchester City Council,Childrens & Education Services,Payments for services,14-Nov-23,5105900877,Thompsons Academy Ltd,"-5,818.00"
Manchester City Council,Childrens & Education Services,Payments for services,14-Nov-23,5105900878,Thompsons Academy Ltd,"-2,100.00"
Manchester City Council,Adult Social Care,Bed & Breakfast Acc,14-Nov-23,5105900897,Medlock House Ltd,"-7,056.00"
Manchester City Council,Corporate Services,Security,14-Nov-23,5105900916,MITIE SECURITY LIMITED,"128,034.38"
Manchester City Council,Regeneration Finance,Professional fees,14-Nov-23,5105899847,NE1 Procurement Services Limited,"25,000.00"
Manchester City Council,Regeneration Finance,Professional fees,14-Nov-23,5105900465,NE1 Procurement Services Limited,"25,000.00"
Manchester City Council,Adult Social Care,Third party payments relating to Voluntary Organisations,14-Nov-23,5105900942,Shared Habitat Limited,935.00
Manchester City Council,Adult Social Care,Bed & Breakfast Acc,14-Nov-23,5105900706,247Hotel.Com,"1,120.00"
Manchester City Council,Adult Social Care,Bed & Breakfast Acc,14-Nov-23,5105900757,VSP BEAUCLIFFE LTD,"141,174.00"
Manchester City Council,Regeneration Finance,Electricity,14-Nov-23,1908272376,M\cr Heat Network Supply Co Ltd,"49,556.06"
Manchester City Council,Childrens & Education Services,Transport Coach Hire,14-Nov-23,5105900712,AFJ Ltd,"4,572.00"
Manchester City Council,Childrens & Education Services,Transport Coach Hire,14-Nov-23,5105900713,AFJ Ltd,"5,922.00"
Manchester City Council,Childrens & Education Services,Transport Coach Hire,14-Nov-23,5105900714,AFJ Ltd,"2,490.00"
Manchester City Council,Childrens & Education Services,Transport Coach Hire,14-Nov-23,5105900715,AFJ Ltd,"4,318.00"
Manchester City Council,Childrens & Education Services,Transport Coach Hire,14-Nov-23,5105900717,AFJ Ltd,"2,490.00"
Manchester City Council,Childrens & Education Services,Transport Coach Hire,14-Nov-23,5105900719,AFJ Ltd,"3,154.00"
Manchester City Council,Childrens & Education Services,Transport Coach Hire,14-Nov-23,5105900720,AFJ Ltd,"4,318.00"
Manchester City Council,Childrens & Education Services,Transport Coach Hire,14-Nov-23,5105900735,AFJ Ltd,"-4,590.00"
Manchester City Council,Childrens & Education Services,Transport Coach Hire,14-Nov-23,5105900736,AFJ Ltd,"4,590.00"
Manchester City Council,Childrens & Education Services,Transport Coach Hire,14-Nov-23,5105900740,AFJ Ltd,"4,828.00"
Manchester City Council,Childrens & Education Services,Transport Coach Hire,14-Nov-23,5105900741,AFJ Ltd,"4,590.00"
Manchester City Council,Childrens & Education Services,Transport Coach Hire,14-Nov-23,5105900744,AFJ Ltd,"5,066.00"
Manchester City Council,Childrens & Education Services,Transport Coach Hire,14-Nov-23,5105900752,AFJ Ltd,"2,490.00"
Manchester City Council,Childrens & Education Services,Transport Coach Hire,14-Nov-23,5105900754,AFJ Ltd,"4,318.00"
Manchester City Council,Childrens & Education Services,Transport Coach Hire,14-Nov-23,5105900755,AFJ Ltd,"4,318.00"
Manchester City Council,Childrens & Education Services,Transport Coach Hire,14-Nov-23,5105900756,AFJ Ltd,"5,338.00"
Manchester City Council,Childrens & Education Services,Transport Coach Hire,14-Nov-23,5105900758,AFJ Ltd,"1,663.20"
Manchester City Council,Childrens & Education Services,Transport Coach Hire,14-Nov-23,5105900759,AFJ Ltd,"4,590.00"
Manchester City Council,Childrens & Education Services,Transport Coach Hire,14-Nov-23,5105900760,AFJ Ltd,"4,470.00"
Manchester City Council,Childrens & Education Services,Transport Coach Hire,14-Nov-23,5105900766,AFJ Ltd,"4,318.00"
Manchester City Council,Childrens & Education Services,Transport Coach Hire,14-Nov-23,5105900769,AFJ Ltd,"4,350.00"
Manchester City Council,Childrens & Education Services,Transport Taxis,14-Nov-23,5105900923,AFJ Ltd,"2,286.00"
Manchester City Council,Childrens & Education Services,Transport Taxis,14-Nov-23,5105900924,AFJ Ltd,"2,540.00"
Manchester City Council,Childrens & Education Services,Transport Taxis,14-Nov-23,5105900925,AFJ Ltd,"1,710.00"
Manchester City Council,Childrens & Education Services,Transport Taxis,14-Nov-23,5105900927,AFJ Ltd,"1,710.00"
Manchester City Council,Childrens & Education Services,Transport Taxis,14-Nov-23,5105900931,AFJ Ltd,"1,710.00"
Manchester City Council,Childrens & Education Services,Transport Taxis,14-Nov-23,5105900932,AFJ Ltd,"2,540.00"
Manchester City Council,Childrens & Education Services,Transport Taxis,14-Nov-23,5105900933,AFJ Ltd,"2,540.00"
Manchester City Council,Childrens & Education Services,Transport Taxis,14-Nov-23,5105900934,AFJ Ltd,"1,710.00"
Manchester City Council,Childrens & Education Services,Transport Taxis,14-Nov-23,5105900936,AFJ Ltd,"2,540.00"
Manchester City Council,Childrens & Education Services,Transport Taxis,14-Nov-23,5105900937,AFJ Ltd,"2,840.00"
Manchester City Council,Adult Social Care,Rents,14-Nov-23,5105900709,NWA Housing Ltd,"1,422.96"
Manchester City Council,Adult Social Care,Furniture,14-Nov-23,5105900702,Rtech Group Limited,"1,362.50"
Manchester City Council,Adult Social Care,Furniture,14-Nov-23,5105900747,Rtech Group Limited,"5,275.00"
Manchester City Council,Adult Social Care,Furniture,14-Nov-23,5105900840,Rtech Group Limited,"22,655.00"
Manchester City Council,Childrens & Education Services,Grant and subscriptions awarded,14-Nov-23,5105900593,The Movez Movement,"3,274.42"
Manchester City Council,Adult Social Care,Rents,14-Nov-23,5105900806,VSPG Housing Ltd,"15,000.00"
Manchester City Council,Corporate Services,Training and Development,14-Nov-23,5105900768,ASK Europe Limited,750.00
Manchester City Council,Corporate Services,Training and Development,14-Nov-23,5105900831,ASK Europe Limited,750.00
Manchester City Council,Adult Social Care,Rents,14-Nov-23,5105900767,R&S Properties Ltd,"4,650.00"
Manchester City Council,Corporate Services,Compensation Payments,14-Nov-23,1908272820,PD Law (NW) LTD,"1,977.00"
Manchester City Council,Adult Social Care,Furniture,14-Nov-23,1908253859,New Tech Ltd,"1,720.00"
Manchester City Council,Manchester Leisure,Compensation Payments,15-Nov-23,1908277528,Redacted personal info,500.00
Manchester City Council,Manchester Leisure,Compensation Payments,15-Nov-23,1908277529,Redacted personal info,"6,500.00"
Manchester City Council,Childrens & Education Services,Transport Coach Hire,15-Nov-23,1908277533,Redacted personal info,"1,512.00"
Manchester City Council,Manchester Leisure,Special Event,15-Nov-23,1908272194,Redacted personal info,"1,280.00"
Manchester City Council,Chief Executives,Advertising,15-Nov-23,5105901012,Haymarket Publishing Services Ltd,925.00
Manchester City Council,Chief Executives,Advertising,15-Nov-23,5105901014,Haymarket Publishing Services Ltd,925.00
Manchester City Council,Corporate Services,Agency staff provision,15-Nov-23,5105901107,Venn Group Ltd,"13,140.36"
Manchester City Council,Hospitality + Trading Services,Security,15-Nov-23,5105900972,Dante Fire & Security Ltd,-668.00
Manchester City Council,Hospitality + Trading Services,Hire of Machinery,15-Nov-23,5105901013,R & M Developments Ltd,"1,073.50"
Manchester City Council,Hospitality + Trading Services,Security,15-Nov-23,5105901140,Showsec International Ltd,"-11,153.43"
Manchester City Council,Corporate Services,Licences Purchase,15-Nov-23,1908273575,NTT Data,"11,140.14"
Manchester City Council,Chief Executives,Works and associated costs for Land and Buildings,15-Nov-23,5105901158,Laing O'Rourke Construction Ltd,"434,376.97"
Manchester City Council,Chief Executives,Works and associated costs for Land and Buildings,15-Nov-23,5105901158,Laing O'Rourke Construction Ltd,"1,817,992.03"
Manchester City Council,Childrens & Education Services,Carer Support Payments ,15-Nov-23,5105901058,Mosscare Housing Ltd,"65,228.45"
Manchester City Council,Adult Social Care,Professional fees,15-Nov-23,5105900653,Riverside ECHG,"5,616.10"
Manchester City Council,Adult Social Care,Professional fees,15-Nov-23,5105900965,Riverside ECHG,"3,045.00"
Manchester City Council,Corporate Services,Tracing fees,15-Nov-23,5105901135,Experian Limited,"2,212.59"
Manchester City Council,Hospitality + Trading Services,Cash Collection,15-Nov-23,1908273606,G4S Cash Solutions (Uk) Ltd,"1,042.87"
Manchester City Council,Manchester Leisure,Grant and subscriptions awarded,15-Nov-23,5105901142,Moss Side Millennium Powerhouse Ltd,"16,142.50"
Manchester City Council,Corporate Services,Grounds Maintenance,15-Nov-23,5105901044,Arboricultural Services Treework,600.00
Manchester City Council,Adult Social Care,Payments for services,15-Nov-23,5105900968,Big Life Centres,"238,508.00"
Manchester City Council,Adult Social Care,Payments for services,15-Nov-23,5105900969,Big Life Centres,"10,560.25"
Manchester City Council,Adult Social Care,Payments for services,15-Nov-23,5105901089,Big Life Centres,"238,508.00"
Manchester City Council,Adult Social Care,Payments for services,15-Nov-23,5105901090,Big Life Centres,"10,560.25"
Manchester City Council,Corporate Services,Agency staff provision,15-Nov-23,5105901165,Deekay Technical Recruitment Ltd,"11,141.29"
Manchester City Council,Adult Social Care,"Consumable items eg Toilet rolls, soap etc",15-Nov-23,5105901229,All 4 Pets Limited,"1,248.00"
Manchester City Council,Adult Social Care,"Consumable items eg Toilet rolls, soap etc",15-Nov-23,5105901233,All 4 Pets Limited,992.00
Manchester City Council,Housing Revenue Account,Council Dwelling Adaptations,15-Nov-23,5105900905,Stannah Lift Services Ltd,"-2,905.00"
Manchester City Council,Childrens & Education Services,Private Finance and Public Private partnership initiatives,15-Nov-23,5105898562,NU3PS,"91,494.92"
Manchester City Council,Regeneration Finance,Professional fees,15-Nov-23,5105900976,Creative Concern Ltd,550.87
Manchester City Council,General Fund,Levies,15-Nov-23,1908248682,Bolton Mbc,"36,007.25"
Manchester City Council,Adult Social Care,Third party payments relating to Voluntary Organisations,15-Nov-23,5105901047,Greater Manchester Immigration Aid,"8,158.00"
Manchester City Council,Childrens & Education Services,Payments for services,15-Nov-23,5105901207,Manchester Settlement,522.00
Manchester City Council,General Fund,Levies,15-Nov-23,1908231464,Trafford M B C,"12,896.23"
Manchester City Council,Adult Social Care,Third party payments relating to Voluntary Organisations,15-Nov-23,5105901191,Albert Kennedy Trust,758.33
Manchester City Council,Childrens & Education Services,Day Care Payments,15-Nov-23,5105901216,Medlock Primary School,"16,740.13"
Manchester City Council,Childrens & Education Services,Payments for services,15-Nov-23,5105901180,The Birtenshaw Group,"7,281.00"
Manchester City Council,Childrens & Education Services,Payments for services,15-Nov-23,5105901208,The Birtenshaw Group,"1,762.52"
Manchester City Council,Chief Executives,Printing,15-Nov-23,5105900967,Wallace Printers Ltd,"1,459.00"
Manchester City Council,Adult Social Care,Professional fees,15-Nov-23,5105901087,Royal Exchange Theatre Co Ltd,500.00
Manchester City Council,Chief Executives,Printing,15-Nov-23,5105901210,Tharstern Limited,742.50
Manchester City Council,Adult Social Care,I T Provision,15-Nov-23,5105901139,The Booth Centre,"1,179.72"
Manchester City Council,Adult Social Care,Licences Purchase,15-Nov-23,5105901163,Insight Direct (Uk) Ltd,511.17
Manchester City Council,Corporate Services,Licences Purchase,15-Nov-23,5105901167,Insight Direct (Uk) Ltd,511.17
Manchester City Council,Chief Executives,Courier Costs,15-Nov-23,5105901193,Speed Couriers (Northern) Ltd,"1,288.67"
Manchester City Council,General Fund,Levies,15-Nov-23,#,GMCA,"3,905,500.00"
Manchester City Council,Childrens & Education Services,Third party payments to other Local Authorities,15-Nov-23,5105901176,Broomwood Primary School,"2,604.00"
Manchester City Council,Adult Social Care,Rents,15-Nov-23,5105901021,Ashley Property services,"3,320.00"
Manchester City Council,Chief Executives,Advertising,15-Nov-23,5105901168,Redactive Publishing Limited,845.00
Manchester City Council,Childrens & Education Services,Transport Coach Hire,15-Nov-23,5105901110,Galaxy Transport (Manchester) Ltd,"12,555.00"
Manchester City Council,Chief Executives,Postage,15-Nov-23,5105901197,Whistl North Ltd,"2,836.02"
Manchester City Council,Childrens & Education Services,Hire of Premises,15-Nov-23,5105901068,The Monastery Manchester Ltd,791.00
Manchester City Council,Hospitality + Trading Services,Funeral and coroner related services,15-Nov-23,5105901028,Zagota Creations Limited,895.00
Manchester City Council,Chief Executives,Legal Fees,15-Nov-23,5105900991,Weightmans LLP Solicitors,"7,450.00"
Manchester City Council,Chief Executives,Legal Fees,15-Nov-23,5105901065,Weightmans LLP Solicitors,"3,799.50"
Manchester City Council,Chief Executives,Legal Fees,15-Nov-23,5105901159,Weightmans LLP Solicitors,"1,533.00"
Manchester City Council,Chief Executives,Legal Fees,15-Nov-23,5105901177,Weightmans LLP Solicitors,"1,418.00"
Manchester City Council,Chief Executives,Legal Fees,15-Nov-23,5105901184,Weightmans LLP Solicitors,"8,631.19"
Manchester City Council,Chief Executives,Legal Fees,15-Nov-23,5105901205,Weightmans LLP Solicitors,"6,620.36"
Manchester City Council,Chief Executives,Legal Fees,15-Nov-23,5105901214,Weightmans LLP Solicitors,"2,582.00"
Manchester City Council,Chief Executives,Advertising,15-Nov-23,5105901054,Global Radio Services Ltd,"1,200.00"
Manchester City Council,Chief Executives,Advertising,15-Nov-23,5105901056,Global Radio Services Ltd,"3,284.11"
Manchester City Council,Chief Executives,Advertising,15-Nov-23,5105901060,Global Radio Services Ltd,"2,093.57"
Manchester City Council,Adult Social Care,Equipment,15-Nov-23,5105901242,Aidapt Bathrooms Ltd,"3,150.00"
Manchester City Council,Manchester Leisure,Grant and subscriptions awarded,15-Nov-23,5105901190,Youth Project @ Apostles &,"30,000.00"
Manchester City Council,Chief Executives,Professional fees,15-Nov-23,1908273576,Cornerstone Barristers,"10,000.00"
Manchester City Council,Chief Executives,Legal Fees,15-Nov-23,5105901004,Cornerstone Barristers,"5,000.00"
Manchester City Council,Adult Social Care,Counsel Costs,15-Nov-23,5105901179,Cornerstone Barristers,"1,000.00"
Manchester City Council,Regeneration Finance,Professional fees,15-Nov-23,5105900997,Penna PLC,"5,000.00"
Manchester City Council,Regeneration Finance,Professional fees,15-Nov-23,5105900998,Penna PLC,"3,000.00"
Manchester City Council,Corporate Services,Agency staff provision,15-Nov-23,5105901100,Ashberry Recruitment Ltd,"1,968.30"
Manchester City Council,Chief Executives,Postage,15-Nov-23,5105901195,Quadient Ltd (Credifon),"10,875.60"
Manchester City Council,Manchester Leisure,Environmental Services,15-Nov-23,5105901040,Custodian Monitoring,575.32
Manchester City Council,Manchester Leisure,Environmental Services,15-Nov-23,5105901042,Custodian Monitoring,575.32
Manchester City Council,Manchester Leisure,Environmental Services,15-Nov-23,5105901045,Custodian Monitoring,575.32
Manchester City Council,Adult Social Care,Rents,15-Nov-23,5105900964,Cromwood Ltd,"158,113.15"
Manchester City Council,Hospitality + Trading Services,Vehicle Hire Costs,15-Nov-23,5105901105,Dawsongroup Sweepers,"1,605.71"
Manchester City Council,Manchester Leisure,External repairs and maintenance for buildings,15-Nov-23,5105901000,Cornthwaite Tree Care,"4,500.00"
Manchester City Council,Manchester Leisure,External repairs and maintenance for buildings,15-Nov-23,5105901023,Cornthwaite Tree Care,"4,900.00"
Manchester City Council,Hospitality + Trading Services,Vehicle Hire Costs,15-Nov-23,5105901182,Gibsons Garden Machinery Limited,"7,282.00"
Manchester City Council,Corporate Services,Fees,15-Nov-23,5105901075,Pannone Corporate LLP,"4,946.20"
Manchester City Council,Manchester Leisure,External repairs and maintenance for buildings,15-Nov-23,5105901134,Willfab Ltd,"1,280.00"
Manchester City Council,Adult Social Care,Third party payments to Health Authority,15-Nov-23,1908266989,Liverpool University Hospitals,751.00
Manchester City Council,Childrens & Education Services,Professional fees,15-Nov-23,5105901152,Alpha Biolaboratories Limited,-952.80
Manchester City Council,Manchester Leisure,Cleaning Equipment and Materials,15-Nov-23,5105900907,Biffa Municipal Limited,-880.50
Manchester City Council,Manchester Leisure,Cleaning Equipment and Materials,15-Nov-23,5105900908,Biffa Municipal Limited,-880.50
Manchester City Council,Manchester Leisure,Cleaning Equipment and Materials,15-Nov-23,5105900909,Biffa Municipal Limited,-880.50
Manchester City Council,Corporate Services,Elec Car L-VAT contr,15-Nov-23,1908274799,Northumbria Healthcare NHS FT,"1,534.51"
Manchester City Council,Corporate Services,Elec Car L-VAT contr,15-Nov-23,1908274803,Northumbria Healthcare NHS FT,"5,439.90"
Manchester City Council,Corporate Services,Elec Car Lease,15-Nov-23,1908274799,Northumbria Healthcare NHS FT,"17,456.10"
Manchester City Council,Corporate Services,Elec Car Lease,15-Nov-23,1908274803,Northumbria Healthcare NHS FT,"61,345.63"
Manchester City Council,Childrens & Education Services,Transport Coach Hire,15-Nov-23,5105901172,Middleton Cars Ltd,"1,360.00"
Manchester City Council,Corporate Services,Agency staff provision,15-Nov-23,5105900977,Buckingham Futures Limited,"-6,272.94"
Manchester City Council,Corporate Services,Agency staff provision,15-Nov-23,5105900978,Buckingham Futures Limited,"5,227.45"
Manchester City Council,Chief Executives,Advertising,15-Nov-23,5105901043,In Touch Local Media Ltd,550.00
Manchester City Council,Adult Social Care,Rents,15-Nov-23,5105901024,K L Properties,"17,645.00"
Manchester City Council,Chief Executives,Payments to Sub-Contractors,15-Nov-23,5105901059,Redacted Personal Information,"1,156.43"
Manchester City Council,Chief Executives,Payments to Sub-Contractors,15-Nov-23,5105901016,Redacted Personal Information,681.45
Manchester City Council,Chief Executives,Payments to Sub-Contractors,15-Nov-23,5105901095,Redacted Personal Information,506.08
Manchester City Council,Chief Executives,Payments to Sub-Contractors,15-Nov-23,5105901039,Redacted Personal Information,737.93
Manchester City Council,Chief Executives,Payments to Sub-Contractors,15-Nov-23,5105901022,Redacted Personal Information,"1,403.25"
Manchester City Council,Childrens & Education Services,Training and Development,15-Nov-23,5105901001,Family Links,"-2,160.00"
Manchester City Council,Childrens & Education Services,Training and Development,15-Nov-23,5105901002,Family Links,"2,160.00"
Manchester City Council,Manchester Leisure,Postage,15-Nov-23,5105901132,Integrity Print Ltd,"2,092.26"
Manchester City Council,Chief Executives,Works and associated costs for Land and Buildings,15-Nov-23,5105901076,BMS Software (Northern) Ltd,"34,582.50"
Manchester City Council,Childrens & Education Services,Ind Budget Payment,15-Nov-23,1908274806,Samuel Bennett,"1,080.00"
Manchester City Council,Corporate Services,Bank Charges,15-Nov-23,1908274826,Pay360 Ltd,"10,011.64"
Manchester City Council,Corporate Services,Contract Cleaning External,15-Nov-23,5105900987,Westgrove Support Services Ltd,"9,808.77"
Manchester City Council,Corporate Services,Agency staff provision,15-Nov-23,5105901003,G2V Recruitment Grp t/a Vivid Resou,"8,235.00"
Manchester City Council,Corporate Services,Agency staff provision,15-Nov-23,5105901005,G2V Recruitment Grp t/a Vivid Resou,"1,875.00"
Manchester City Council,Corporate Services,Agency staff provision,15-Nov-23,5105901008,G2V Recruitment Grp t/a Vivid Resou,"2,058.75"
Manchester City Council,Corporate Services,Agency staff provision,15-Nov-23,5105901010,G2V Recruitment Grp t/a Vivid Resou,"1,890.00"
Manchester City Council,Adult Social Care,Supported Accommodation,15-Nov-23,5105901061,Redacted Personal Information,"39,617.36"
Manchester City Council,Manchester Leisure,Grant and subscriptions awarded,15-Nov-23,5105901145,Ivy Green Allotments,"2,000.00"
Manchester City Council,Childrens & Education Services,Carer Support Payments ,15-Nov-23,5105901052,Amore Complex Care,"43,070.00"
Manchester City Council,Childrens & Education Services,Third party payments to other Local Authorities,15-Nov-23,5105901178,Firwood High School,"4,453.00"
Manchester City Council,Manchester Leisure,External repairs and maintenance for buildings,15-Nov-23,5105901104,Norman Ashworth Limited,"26,760.00"
Manchester City Council,Chief Executives,Counsel Costs,15-Nov-23,5105901202,DEANS COURT CHAMBERS,500.00
Manchester City Council,Adult Social Care,Grant and subscriptions awarded,15-Nov-23,5105901071,Divrse Ltd,"17,550.00"
Manchester City Council,Manchester Leisure,Grant and subscriptions awarded,15-Nov-23,5105901080,Friends of Mauldeth Road Station,"2,044.77"
Manchester City Council,Childrens & Education Services,Grant Payments,15-Nov-23,1908274827,Paypoint,"9,258.30"
Manchester City Council,Chief Executives,Licences Purchase,15-Nov-23,5105901007,ITS Software Systems Ltd,"3,750.00"
Manchester City Council,Adult Social Care,Payments for services,15-Nov-23,5105900992,Druglink Ltd,"3,146.40"
Manchester City Council,Adult Social Care,Payments for services,15-Nov-23,5105900995,Druglink Ltd,561.00
Manchester City Council,Childrens & Education Services,Payments for services,15-Nov-23,5105901203,Side By Side (Children) Limited,"2,833.33"
Manchester City Council,Adult Social Care,Furniture,15-Nov-23,5105900944,Rtech Group Limited,"-1,654.17"
Manchester City Council,Childrens & Education Services,Payments for services,15-Nov-23,5105901211,Redacted Personal Information,"4,165.00"
Manchester City Council,Childrens & Education Services,Payments for services,15-Nov-23,5105901212,SENsational Tutors Ltd,"1,487.50"
Manchester City Council,Childrens & Education Services,Payments for services,15-Nov-23,5105901218,SENsational Tutors Ltd,"1,105.00"
Manchester City Council,Childrens & Education Services,Home Care ,15-Nov-23,5105900966,Emotional and Trauma Support,"1,950.00"
Manchester City Council,Regeneration Finance,External repairs and maintenance for buildings,15-Nov-23,5105900983,Cesar Santos Cerejo,"1,201.17"
Manchester City Council,Regeneration Finance,External repairs and maintenance for buildings,15-Nov-23,5105900983,Cesar Santos Cerejo,995.77
Manchester City Council,Childrens & Education Services,Payments for services,15-Nov-23,5105901209,Redacted Personal Information,"3,094.00"
Manchester City Council,Regeneration Finance,External repairs and maintenance for buildings,15-Nov-23,5105900984,Temple Studios,"1,740.00"
Manchester City Council,Corporate Services,Building Works,15-Nov-23,1908274805,Mayfield Development (General,"91,700.00"
Manchester City Council,Housing Revenue Account,Works and associated costs for Land and Buildings,15-Nov-23,1908277536,Haworth Brotherton Solicitors,"207,000.00"
Manchester City Council,Corporate Services,Works and associated costs for Land and Buildings,15-Nov-23,1908273574,Kuits Solicitors,"2,000.00"
Manchester City Council,Adult Social Care,Rents,15-Nov-23,1908277531,Apex Properties North Ltd,"4,800.00"
Manchester City Council,Adult Social Care,Rents,15-Nov-23,1908277532,Redacted Personal Information,"1,400.00"
Manchester City Council,Corporate Services,Hire of Premises,15-Nov-23,1908274807,Factory International Trading Servi,"5,000.00"
Manchester City Council,Manchester Leisure,Special Event,15-Nov-23,1908277550,International Doping Tests & Mgmt,"3,494.61"
Manchester City Council,Childrens & Education Services,Public Transport,16-Nov-23,1908280235,Redacted personal info,"1,060.00"
Manchester City Council,Manchester Leisure,Special Event,16-Nov-23,1908272195,Redacted personal info,"1,280.00"
Manchester City Council,Manchester Leisure,Special Event,16-Nov-23,1908272199,Redacted personal info,"1,920.00"
Manchester City Council,Manchester Leisure,Special Event,16-Nov-23,1908272198,Redacted personal info,"1,280.00"
Manchester City Council,Regeneration Finance,Professional fees,16-Nov-23,5105901276,GVA Grimley Ltd,"2,647.75"
Manchester City Council,Regeneration Finance,Professional fees,16-Nov-23,5105901279,GVA Grimley Ltd,"1,260.00"
Manchester City Council,Manchester Leisure,Electricity,16-Nov-23,1700161390,Scottish & Southern Energy Plc,-557.22
Manchester City Council,Manchester Leisure,Electricity,16-Nov-23,1700161401,Scottish & Southern Energy Plc,-564.07
Manchester City Council,Manchester Leisure,Electricity,16-Nov-23,1700161402,Scottish & Southern Energy Plc,-562.02
Manchester City Council,Manchester Leisure,Electricity,16-Nov-23,1700161430,Scottish & Southern Energy Plc,-628.58
Manchester City Council,Manchester Leisure,Electricity,16-Nov-23,1700161431,Scottish & Southern Energy Plc,-585.77
Manchester City Council,Manchester Leisure,Electricity,16-Nov-23,1700161432,Scottish & Southern Energy Plc,-548.13
Manchester City Council,Manchester Leisure,Electricity,16-Nov-23,1700161433,Scottish & Southern Energy Plc,-696.03
Manchester City Council,Manchester Leisure,Electricity,16-Nov-23,1700161437,Scottish & Southern Energy Plc,-979.02
Manchester City Council,Manchester Leisure,Electricity,16-Nov-23,1700161438,Scottish & Southern Energy Plc,-928.68
Manchester City Council,Manchester Leisure,Electricity,16-Nov-23,1700161439,Scottish & Southern Energy Plc,-854.55
Manchester City Council,Manchester Leisure,Electricity,16-Nov-23,1700161440,Scottish & Southern Energy Plc,-753.75
Manchester City Council,Manchester Leisure,Electricity,16-Nov-23,1700161441,Scottish & Southern Energy Plc,-629.22
